Nominativi dei beneficiari,Data mandato,Numero mandato,Natura economica,Importo,Ritenute,Ritenute per IVA Split,CIG,Titolo,Macroaggregato,Descr. Macroaggregato,Liv. 3,Liv. 4,Liv. 5,Descrizione mandato,TITNO_BL,2� livello,3� livello,4� livello,5� livello
BENVENUTI MARCO,03/10/2022,5105,Altre spese per consultazioni elettorali dell'ente,"145,00","0,00","0,00",,1,3,Acquisto di beni e servizi,2,99,4,ONORARIO COMPONENTE SEGGIO ELETTORALE N. 4,1,3,2,99,4
ANSELMO ROSA,03/10/2022,5098,Altre spese per consultazioni elettorali dell'ente,"145,00","0,00","0,00",,1,3,Acquisto di beni e servizi,2,99,4,ONORARIO COMPONENTE SEGGIO ELETTORALE N. 9,1,3,2,99,4
VOLPI SIMONE,03/10/2022,5187,Altre spese per consultazioni elettorali dell'ente,"145,00","0,00","0,00",,1,3,Acquisto di beni e servizi,2,99,4,ONORARIO COMPONENTE SEGGIO ELETTORALE N. 8,1,3,2,99,4
TEDESCO VINCENZO,03/10/2022,5183,Altre spese per consultazioni elettorali dell'ente,"145,00","0,00","0,00",,1,3,Acquisto di beni e servizi,2,99,4,ONORARIO COMPONENTE SEGGIO ELETTORALE N. 10,1,3,2,99,4
CARLINO COLOMBA,03/10/2022,5118,Altre spese per consultazioni elettorali dell'ente,"145,00","0,00","0,00",,1,3,Acquisto di beni e servizi,2,99,4,ONORARIO COMPONENTE SEGGIO ELETTORALE N. 9,1,3,2,99,4
DI MICHELE PAOLA,03/10/2022,5136,Altre spese per consultazioni elettorali dell'ente,"145,00","0,00","0,00",,1,3,Acquisto di beni e servizi,2,99,4,ONORARIO COMPONENTE SEGGIO ELETTORALE N. 4,1,3,2,99,4
BORSINI RAFFAELLA,03/10/2022,5110,Altre spese per consultazioni elettorali dell'ente,"145,00","0,00","0,00",,1,3,Acquisto di beni e servizi,2,99,4,ONORARIO COMPONENTE SEGGIO ELETTORALE N. 6,1,3,2,99,4
DESIDERI PRISCILLA,03/10/2022,5133,Altre spese per consultazioni elettorali dell'ente,"145,00","0,00","0,00",,1,3,Acquisto di beni e servizi,2,99,4,ONORARIO COMPONENTE SEGGIO ELETTORALE N. 13,1,3,2,99,4
BALZACCHI SERENA,03/10/2022,5101,Altre spese per consultazioni elettorali dell'ente,"145,00","0,00","0,00",,1,3,Acquisto di beni e servizi,2,99,4,ONORARIO COMPONENTE SEGGIO ELETTORALE N. 4,1,3,2,99,4
CUSIN IRENE,03/10/2022,5132,Altre spese per consultazioni elettorali dell'ente,"145,00","0,00","0,00",,1,3,Acquisto di beni e servizi,2,99,4,ONORARIO COMPONENTE SEGGIO ELETTORALE N. 3,1,3,2,99,4
PALANDRI LUIGI,03/10/2022,5167,Altre spese per consultazioni elettorali dell'ente,"187,00","0,00","0,00",,1,3,Acquisto di beni e servizi,2,99,4,ONORARIO COMPONENTE SEGGIO ELETTORALE N. 1,1,3,2,99,4
GIRALDI  REBECCA,03/10/2022,5141,Altre spese per consultazioni elettorali dell'ente,"187,00","0,00","0,00",,1,3,Acquisto di beni e servizi,2,99,4,ONORARIO COMPONENTE SEGGIO ELETTORALE N. 12,1,3,2,99,4
CAPPELLINI DANIELA,03/10/2022,5116,Altre spese per consultazioni elettorali dell'ente,"187,00","0,00","0,00",,1,3,Acquisto di beni e servizi,2,99,4,ONORARIO COMPONENTE SEGGIO ELETTORALE N. 5,1,3,2,99,4
TANI LUCA,03/10/2022,5182,Altre spese per consultazioni elettorali dell'ente,"145,00","0,00","0,00",,1,3,Acquisto di beni e servizi,2,99,4,ONORARIO COMPONENTE SEGGIO ELETTORALE N. 5,1,3,2,99,4
CIURO EMANUEL,03/10/2022,5128,Altre spese per consultazioni elettorali dell'ente,"145,00","0,00","0,00",,1,3,Acquisto di beni e servizi,2,99,4,ONORARIO COMPONENTE SEGGIO ELETTORALE N. 15,1,3,2,99,4
MAZZANTINI PAOLA,03/10/2022,5155,Altre spese per consultazioni elettorali dell'ente,"145,00","0,00","0,00",,1,3,Acquisto di beni e servizi,2,99,4,ONORARIO COMPONENTE SEGGIO ELETTORALE N. 14,1,3,2,99,4
BIONDI ENRICA,03/10/2022,5107,Altre spese per consultazioni elettorali dell'ente,"145,00","0,00","0,00",,1,3,Acquisto di beni e servizi,2,99,4,ONORARIO COMPONENTE SEGGIO ELETTORALE N. 8,1,3,2,99,4
MORLANDI PAOLA,03/10/2022,5162,Altre spese per consultazioni elettorali dell'ente,"187,00","0,00","0,00",,1,3,Acquisto di beni e servizi,2,99,4,ONORARIO COMPONENTE SEGGIO ELETTORALE N. 3,1,3,2,99,4
RAFFI MARTINA,03/10/2022,5173,Altre spese per consultazioni elettorali dell'ente,"145,00","0,00","0,00",,1,3,Acquisto di beni e servizi,2,99,4,ONORARIO COMPONENTE SEGGIO ELETTORALE N. 6,1,3,2,99,4
INNOCENTI TIZIANA,03/10/2022,5145,Altre spese per consultazioni elettorali dell'ente,"145,00","0,00","0,00",,1,3,Acquisto di beni e servizi,2,99,4,ONORARIO COMPONENTE SEGGIO ELETTORALE N. 3,1,3,2,99,4
MANCINI  ANTONIO,03/10/2022,5150,Altre spese per consultazioni elettorali dell'ente,"187,00","0,00","0,00",,1,3,Acquisto di beni e servizi,2,99,4,ONORARIO COMPONENTE SEGGIO ELETTORALE N. 10,1,3,2,99,4
SANTINI ELISABETTA,03/10/2022,5178,Altre spese per consultazioni elettorali dell'ente,"145,00","0,00","0,00",,1,3,Acquisto di beni e servizi,2,99,4,ONORARIO COMPONENTE SEGGIO ELETTORALE N. 10,1,3,2,99,4
BECONCINI FABIO,03/10/2022,5103,Altre spese per consultazioni elettorali dell'ente,"187,00","0,00","0,00",,1,3,Acquisto di beni e servizi,2,99,4,ONORARIO COMPONENTE SEGGIO ELETTORALE N. 13,1,3,2,99,4
GIGLI CHIARA,03/10/2022,5140,Altre spese per consultazioni elettorali dell'ente,"145,00","0,00","0,00",,1,3,Acquisto di beni e servizi,2,99,4,ONORARIO COMPONENTE SEGGIO ELETTORALE N. 2,1,3,2,99,4
GIGLI  SILVIA,03/10/2022,5139,Altre spese per consultazioni elettorali dell'ente,"145,00","0,00","0,00",,1,3,Acquisto di beni e servizi,2,99,4,ONORARIO COMPONENTE SEGGIO ELETTORALE N. 3,1,3,2,99,4
IANNUZZI MATTIA,03/10/2022,5144,Altre spese per consultazioni elettorali dell'ente,"187,00","0,00","0,00",,1,3,Acquisto di beni e servizi,2,99,4,ONORARIO COMPONENTE SEGGIO ELETTORALE N. 7,1,3,2,99,4
LUCARELLI STEFANIA,03/10/2022,5148,Altre spese per consultazioni elettorali dell'ente,"145,00","0,00","0,00",,1,3,Acquisto di beni e servizi,2,99,4,ONORARIO COMPONENTE SEGGIO ELETTORALE N. 1,1,3,2,99,4
RAFFI NICO,03/10/2022,5174,Altre spese per consultazioni elettorali dell'ente,"145,00","0,00","0,00",,1,3,Acquisto di beni e servizi,2,99,4,ONORARIO COMPONENTE SEGGIO ELETTORALE N. 6,1,3,2,99,4
BISCARDI SANDRA,03/10/2022,5108,Altre spese per consultazioni elettorali dell'ente,"187,00","0,00","0,00",,1,3,Acquisto di beni e servizi,2,99,4,ONORARIO COMPONENTE SEGGIO ELETTORALE N. 8,1,3,2,99,4
CIRILLO GIUDITTA,03/10/2022,5127,Altre spese per consultazioni elettorali dell'ente,"145,00","0,00","0,00",,1,3,Acquisto di beni e servizi,2,99,4,ONORARIO COMPONENTE SEGGIO ELETTORALE N. 14,1,3,2,99,4
BOLDRINI MONICA,03/10/2022,5109,Altre spese per consultazioni elettorali dell'ente,"145,00","0,00","0,00",,1,3,Acquisto di beni e servizi,2,99,4,ONORARIO COMPONENTE SEGGIO ELETTORALE N. 9,1,3,2,99,4
PASQUINUCCI ALESSIA,03/10/2022,5170,Altre spese per consultazioni elettorali dell'ente,"145,00","0,00","0,00",,1,3,Acquisto di beni e servizi,2,99,4,ONORARIO COMPONENTE SEGGIO ELETTORALE N. 11,1,3,2,99,4
BERTINI MATTIA,03/10/2022,5106,Altre spese per consultazioni elettorali dell'ente,"145,00","0,00","0,00",,1,3,Acquisto di beni e servizi,2,99,4,ONORARIO COMPONENTE SEGGIO ELETTORALE N. 7,1,3,2,99,4
LASSI GIANNI,03/10/2022,5146,Altre spese per consultazioni elettorali dell'ente,"145,00","0,00","0,00",,1,3,Acquisto di beni e servizi,2,99,4,ONORARIO COMPONENTE SEGGIO ELETTORALE N. 12,1,3,2,99,4
BARONTI  CARLO,03/10/2022,5102,Altre spese per consultazioni elettorali dell'ente,"187,00","0,00","0,00",,1,3,Acquisto di beni e servizi,2,99,4,ONORARIO COMPONENTE SEGGIO ELETTORALE N. 9,1,3,2,99,4
NINCI GREGORIO,03/10/2022,5165,Altre spese per consultazioni elettorali dell'ente,"145,00","0,00","0,00",,1,3,Acquisto di beni e servizi,2,99,4,ONORARIO COMPONENTE SEGGIO ELETTORALE N. 8,1,3,2,99,4
MERLO ANDREA,03/10/2022,5157,Altre spese per consultazioni elettorali dell'ente,"145,00","0,00","0,00",,1,3,Acquisto di beni e servizi,2,99,4,ONORARIO COMPONENTE SEGGIO ELETTORALE N. 2,1,3,2,99,4
NARDI NICCOLO',03/10/2022,5163,Altre spese per consultazioni elettorali dell'ente,"145,00","0,00","0,00",,1,3,Acquisto di beni e servizi,2,99,4,ONORARIO COMPONENTE SEGGIO ELETTORALE N. 5,1,3,2,99,4
TRISTAINO ALIDA,03/10/2022,5184,Altre spese per consultazioni elettorali dell'ente,"145,00","0,00","0,00",,1,3,Acquisto di beni e servizi,2,99,4,ONORARIO COMPONENTE SEGGIO ELETTORALE N. 10,1,3,2,99,4
VITI CHIARA,03/10/2022,5185,Altre spese per consultazioni elettorali dell'ente,"145,00","0,00","0,00",,1,3,Acquisto di beni e servizi,2,99,4,ONORARIO COMPONENTE SEGGIO ELETTORALE N. 6,1,3,2,99,4
FALCHI PICCHINESI ELEONORA,03/10/2022,5137,Altre spese per consultazioni elettorali dell'ente,"145,00","0,00","0,00",,1,3,Acquisto di beni e servizi,2,99,4,ONORARIO COMPONENTE SEGGIO ELETTORALE N. 11,1,3,2,99,4
DESIDERI SARA,03/10/2022,5134,Altre spese per consultazioni elettorali dell'ente,"145,00","0,00","0,00",,1,3,Acquisto di beni e servizi,2,99,4,ONORARIO COMPONENTE SEGGIO ELETTORALE N. 4,1,3,2,99,4
MANNUCCI LISA,03/10/2022,5151,Altre spese per consultazioni elettorali dell'ente,"145,00","0,00","0,00",,1,3,Acquisto di beni e servizi,2,99,4,ONORARIO COMPONENTE SEGGIO ELETTORALE N. 1,1,3,2,99,4
SERANGELI ELISA,03/10/2022,5179,Altre spese per consultazioni elettorali dell'ente,"145,00","0,00","0,00",,1,3,Acquisto di beni e servizi,2,99,4,ONORARIO COMPONENTE SEGGIO ELETTORALE N. 4,1,3,2,99,4
RUSSO SOFIA,03/10/2022,5177,Altre spese per consultazioni elettorali dell'ente,"145,00","0,00","0,00",,1,3,Acquisto di beni e servizi,2,99,4,ONORARIO COMPONENTE SEGGIO ELETTORALE N. 12,1,3,2,99,4
TAMBURINI MATTEO,03/10/2022,5181,Altre spese per consultazioni elettorali dell'ente,"187,00","0,00","0,00",,1,3,Acquisto di beni e servizi,2,99,4,ONORARIO COMPONENTE SEGGIO ELETTORALE N. 6,1,3,2,99,4
MORANDI BENEDETTA,03/10/2022,5159,Altre spese per consultazioni elettorali dell'ente,"145,00","0,00","0,00",,1,3,Acquisto di beni e servizi,2,99,4,ONORARIO COMPONENTE SEGGIO ELETTORALE N. 10,1,3,2,99,4
ORSI REBECCA,03/10/2022,5166,Altre spese per consultazioni elettorali dell'ente,"145,00","0,00","0,00",,1,3,Acquisto di beni e servizi,2,99,4,ONORARIO COMPONENTE SEGGIO ELETTORALE N. 7,1,3,2,99,4
CAPEZZUOLI TOMMASO,03/10/2022,5115,Altre spese per consultazioni elettorali dell'ente,"145,00","0,00","0,00",,1,3,Acquisto di beni e servizi,2,99,4,ONORARIO COMPONENTE SEGGIO ELETTORALE N. 12,1,3,2,99,4
CHIARITO SARA,03/10/2022,5121,Altre spese per consultazioni elettorali dell'ente,"145,00","0,00","0,00",,1,3,Acquisto di beni e servizi,2,99,4,ONORARIO COMPONENTE SEGGIO ELETTORALE N. 11,1,3,2,99,4
PASQUALI CLARISSA,03/10/2022,5169,Altre spese per consultazioni elettorali dell'ente,"145,00","0,00","0,00",,1,3,Acquisto di beni e servizi,2,99,4,ONORARIO COMPONENTE SEGGIO ELETTORALE N. 14,1,3,2,99,4
MASTROPIETRO GIULIA,03/10/2022,5154,Altre spese per consultazioni elettorali dell'ente,"145,00","0,00","0,00",,1,3,Acquisto di beni e servizi,2,99,4,ONORARIO COMPONENTE SEGGIO ELETTORALE N. 2,1,3,2,99,4
MARRADI FRANCESCO,03/10/2022,5153,Altre spese per consultazioni elettorali dell'ente,"145,00","0,00","0,00",,1,3,Acquisto di beni e servizi,2,99,4,ONORARIO COMPONENTE SEGGIO ELETTORALE N. 1,1,3,2,99,4
BECONCINI SARA,03/10/2022,5104,Altre spese per consultazioni elettorali dell'ente,"187,00","0,00","0,00",,1,3,Acquisto di beni e servizi,2,99,4,ONORARIO COMPONENTE SEGGIO ELETTORALE N. 2,1,3,2,99,4
BALDINI STEFANO,03/10/2022,5100,Altre spese per consultazioni elettorali dell'ente,"145,00","0,00","0,00",,1,3,Acquisto di beni e servizi,2,99,4,ONORARIO COMPONENTE SEGGIO ELETTORALE N. 2,1,3,2,99,4
CONTI PATRICK SEBASTIAN ALEXANDER,03/10/2022,5129,Altre spese per consultazioni elettorali dell'ente,"145,00","0,00","0,00",,1,3,Acquisto di beni e servizi,2,99,4,ONORARIO COMPONENTE SEGGIO ELETTORALE N. 6,1,3,2,99,4
CINOTTI  ELENA,03/10/2022,5124,Altre spese per consultazioni elettorali dell'ente,"145,00","0,00","0,00",,1,3,Acquisto di beni e servizi,2,99,4,ONORARIO COMPONENTE SEGGIO ELETTORALE N. 13,1,3,2,99,4
CAPRIOTTI FRANCESCO,03/10/2022,5117,Altre spese per consultazioni elettorali dell'ente,"145,00","0,00","0,00",,1,3,Acquisto di beni e servizi,2,99,4,ONORARIO COMPONENTE SEGGIO ELETTORALE N. 5,1,3,2,99,4
DI LIBERTO GIADA,03/10/2022,5135,Altre spese per consultazioni elettorali dell'ente,"145,00","0,00","0,00",,1,3,Acquisto di beni e servizi,2,99,4,ONORARIO COMPONENTE SEGGIO ELETTORALE N. 8,1,3,2,99,4
PROSPERI  FRANCESCA,03/10/2022,5172,Altre spese per consultazioni elettorali dell'ente,"145,00","0,00","0,00",,1,3,Acquisto di beni e servizi,2,99,4,ONORARIO COMPONENTE SEGGIO ELETTORALE N. 9,1,3,2,99,4
MARMUGI  DAMIANO,03/10/2022,5152,Altre spese per consultazioni elettorali dell'ente,"145,00","0,00","0,00",,1,3,Acquisto di beni e servizi,2,99,4,ONORARIO COMPONENTE SEGGIO ELETTORALE N. 14,1,3,2,99,4
CHESI SAMANTA,03/10/2022,5119,Altre spese per consultazioni elettorali dell'ente,"145,00","0,00","0,00",,1,3,Acquisto di beni e servizi,2,99,4,ONORARIO COMPONENTE SEGGIO ELETTORALE N. 13,1,3,2,99,4
SERENI MARCO,03/10/2022,5180,Altre spese per consultazioni elettorali dell'ente,"145,00","0,00","0,00",,1,3,Acquisto di beni e servizi,2,99,4,ONORARIO COMPONENTE SEGGIO ELETTORALE N. 11,1,3,2,99,4
MICHELUCCI FRANCESCO,03/10/2022,5158,Altre spese per consultazioni elettorali dell'ente,"145,00","0,00","0,00",,1,3,Acquisto di beni e servizi,2,99,4,ONORARIO COMPONENTE SEGGIO ELETTORALE N. 14,1,3,2,99,4
LUPI MARTINA,03/10/2022,5149,Altre spese per consultazioni elettorali dell'ente,"145,00","0,00","0,00",,1,3,Acquisto di beni e servizi,2,99,4,ONORARIO COMPONENTE SEGGIO ELETTORALE N. 15,1,3,2,99,4
CORNACCHIA ELEONORA,03/10/2022,5130,Altre spese per consultazioni elettorali dell'ente,"145,00","0,00","0,00",,1,3,Acquisto di beni e servizi,2,99,4,ONORARIO COMPONENTE SEGGIO ELETTORALE N. 15,1,3,2,99,4
GUERRI MONICA,03/10/2022,5142,Altre spese per consultazioni elettorali dell'ente,"145,00","0,00","0,00",,1,3,Acquisto di beni e servizi,2,99,4,ONORARIO COMPONENTE SEGGIO ELETTORALE N. 12,1,3,2,99,4
BORTOLAI CRISTINA,03/10/2022,5111,Altre spese per consultazioni elettorali dell'ente,"145,00","0,00","0,00",,1,3,Acquisto di beni e servizi,2,99,4,ONORARIO COMPONENTE SEGGIO ELETTORALE N. 5,1,3,2,99,4
MELANI LUCA,03/10/2022,5156,Altre spese per consultazioni elettorali dell'ente,"145,00","0,00","0,00",,1,3,Acquisto di beni e servizi,2,99,4,ONORARIO COMPONENTE SEGGIO ELETTORALE N. 12,1,3,2,99,4
NENCIONI IURI,03/10/2022,5164,Altre spese per consultazioni elettorali dell'ente,"145,00","0,00","0,00",,1,3,Acquisto di beni e servizi,2,99,4,ONORARIO COMPONENTE SEGGIO ELETTORALE N. 7,1,3,2,99,4
PARRI ELENA,03/10/2022,5168,Altre spese per consultazioni elettorali dell'ente,"145,00","0,00","0,00",,1,3,Acquisto di beni e servizi,2,99,4,onorario componente seggio elettorale n. 1,1,3,2,99,4
LEPORATTI DAMIANO,03/10/2022,5147,Altre spese per consultazioni elettorali dell'ente,"187,00","0,00","0,00",,1,3,Acquisto di beni e servizi,2,99,4,ONORARIO COMPONENTE SEGGIO ELETTORALE N. 15,1,3,2,99,4
RUGGIRELLO ANDREA,03/10/2022,5176,Altre spese per consultazioni elettorali dell'ente,"145,00","0,00","0,00",,1,3,Acquisto di beni e servizi,2,99,4,ONORARIO COMPONENTE SEGGIO ELETTORALE N. 15,1,3,2,99,4
CRISEO TANIA,03/10/2022,5131,Altre spese per consultazioni elettorali dell'ente,"145,00","0,00","0,00",,1,3,Acquisto di beni e servizi,2,99,4,ONORARIO COMPONENTE SEGGIO ELETTORALE N. 1,1,3,2,99,4
CHIARITO MATTEO,03/10/2022,5120,Altre spese per consultazioni elettorali dell'ente,"145,00","0,00","0,00",,1,3,Acquisto di beni e servizi,2,99,4,ONORARIO COMPONENTE SEGGIO ELETTORALE N. 8,1,3,2,99,4
MORLANDI ELENA,03/10/2022,5161,Altre spese per consultazioni elettorali dell'ente,"187,00","0,00","0,00",,1,3,Acquisto di beni e servizi,2,99,4,ONORARIO COMPONENTE SEGGIO ELETTORALE N. 4,1,3,2,99,4
BUCALOSSI VALENTINA,03/10/2022,5112,Altre spese per consultazioni elettorali dell'ente,"145,00","0,00","0,00",,1,3,Acquisto di beni e servizi,2,99,4,ONORARIO COMPONENTE SEGGIO ELETTORALE N. 2,1,3,2,99,4
FANFANI VILMA,03/10/2022,5138,Altre spese per consultazioni elettorali dell'ente,"145,00","0,00","0,00",,1,3,Acquisto di beni e servizi,2,99,4,ONORARIO COMPONENTE SEGGIO ELETTORALE N. 3,1,3,2,99,4
IACOPINI MARZIA,03/10/2022,5143,Altre spese per consultazioni elettorali dell'ente,"145,00","0,00","0,00",,1,3,Acquisto di beni e servizi,2,99,4,ONORARIO COMPONENTE SEGGIO ELETTORALE N. 3,1,3,2,99,4
ROSTA  DANIELE,03/10/2022,5175,Altre spese per consultazioni elettorali dell'ente,"145,00","0,00","0,00",,1,3,Acquisto di beni e servizi,2,99,4,ONORARIO COMPONENTE SEGGIO ELETTORALE N. 5,1,3,2,99,4
PINZANI MATILDE,03/10/2022,5171,Altre spese per consultazioni elettorali dell'ente,"145,00","0,00","0,00",,1,3,Acquisto di beni e servizi,2,99,4,ONORARIO COMPONENTE SEGGIO ELETTORALE N. 7,1,3,2,99,4
VOLPI FABIO,03/10/2022,5186,Altre spese per consultazioni elettorali dell'ente,"145,00","0,00","0,00",,1,3,Acquisto di beni e servizi,2,99,4,ONORARIO COMPONENTE SEGGIO ELETTORALE N. 7,1,3,2,99,4
CHIAVACCI BEATRICE,03/10/2022,5122,Altre spese per consultazioni elettorali dell'ente,"145,00","0,00","0,00",,1,3,Acquisto di beni e servizi,2,99,4,ONORARIO COMPONENTE SEGGIO ELETTORALE N. 9,1,3,2,99,4
MORANDI VIOLA,03/10/2022,5160,Altre spese per consultazioni elettorali dell'ente,"145,00","0,00","0,00",,1,3,Acquisto di beni e servizi,2,99,4,ONORARIO COMPONENTE SEGGIO ELETTORALE N. 10,1,3,2,99,4
CIOLI ADRIANO,03/10/2022,5125,Altre spese per consultazioni elettorali dell'ente,"187,00","0,00","0,00",,1,3,Acquisto di beni e servizi,2,99,4,ONORARIO COMPONENTE SEGGIO ELETTORALE N. 11,1,3,2,99,4
CIOLI ALBERTO,03/10/2022,5126,Altre spese per consultazioni elettorali dell'ente,"145,00","0,00","0,00",,1,3,Acquisto di beni e servizi,2,99,4,ONORARIO COMPONENTE SEGGIO ELETTORALE N. 11,1,3,2,99,4
CAI MARIA VITTORIA,03/10/2022,5113,Altre spese per consultazioni elettorali dell'ente,"145,00","0,00","0,00",,1,3,Acquisto di beni e servizi,2,99,4,ONORARIO COMPONENTE SEGGIO ELETTORALE N. 13,1,3,2,99,4
CICATIELLO MARIO EMANUELE,03/10/2022,5123,Altre spese per consultazioni elettorali dell'ente,"145,00","0,00","0,00",,1,3,Acquisto di beni e servizi,2,99,4,ONORARIO COMPONENTE SEGGIO ELETTORALE N. 13,1,3,2,99,4
CALOSI ELENA,03/10/2022,5114,Altre spese per consultazioni elettorali dell'ente,"187,00","0,00","0,00",,1,3,Acquisto di beni e servizi,2,99,4,ONORARIO COMPONENTE SEGGIO ELETTORALE N. 14,1,3,2,99,4
ANTONINI VIOLA,03/10/2022,5099,Altre spese per consultazioni elettorali dell'ente,"145,00","0,00","0,00",,1,3,Acquisto di beni e servizi,2,99,4,ONORARIO COMPONENTE SEGGIO ELETTORALE N. 15,1,3,2,99,4
TESI S.A.S. DI MAZZANTINI G. & C.,04/10/2022,5201,Altri beni e materiali di consumo n.a.c.,"1.045,00","0,00","40,19",Z59375FE41,1,3,Acquisto di beni e servizi,1,2,999,"Liquidazione Fattura Nr. 10  del 27/09/2022 (di cui Split per euro 40,19) - ACQUISTO MISTO GRANAGLIE PER MANTENIMENTO ANIMALI IN LIBERT� NEL TERRITORIO COMUNALE - AFFIDAMENTO DIRETTO E IMPEGNO DI SPESA",1,3,1,2,999
LDP PROGETTI GIS S.R.L.,04/10/2022,5193,Gestione e manutenzione applicazioni,"5.000,00","0,00","901,64",ZFA377FB5F,1,3,Acquisto di beni e servizi,2,19,1,"Liquidazione Fattura Nr. 117PA del 28/09/2022 - AFFIDAMENTO DEL SERVIZIO DI AGGIORNAMENTO DEL PORTALE SIT/INTERVENTI A LDP PROGETTI GIS 2022 - MEPA (di cui Split per euro 901,64)",1,3,2,19,1
LDP PROGETTI GIS S.R.L.,04/10/2022,5192,Gestione e manutenzione applicazioni,"124,00","0,00","22,36",ZFA377FB5F,1,3,Acquisto di beni e servizi,2,19,1,"Liquidazione Fattura Nr. 117PA del 28/09/2022 - AFFIDAMENTO DEL SERVIZIO DI AGGIORNAMENTO DEL PORTALE SIT/INTERVENTI A LDP PROGETTI GIS 2022 - MEPA (di cui Split per euro 22,36)",1,3,2,19,1
S.I.A.E. SOCIET� ITALIANA DEGLI AUTORI ED EDITORI,04/10/2022,5188,"Altre spese per relazioni pubbliche, convegni e mostre, pubblicit� n.a.c","139,37","0,00","25,13",,1,3,Acquisto di beni e servizi,2,2,999,"Liquidazione Fattura Nr. 1622021542  del 22/09/2022 (di cui Split per euro 25,13) - Uff.EMPOLI TOGLIATTI PER.18-09-2022-18-09-2022 Danza 060410820220 ",1,3,2,2,999
ETRURIA P.A. SRL,04/10/2022,5196,Gestione e manutenzione applicazioni,"2.244,80","0,00","404,80",Z1137AF139,1,3,Acquisto di beni e servizi,2,19,1,"Liquidazione Fattura Nr. 1236/00000  del 24/09/2022 (di cui Split per euro 404,80) - AFFIDAMENTO DEL SERVIZIO DI AGGIORNAMENTO SOFTWARE DELLA APP MUSEO LEONARDIANO",1,3,2,19,1
CO&SO EMPOLI - CONS. DI COOP. SOCIALI - SOCIETA' COOPERATIVA,04/10/2022,5200,Altre spese per contratti di servizio pubblico,"92,26","0,00","16,64",9042374315,1,3,Acquisto di beni e servizi,2,15,999,"Liquidazione Fattura Nr. 000733-2C0  del 31/08/2022 (di cui Split per euro 16,64) - Fatt. regime sciss.pag. Oneri DUVRI Fattura soggetta ""scissione dei pagamenti - Art. 17-ter DPR 633/72",1,3,2,15,999
UNIONE DEI COMUNI CIRCONDARIO EMPOLESE VALDELSA,04/10/2022,5189,Trasferimenti correnti a Unioni di Comuni,"1.200,00","0,00","0,00",,1,4,Trasferimenti correnti,1,2,5,RIMBORSO ACQUISTO CODICI CIG,1,4,1,2,5
MONDADORI MEDIA S.P.A.,04/10/2022,5199,Altre licenze,"366,00","0,00","66,00",,1,3,Acquisto di beni e servizi,2,7,7,"Liquidazione Fattura Nr. 2096003296 del 19/09/2022 - Cessione diritti e fornitura f.26v del Codice Atlantico a 300 dpi e a colori per pubblicazione (uso interno) edita da Firenze, Giunt i, 2023, 400 copie, 1 lingua, distribuzione Italia + b",1,3,2,7,7
CALDARINI & ASSOCIATI SRL,04/10/2022,5190,Acquisto di servizi per altre spese per formazione e addestramento n.a.c.,"282,00","0,00","0,00",Z6B378EB48,1,3,Acquisto di beni e servizi,2,4,999,Liquidazione Fattura Nr. 1008.22  del 16/09/2022 - Fornitura generica,1,3,2,4,999
LIGUIGLI FINE ARTS SERVICE DI LIGUIGLI NICOLA & C. SAS,04/10/2022,5197,Altri servizi ausiliari n.a.c.,"785,97","0,00","141,73",Z3530E1E15,1,3,Acquisto di beni e servizi,2,13,999,"Liquidazione Fattura Nr. EP/79  del 05/09/2022 (di cui Split per euro 141,73) - Deposito mese di agosto 2022",1,3,2,13,999
U.P.I.E. DI MARLIN RICCARDO & C. SNC,04/10/2022,5194,Giornali e riviste,"431,60","0,00","16,60",Z69376773E,1,3,Acquisto di beni e servizi,1,1,1,"Liquidazione Fattura Nr. 427 del 23/09/2022 - FORNITURA DI PERIODICI PER LA BIBLIOTECA COMUNALE LEONARDIANA DI VINCI: DETERMINA A CONTRARRE E AFFIDAMENTO (di cui Split per euro 16,60)",1,3,1,1,1
U.P.I.E. DI MARLIN RICCARDO & C. SNC,04/10/2022,5195,Giornali e riviste,"845,00","0,00","0,00",Z69376773E,1,3,Acquisto di beni e servizi,1,1,1,Liquidazione Fattura Nr. 420 del 21/09/2022 - FORNITURA DI PERIODICI PER LA BIBLIOTECA COMUNALE LEONARDIANA DI VINCI: DETERMINA A CONTRARRE E AFFIDAMENTO,1,3,1,1,1
BETTINI TEMPORECORD DI BETTINI GIOVANNI,04/10/2022,5198,Altri servizi diversi n.a.c.,"183,00","0,00","33,00",ZD6357483B,1,3,Acquisto di beni e servizi,2,99,999,"Liquidazione Fattura Nr. 103  del 22/09/2022 (di cui Split per euro 33,00) - ACCORDO QUADRO PER IL SERVIZIO DI ASSISTENZA TECNICA SPECIALIZZATA E MANUTENZIONE DEI SISTEMI AUDIO VIDEO IN USO NELLE SEDI MUSEALI ED ESPOSITIVE DEL COMUNE DI VIN",1,3,2,99,999
EUROCOM - ITALIA S.R.L.,04/10/2022,5191,Beni per consultazioni elettorali,"4.810,70","0,00","867,50",ZFA3775E7F,1,3,Acquisto di beni e servizi,1,2,10,"Liquidazione Fattura Nr. 1/20  del 31/08/2022 (di cui Split per euro 867,50) - VENDITA",1,3,1,2,10
POSTE ITALIANE SPA SOCIETA' CON SOCIO UNICO,07/10/2022,5209,Spese postali,"447,24","0,00","0,00",Z14361EF92,1,3,Acquisto di beni e servizi,2,16,2,Liquidazione Fattura Nr. 1022230349  del 07/09/2022 - 30027076-014 postac easy luglio 2022,1,3,2,16,2
POSTE ITALIANE SPA SOCIETA' CON SOCIO UNICO,07/10/2022,5210,Spese postali,"73,50","0,00","0,00",Z14361EF92,1,3,Acquisto di beni e servizi,2,16,2,Liquidazione Fattura Nr. 1022236550  del 21/09/2022 - 30027076-015 pickup posta giugno 2022,1,3,2,16,2
POSTE ITALIANE SPA SOCIETA' CON SOCIO UNICO,07/10/2022,5211,Spese postali,"1.405,43","0,00","0,00",Z14361EF92,1,3,Acquisto di beni e servizi,2,16,2,Liquidazione Fattura Nr. 1022253500  del 27/09/2022 - 30027076-014 posta easy agosto 2022,1,3,2,16,2
POSTE ITALIANE SPA SOCIETA' CON SOCIO UNICO,07/10/2022,5212,Spese postali,"731,50","0,00","0,00",Z14361EF92,1,3,Acquisto di beni e servizi,2,16,2,Liquidazione Fattura Nr. 1022258879  del 03/10/2022 - 30027076-014 posta easy giugno 2022,1,3,2,16,2
BARTALUCCI SAS DI BARTALUCCI ELENA E BARTALUCCI MONICA,07/10/2022,5207,Altri servizi ausiliari n.a.c.,"19,08","0,00","3,44",Z0136F1066,1,3,Acquisto di beni e servizi,2,13,999,"Liquidazione Fattura Nr. 426/P  del 14/09/2022 (di cui Split per euro 3,44) - trascrizione CC 11  luglio 2022",1,3,2,13,999
BARTALUCCI SAS DI BARTALUCCI ELENA E BARTALUCCI MONICA,07/10/2022,5208,Altri servizi ausiliari n.a.c.,"39,41","0,00","7,11",Z0136F1066,1,3,Acquisto di beni e servizi,2,13,999,"Liquidazione Fattura Nr. 425/P  del 14/09/2022 (di cui Split per euro 7,11) - trascrizione CC 11 marzo 2022",1,3,2,13,999
S.I.A.E. SOCIET� ITALIANA DEGLI AUTORI ED EDITORI,07/10/2022,5203,"Altre spese per relazioni pubbliche, convegni e mostre, pubblicit� n.a.c","34,77","0,00","6,27",,1,3,Acquisto di beni e servizi,2,2,999,"Liquidazione Fattura Nr. 1622021544  del 22/09/2022 (di cui Split per euro 6,27) - Uff.EMPOLI TEATRO DI VINCI PER.23-09-2022-23-09-2022 Prosa / Cabaret 060410820220 ",1,3,2,2,999
S.I.A.E. SOCIET� ITALIANA DEGLI AUTORI ED EDITORI,07/10/2022,5204,Organizzazione e partecipazione a manifestazioni e convegni,"139,37","0,00","25,13",,1,3,Acquisto di beni e servizi,2,2,5,"Liquidazione Fattura Nr. 1622021541  del 22/09/2022 (di cui Split per euro 25,13) - Uff.EMPOLI VILLA REGHINI PER.02-09-2022-03-09-2022 Esecuz. musicali OR 060410820220 ",1,3,2,2,5
A.N.A.C. - AUTORITA' NAZIONALE ANTICORRUZIONE,07/10/2022,5206,Trasferimenti correnti a altre Amministrazioni Centrali n.a.c.,"150,00","0,00","0,00",,1,4,Trasferimenti correnti,1,1,999,PAGAMENTO MAV ANAC 2� QUADRIMESTRE 2022,1,4,1,1,999
CREMONA    DIEGO,07/10/2022,5205,Patrocinio legale,"2.480,50","391,00","0,00",Z47349C2DF,1,3,Acquisto di beni e servizi,2,11,6,LIQUIDAZIONE FATTURA NR. 41/001  DEL 05/09/2022 - COMUNE DI VINCI V OPERA DELLE CHIESE CRISTIANE DEI FRATELLI-CASSAZIONE - ACCONTO- CORTE SUPREMA DI CASSAZIONE- RG 32253_2021- CIG Z47349C2DF,1,3,2,11,6
GIALLO MARE MINIMAL TEATRO,07/10/2022,5213,Trasferimenti correnti a Istituzioni Sociali Private ,"15.000,00","600,00","0,00",,1,4,Trasferimenti correnti,4,1,1,CONTRIBUTO PER MULTISCENA 2022,1,4,4,1,1
AGENZIA DELLE ENTRATE,10/10/2022,5214,Patrocinio legale,"210,00","0,00","0,00",,1,3,Acquisto di beni e servizi,2,11,6,Atto di appello contro la sentenza della CTP 107 del 14/02/2022 - Contributo Unificato,1,3,2,11,6
VENTURINI BIBITE DI VENTURINI ANNA E NICOLA S.N.C.,11/10/2022,5217,Altri beni e materiali di consumo n.a.c.,"297,66","0,00","0,00",,1,3,Acquisto di beni e servizi,1,2,999,PAGAMENTO BUONO ECONOMALE NR. 200074 - ACQUISTO BENI PER MANUTENZIONE SEDI ISTITUZIONALI*-ACQUISTO RIFORNIMENTO IDRICO ,1,3,1,2,999
BAZAR CINELLI  DI CINELLI ILARIA E PAOLO,11/10/2022,5224,"Carta, cancelleria e stampati","10,00","0,00","0,00",,1,3,Acquisto di beni e servizi,1,2,1,"PAGAMENTO BUONO ECONOMALE NR. 200068 - ACQUISTO STAMPATI, CANCELLERIA E MATERIALE VARIO PER GLI UFFICI DELL'ENTE-ACQUISTO 10 PORTA BADGE PER ADDETTI ALLA PROVA CONCORSUALE",1,3,1,2,1
BAZAR CINELLI  DI CINELLI ILARIA E PAOLO,11/10/2022,5215,Altri beni e materiali di consumo n.a.c.,"25,00","0,00","0,00",,1,3,Acquisto di beni e servizi,1,2,999,PAGAMENTO BUONO ECONOMALE NR. 200072 - SPESE PER L'ACQUISTO DI BENI PER GLI ORGANI ISTITUZIONALI-ACQUISTO NASTRO TRICOLORE 10 MT,1,3,1,2,999
BAZAR CINELLI  DI CINELLI ILARIA E PAOLO,11/10/2022,5232,"Carta, cancelleria e stampati","2,50","0,00","0,00",,1,3,Acquisto di beni e servizi,1,2,1,"PAGAMENTO BUONO ECONOMALE NR. 200076 - ACQUISTO STAMPATI, CANCELLERIA E MATERIALE VARIO PER LE BIBLIOTECHE-ACQUISTO FERMACAMPIONI PER INZIATIVA DOMENICHE IN BIBLIOTECA",1,3,1,2,1
BAZAR CINELLI  DI CINELLI ILARIA E PAOLO,11/10/2022,5233,"Carta, cancelleria e stampati","3,50","0,00","0,00",,1,3,Acquisto di beni e servizi,1,2,1,"PAGAMENTO BUONO ECONOMALE NR. 200077 - ACQUISTO STAMPATI, CANCELLERIA E MATERIALE VARIO PER LE BIBLIOTECHE-ACQUISTO PILE DI RICAMBIO PER TELECOMANDO PORTA",1,3,1,2,1
BAZAR CINELLI  DI CINELLI ILARIA E PAOLO,11/10/2022,5225,"Carta, cancelleria e stampati","58,50","0,00","0,00",,1,3,Acquisto di beni e servizi,1,2,1,"PAGAMENTO BUONO ECONOMALE NR. 200080 - ACQUISTO STAMPATI, CANCELLERIA E MATERIALE VARIO PER GLI UFFICI DELL'ENTE-ACQUISTO MATERIALE DI CANCELLERIA URGENTE PER GLI UFFICI",1,3,1,2,1
BAZAR CINELLI  DI CINELLI ILARIA E PAOLO,11/10/2022,5226,"Carta, cancelleria e stampati","2,50","0,00","0,00",,1,3,Acquisto di beni e servizi,1,2,1,"PAGAMENTO BUONO ECONOMALE NR. 200084 - ACQUISTO STAMPATI, CANCELLERIA E MATERIALE VARIO PER GLI UFFICI DELL'ENTE-ACQUISTO PENNARELLINI IDROCOLOR",1,3,1,2,1
BAZAR CINELLI  DI CINELLI ILARIA E PAOLO,11/10/2022,5227,"Carta, cancelleria e stampati","19,50","0,00","0,00",,1,3,Acquisto di beni e servizi,1,2,1,"PAGAMENTO BUONO ECONOMALE NR. 200085 - ACQUISTO STAMPATI, CANCELLERIA E MATERIALE VARIO PER GLI UFFICI DELL'ENTE-ACQUISTO FOGLI ADESIVI FORMATO A4 PER COSTOLE FALDONI CONSIGLIO",1,3,1,2,1
BAZAR CINELLI  DI CINELLI ILARIA E PAOLO,11/10/2022,5228,"Carta, cancelleria e stampati","21,00","0,00","0,00",,1,3,Acquisto di beni e servizi,1,2,1,"PAGAMENTO BUONO ECONOMALE NR. 200086 - ACQUISTO STAMPATI, CANCELLERIA E MATERIALE VARIO PER GLI UFFICI DELL'ENTE-ACQUISTO MATERIALE VARIO DI CANCELLERIA",1,3,1,2,1
COLORIFICIO CAPPELLI  DI STEFANO CAPPELLI,11/10/2022,5235,"Carta, cancelleria e stampati","36,72","0,00","0,00",,1,3,Acquisto di beni e servizi,1,2,1,"PAGAMENTO BUONO ECONOMALE NR. 200073 - ACQUISTO STAMPATI, CANCELLERIA E MATERIALE VARIO PER I MUSEI-ACQUISTO MATERIALE DIDATTICO PER LABORATORI MUSEALI BAMBINI",1,3,1,2,1
POSTE ITALIANE SPA SOCIETA' CON SOCIO UNICO,11/10/2022,5229,Spese postali,"13,70","0,00","0,00",,1,3,Acquisto di beni e servizi,2,16,2,PAGAMENTO BUONO ECONOMALE NR. 200075 - SPESE PER SERVIZI POSTALI E DISPEDIZIONE-RACCOMANDATA A1 URGENTE PER IL MINISTERO DI GIUSTIZIA,1,3,2,16,2
UNICOOP FIRENZE SOCIETA' COOPERATIVA,11/10/2022,5234,"Carta, cancelleria e stampati","8,97","0,00","0,00",,1,3,Acquisto di beni e servizi,1,2,1,"PAGAMENTO BUONO ECONOMALE NR. 200083 - ACQUISTO STAMPATI, CANCELLERIA E MATERIALE VARIO PER LE BIBLIOTECHE-ACQUISTO PILE ",1,3,1,2,1
MEDIA WORLD - MEDIAMARKET SPA,11/10/2022,5222,Altri beni e materiali di consumo n.a.c.,"19,99","0,00","0,00",,1,3,Acquisto di beni e servizi,1,2,999,PAGAMENTO BUONO ECONOMALE NR. 200069 - ACQUISTO DI BENI E PICCOLA ATTREZZATURA PER IL FUNZIONAMENTO DELL'ENTE-ACQUISTO MOUSE ERGONOMICO PER DIPENDENTE CON RICHIESTA CERTIFICATA,1,3,1,2,999
EMPORIO DELL'AUTO SRL,11/10/2022,5230,"Manutenzione ordinaria e riparazioni di mezzi di trasporto ad uso civile, di sicurezza e ordine pubblico","69,88","0,00","0,00",,1,3,Acquisto di beni e servizi,2,9,1,PAGAMENTO BUONO ECONOMALE NR. 200070 - SPESE PER MANUTENZIONE VEICOLI ADDETTI ALLA MANUTENZIONE DEI SERVIZI PER SPORT E TEMPO LIBERO,1,3,2,9,1
B & B UFFICIO SRL,11/10/2022,5218,Altri beni e materiali di consumo n.a.c.,"60,00","0,00","0,00",,1,3,Acquisto di beni e servizi,1,2,999,PAGAMENTO BUONO ECONOMALE NR. 200079 - ACQUISTO DI BENI E PICCOLA ATTREZZATURA PER IL FUNZIONAMENTO DELL'ENTE-ACQUISTO FIRMA DIGITALE PERCH� SCADUTA PER B.A.,1,3,1,2,999
B & B UFFICIO SRL,11/10/2022,5219,Altri beni e materiali di consumo n.a.c.,"60,00","0,00","0,00",,1,3,Acquisto di beni e servizi,1,2,999,PAGAMENTO BUONO ECONOMALE NR. 200081 - ACQUISTO DI BENI E PICCOLA ATTREZZATURA PER IL FUNZIONAMENTO DELL'ENTE-ACQUISTA FIRMA DIGITALE PER ASSESSORE S.I.,1,3,1,2,999
B & B UFFICIO SRL,11/10/2022,5220,Altri beni e materiali di consumo n.a.c.,"60,00","0,00","0,00",,1,3,Acquisto di beni e servizi,1,2,999,PAGAMENTO BUONO ECONOMALE NR. 200082 - ACQUISTO DI BENI E PICCOLA ATTREZZATURA PER IL FUNZIONAMENTO DELL'ENTE-ACQUISTO FIRMA DIGITALE PER SEGRETARIO COMUNALE ,1,3,1,2,999
B & B UFFICIO SRL,11/10/2022,5223,"Carta, cancelleria e stampati","11,20","0,00","0,00",,1,3,Acquisto di beni e servizi,1,2,1,"PAGAMENTO BUONO ECONOMALE NR. 200088 - ACQUISTO STAMPATI, CANCELLERIA E MATERIALE VARIO PER GLI UFFICI DELL'ENTE-ACQUISTO CARTELLINE PER CONSEGNA DOCUMENTI ONORARI AI CITTADINI",1,3,1,2,1
MARVOGLI STEFANIA,11/10/2022,5236,"Carta, cancelleria e stampati","33,30","0,00","0,00",,1,3,Acquisto di beni e servizi,1,2,1,"PAGAMENTO BUONO ECONOMALE NR. 200067 - ACQUISTO STAMPATI, CANCELLERIA E MATERIALE VARIO PER I MUSEI-ACQUISTO TRE PENNE STILOGRAFICHE PER FFIRME LIBRO OSPITI E ATTI",1,3,1,2,1
L.A. S.R.L.,11/10/2022,5216,Altri beni e materiali di consumo n.a.c.,"109,19","0,00","0,00",,1,3,Acquisto di beni e servizi,1,2,999,PAGAMENTO BUONO ECONOMALE NR. 200078 - ACQUISTO BENI PER MANUTENZIONE SEDI ISTITUZIONALI- ACQUISTO ANTICADUTA SCORREVOLE PE RIPARAZIONE URGENTE TETTO UFFICIO TURISTICO A SEGUITO EVENTO ,1,3,1,2,999
L'OPEROSA SPA,11/10/2022,5244,Servizi di pulizia e lavanderia,"1.443,97","0,00","260,39",88141724D5,1,3,Acquisto di beni e servizi,2,13,2,"Liquidazione Fattura Nr. 454/CMF  del 30/05/2022 (di cui Split per euro 260,39) - PULIZIA PALESTRE APRILE 2022",1,3,2,13,2
L'OPEROSA SPA,11/10/2022,5241,Servizi di pulizia e lavanderia,"128,32","0,00","23,14",88141724D5,1,3,Acquisto di beni e servizi,2,13,2,"Liquidazione Fattura Nr. 763/CMF  del 16/09/2022 (di cui Split per euro 23,14) - pulizia biblioteca con ICS scrutini scuole 10,11,13 giu 22
",1,3,2,13,2
L'OPEROSA SPA,11/10/2022,5242,Servizi di pulizia e lavanderia,"1.443,97","0,00","260,39",88141724D5,1,3,Acquisto di beni e servizi,2,13,2,"Liquidazione Fattura Nr. 762/CMF  del 16/09/2022 (di cui Split per euro 260,39) - pulizia palestre giugno 2022",1,3,2,13,2
L'OPEROSA SPA,11/10/2022,5237,Servizi di pulizia e lavanderia,"3.142,41","0,00","566,66",88141724D5,1,3,Acquisto di beni e servizi,2,13,2,"Liquidazione Fattura Nr. 764/CMF  del 16/09/2022 (di cui Split per euro 566,66) - pulizia edifici comunali luglio 2022",1,3,2,13,2
L'OPEROSA SPA,11/10/2022,5240,Servizi di pulizia e lavanderia,"335,16","0,00","60,44",88141724D5,1,3,Acquisto di beni e servizi,2,13,2,"Liquidazione Fattura Nr. 764/CMF  del 16/09/2022 (di cui Split per euro 60,44) - pulizia edifici comunali luglio 2022",1,3,2,13,2
L'OPEROSA SPA,11/10/2022,5245,Servizi di pulizia e lavanderia,"77,57","0,00","13,99",88141724D5,1,3,Acquisto di beni e servizi,2,13,2,"Liquidazione Fattura Nr. 764/CMF  del 16/09/2022 (di cui Split per euro 13,99) - pulizia edifici comunali luglio 2022",1,3,2,13,2
L'OPEROSA SPA,11/10/2022,5238,Servizi di pulizia e lavanderia,"3.142,41","0,00","566,66",88141724D5,1,3,Acquisto di beni e servizi,2,13,2,"Liquidazione Fattura Nr. 761/CMF  del 16/09/2022 (di cui Split per euro 566,66) - PULIZIA EDIFICI COMUNALI GIUGNO 2022",1,3,2,13,2
L'OPEROSA SPA,11/10/2022,5239,Servizi di pulizia e lavanderia,"335,16","0,00","60,44",88141724D5,1,3,Acquisto di beni e servizi,2,13,2,"Liquidazione Fattura Nr. 761/CMF  del 16/09/2022 (di cui Split per euro 60,44) - PULIZIA EDIFICI COMUNALI GIUGNO 2022",1,3,2,13,2
L'OPEROSA SPA,11/10/2022,5246,Servizi di pulizia e lavanderia,"77,57","0,00","13,99",88141724D5,1,3,Acquisto di beni e servizi,2,13,2,"Liquidazione Fattura Nr. 761/CMF  del 16/09/2022 (di cui Split per euro 13,99) - PULIZIA EDIFICI COMUNALI GIUGNO 2022",1,3,2,13,2
L'OPEROSA SPA,11/10/2022,5243,Servizi di pulizia e lavanderia,"1.443,97","0,00","260,39",88141724D5,1,3,Acquisto di beni e servizi,2,13,2,"Liquidazione Fattura Nr. 765/CMF  del 16/09/2022 (di cui Split per euro 260,39) - pulizia palestre luglio 2022",1,3,2,13,2
MASCAGNI FORNITURE DI MASCAGNI MASSIMILIANO,11/10/2022,5221,Altri beni e materiali di consumo n.a.c.,"60,00","0,00","0,00",,1,3,Acquisto di beni e servizi,1,2,999,PAGAMENTO BUONO ECONOMALE NR. 200071 - ACQUISTO DI BENI E PICCOLA ATTREZZATURA PER IL FUNZIONAMENTO DELL'ENTE-ACQUISTO FIRMA DIGITALE IN SOSTITUZIONE DI QUELLA SCADUTA PER DIPENDENTE D. C.,1,3,1,2,999
IMPRESA GENERALE ITALIA SRL,11/10/2022,5231,"Manutenzione ordinaria e riparazioni di mezzi di trasporto ad uso civile, di sicurezza e ordine pubblico","5,00","0,00","0,00",,1,3,Acquisto di beni e servizi,2,9,1,PAGAMENTO BUONO ECONOMALE NR. 200087 - SPESE PER MANUTENZIONE VEICOLI ADDETTI ALLA MANUTENZIONE DEI SERVIZI PER SPORT E TEMPO LIBERO-ACQUISTO RACCORDO PER SISTEMA OLIO IDRAULICO TRATTORINO,1,3,2,9,1
ERARIO DELLO STATO PER PAGAMENTO I.V.A.,14/10/2022,5248,Versamenti IVA a debito per le gestioni commerciali,"9.580,77","0,00","0,00",,1,10,Altre spese correnti,3,1,1,VERSAMENTO IVA A DEBITO MESE DI SETTEMBRE 2022. IMPEGNO E LIQUIDAZIONE.,1,10,3,1,1
STUDIO LASSI E PISACRETA ARCHITETTI,14/10/2022,5266,Incarichi professionali per la realizzazione di investimenti,"9.459,34","1.491,07","0,00",90495450C8,2,2,Investimenti fissi lordi e acquisto di terreni,3,5,1,LIQUIDAZIONE FATTURA NR. 21  DEL 03/10/2022 - RIQUALIFICAZIONE URBANA DI UNO SPAZIO DEL CENTRO ABITATO DI VINCI DENOMINATO �PINETINA DELLA DOCCIA� E DI UN TRATTO DI VIABILITA� DI VIA ROSSI � INCARICO DI PROGETTAZIONE E DIREZIONE LAVORI ,2,2,3,5,1
SCALI LUCIANO,14/10/2022,5265,Incarichi professionali per la realizzazione di investimenti,"4.018,19","633,39","0,00",,2,2,Investimenti fissi lordi e acquisto di terreni,3,5,1,LIQUIDAZIONE FATTURA NR. FATPAM 1/02  DEL 22/09/2016-RILIEVO STRUMENTALE - LIQUIDAZIONE A INARCASSA PER INTERVENTO SOSTITUTIVO STAZIONE APPALTANTE,2,2,3,5,1
CINELLI TACITO E GABBANINI DIANA,14/10/2022,5251,Locazione di beni immobili,"2.500,00","0,00","0,00",,1,3,Acquisto di beni e servizi,2,7,1,canone locazione immobile via Fucini angolo via Rossi-parte adibita a URP-4�trimestre 2022,1,3,2,7,1
CINELLI TACITO E GABBANINI DIANA,14/10/2022,5252,Locazione di beni immobili,"1.677,47","0,00","0,00",,1,3,Acquisto di beni e servizi,2,7,1,canone locazione immobile via Fucini angolo via Rossi-parte adibita a biblioteca civica-4�trimestre 2022,1,3,2,7,1
PROFILI ASCENSORI SRL,14/10/2022,5261,Manutenzione ordinaria e riparazioni di impianti e macchinari,"263,07","0,00","47,44",ZC4306BA15,1,3,Acquisto di beni e servizi,2,9,4,"LIQUIDAZIONE FATTURA NR. 000030/22/PA  DEL 19/09/2022 (DI CUI SPLIT PER EURO 47,44) - MANUTENZIONE IMPIANTI ELEVATORI ANNO 2021.22.23",1,3,2,9,4
PROFILI ASCENSORI SRL,14/10/2022,5257,Manutenzione ordinaria e riparazioni di impianti e macchinari,"789,21","0,00","142,32",ZC4306BA15,1,3,Acquisto di beni e servizi,2,9,4,"LIQUIDAZIONE FATTURA NR. 000030/22/PA  DEL 19/09/2022 (DI CUI SPLIT PER EURO 142,32) - MANUTENZIONE IMPIANTI ELEVATORI ANNO 2021.22.23",1,3,2,9,4
PROFILI ASCENSORI SRL,14/10/2022,5258,Manutenzione ordinaria e riparazioni di impianti e macchinari,"258,32","0,00","46,58",ZC4306BA15,1,3,Acquisto di beni e servizi,2,9,4,"Liquidazione Fattura Nr. 000030/22/PA  del 19/09/2022 (di cui Split per euro 46,58) - MANUTENZIONE IMPIANTI ELEVATORI ANNO 2021.22.23",1,3,2,9,4
PROFILI ASCENSORI SRL,14/10/2022,5262,Manutenzione ordinaria e riparazioni di impianti e macchinari,"255,72","0,00","46,11",ZC4306BA15,1,3,Acquisto di beni e servizi,2,9,4,"LIQUIDAZIONE FATTURA NR. 000029/22/PA  DEL 19/09/2022 (DI CUI SPLIT PER EURO 46,11) - MANUTENZIONE IMPIANTI ELEVATORI ANNI 2021, 2022 E 2023 ",1,3,2,9,4
PROFILI ASCENSORI SRL,14/10/2022,5263,Manutenzione ordinaria e riparazioni di impianti e macchinari,"255,72","0,00","46,11",ZC4306BA15,1,3,Acquisto di beni e servizi,2,9,4,"LIQUIDAZIONE FATTURA NR. 000029/22/PA  DEL 19/09/2022 (DI CUI SPLIT PER EURO 46,11) - MANUTENZIONE IMPIANTI ELEVATORI ANNI 2021, 2022 E 2023 ",1,3,2,9,4
PROFILI ASCENSORI SRL,14/10/2022,5253,Manutenzione ordinaria e riparazioni di impianti e macchinari,"789,21","0,00","142,32",ZC4306BA15,1,3,Acquisto di beni e servizi,2,9,4,"LIQUIDAZIONE FATTURA NR. 000029/22/PA  DEL 19/09/2022 (DI CUI SPLIT PER EURO 142,32) - MANUTENZIONE IMPIANTI ELEVATORI ANNI 2021, 2022 E 2023 ",1,3,2,9,4
PROFILI ASCENSORI SRL,14/10/2022,5254,Manutenzione ordinaria e riparazioni di impianti e macchinari,"263,07","0,00","47,44",ZC4306BA15,1,3,Acquisto di beni e servizi,2,9,4,"LIQUIDAZIONE FATTURA NR. 000029/22/PA  DEL 19/09/2022 (DI CUI SPLIT PER EURO 47,44) - MANUTENZIONE IMPIANTI ELEVATORI ANNI 2021, 2022 E 2023 ",1,3,2,9,4
PROFILI ASCENSORI SRL,14/10/2022,5255,Manutenzione ordinaria e riparazioni di impianti e macchinari,"387,25","0,00","69,83",ZC4306BA15,1,3,Acquisto di beni e servizi,2,9,4,"LIQUIDAZIONE FATTURA NR. 000029/22/PA  DEL 19/09/2022 (DI CUI SPLIT PER EURO 69,83) - MANUTENZIONE IMPIANTI ELEVATORI ANNI 2021, 2022 E 2023 ",1,3,2,9,4
PROFILI ASCENSORI SRL,14/10/2022,5256,Manutenzione ordinaria e riparazioni di impianti e macchinari,"387,25","0,00","69,83",ZC4306BA15,1,3,Acquisto di beni e servizi,2,9,4,"LIQUIDAZIONE FATTURA NR. 000029/22/PA  DEL 19/09/2022 (DI CUI SPLIT PER EURO 69,83) - MANUTENZIONE IMPIANTI ELEVATORI ANNI 2021, 2022 E 2023 ",1,3,2,9,4
PROFILI ASCENSORI SRL,14/10/2022,5259,Manutenzione ordinaria e riparazioni di impianti e macchinari,"172,22","0,00","31,06",ZC4306BA15,1,3,Acquisto di beni e servizi,2,9,4,"Liquidazione Fattura Nr. 000029/22/PA  del 19/09/2022 (di cui Split per euro 31,06) - MANUTENZIONE IMPIANTI ELEVATORI ANNI 2021, 2022 E 2023 ",1,3,2,9,4
TAU ENGINEERING SRL,14/10/2022,5264,Fabbricati ad uso scolastico,"1.141,92","0,00","205,92",Z29371085B,2,2,Investimenti fissi lordi e acquisto di terreni,1,9,3,"Liquidazione Fattura Nr. FEPA 050  del 14/09/2022 (di cui Split per euro 205,92) - Verifica del progetto esecutivo nuova scuola infanzia Vinci",2,2,1,9,3
GALLI TORRINI SRL,14/10/2022,5250,pubblicit�,"11.467,29","0,00","2.067,87",ZA4369B77A,1,3,Acquisto di beni e servizi,2,2,4,"Liquidazione Fattura Nr. FPA 23/22  del 02/10/2022 (di cui Split per euro 2.067,87) - servizio ufficio stampa mesi 7 dal 1� giugno al 30 settembre 2022",1,3,2,2,4
SEASIDE S.P.A.,14/10/2022,5260,Trasferimenti correnti a altre imprese,"3.251,76","0,00","338,74",,1,4,Trasferimenti correnti,3,99,999,"LIQUIDAZIONE FATTURA NR. 6006000088  DEL 05/08/2022 (DI CUI SPLIT PER EURO 338,74) -  CORRISPETTIVO IMPIANTO FOTOVOLTAICO RIF. DET. 77 DEL 16.05.22 PRIMO QUADRIMESTRE 2022 GENNAIO FEBBRAIO MARZO APRILE 2022 QUOTA INVESTIMENTI IVA 10&AMP;PER",1,4,3,99,999
GRAFICHE E. GASPARI S.R.L.,18/10/2022,5318,Assistenza all'utente e formazione,"1.098,00","0,00","198,00",Z683766553,1,3,Acquisto di beni e servizi,2,19,2,"Liquidazione Fattura Nr. 15888/S  del 30/09/2022 (di cui Split per euro 198,00) - SERVIZIO DI SUPPORTO ALLA COMPILAZIONE DEL QUESTIONARIO DEI FABBISOGNI STANDARD",1,3,2,19,2
CENTRO STUDI ENTI LOCALI S.P.A.,18/10/2022,5313,Altre prestazioni professionali e specialistiche n.a.c.,"750,00","0,00","135,25",Z73343A914,1,3,Acquisto di beni e servizi,2,11,999,"Liquidazione Fattura Nr. 615/AE  del 30/09/2022 (di cui Split per euro 135,25) - Fattura vendita AE Split Pay",1,3,2,11,999
ASSOCIAZIONE ARISTOGATTI EMPOLI,18/10/2022,5308,Trasferimenti correnti a Istituzioni Sociali Private ,"4.000,00","0,00","0,00",,1,4,Trasferimenti correnti,4,1,1,DET. 99 / 2022 - CONTRIBUTO PER ATTIVITA' ANNUALE,1,4,4,1,1
BARTALUCCI SAS DI BARTALUCCI ELENA E BARTALUCCI MONICA,18/10/2022,5311,Altri servizi ausiliari n.a.c.,"31,94","0,00","5,76",Z0136F1066,1,3,Acquisto di beni e servizi,2,13,999,"Liquidazione Fattura Nr. 444/P  del 30/09/2022 (di cui Split per euro 5,76) - trascrizione CC del 25/03/2022 - 77 min.",1,3,2,13,999
SINTESI S.R.L. - SISTEMI INTEGRATI PER UFFICIO,18/10/2022,5319,Servizi per i sistemi e relativa manutenzione,"2.013,00","0,00","363,00",ZB237401D9,1,3,Acquisto di beni e servizi,2,19,5,"Liquidazione Fattura Nr. 32/E  del 30/09/2022 (di cui Split per euro 363,00) - SERVIZIO DI MANUTENZIONE ED ASSISTENZA A COSTO COPIA/STAMPA PER DUE MULTIFUNZIONE DELL'ENTE PER UN PERIODO DI MESI 18- DETERMINA A CONTRARRE E DI AFFIDAMENTO DIR",1,3,2,19,5
S.I.A.E. SOCIET� ITALIANA DEGLI AUTORI ED EDITORI,18/10/2022,5310,"Altre spese per relazioni pubbliche, convegni e mostre, pubblicit� n.a.c","147,29","0,00","26,56",,1,3,Acquisto di beni e servizi,2,2,999,"Liquidazione Fattura Nr. 1622018173  del 25/08/2022 (di cui Split per euro 26,56) - Uff.EMPOLI TOGLIATTI PER.03-10-2021-03-10-2021 Danza 060410820210 ",1,3,2,2,999
S.I.A.E. SOCIET� ITALIANA DEGLI AUTORI ED EDITORI,18/10/2022,5309,"Altre spese per relazioni pubbliche, convegni e mostre, pubblicit� n.a.c","28,33","0,00","0,88",,1,3,Acquisto di beni e servizi,2,2,999,"Liquidazione Fattura Nr. 1622023620  del 11/10/2022 (di cui Split per euro 0,88) - Uff.EMPOLI VILLA REGHINI PER.02-09-2020-02-09-2020 Cinema 120491020120 ",1,3,2,2,999
EDISON ENERGIA S.P.A.,18/10/2022,5304,Gas,"3,06","0,00","0,15",89162702C5,1,3,Acquisto di beni e servizi,2,5,6,"BONIFICO A FAVORE DI EDISON ENERGIA Liquidazione Fattura Nr. 5950283782  del 16/09/2022 (di cui Split per euro 0,15) - 15104203729400",1,3,2,5,6
EDISON ENERGIA S.P.A.,18/10/2022,5270,Gas,"3,06","0,00","0,15",89162702C5,1,3,Acquisto di beni e servizi,2,5,6,"BONIFICO A FAVORE DI EDISON ENERGIALiquidazione Fattura Nr. 5950283781  del 16/09/2022 (di cui Split per euro 0,15) - 15104203729241",1,3,2,5,6
EDISON ENERGIA S.P.A.,18/10/2022,5287,Gas,"33,46","0,00","1,59",89162702C5,1,3,Acquisto di beni e servizi,2,5,6,"BONIFICO A FAVORE DI EDISON ENERGIALiquidazione Fattura Nr. 5950283080  del 16/09/2022 (di cui Split per euro 1,59) - 15104203730639",1,3,2,5,6
EDISON ENERGIA S.P.A.,18/10/2022,5284,Gas,"35,02","0,00","1,67",89162702C5,1,3,Acquisto di beni e servizi,2,5,6,"BONIFICO A FAVORE DI EDISON ENERGIALiquidazione Fattura Nr. 5950282720  del 16/09/2022 (di cui Split per euro 1,67) - 15104203730640",1,3,2,5,6
EDISON ENERGIA S.P.A.,18/10/2022,5269,Gas,"33,46","0,00","1,59",89162702C5,1,3,Acquisto di beni e servizi,2,5,6,"BONIFICO A FAVORE DI EDISON ENERGIALiquidazione Fattura Nr. 5950283081  del 16/09/2022 (di cui Split per euro 1,59) - 15964204304490",1,3,2,5,6
EDISON ENERGIA S.P.A.,18/10/2022,5280,Gas,"257,69","0,00","12,27",89162702C5,1,3,Acquisto di beni e servizi,2,5,6,"BONIFICO A FAVORE DI EDISON ENERGIALiquidazione Fattura Nr. 5950281994  del 16/09/2022 (di cui Split per euro 12,27) - 15104203728249",1,3,2,5,6
EDISON ENERGIA S.P.A.,18/10/2022,5302,Gas,"27,38","0,00","1,30",89162702C5,1,3,Acquisto di beni e servizi,2,5,6,"BONIFICO A FAVORE DI EDISON ENERGIALiquidazione Fattura Nr. 5950283301  del 16/09/2022 (di cui Split per euro 1,30) - 15104203729242",1,3,2,5,6
EDISON ENERGIA S.P.A.,18/10/2022,5279,Gas,"3,06","0,00","0,15",89162702C5,1,3,Acquisto di beni e servizi,2,5,6,"BONIFICO A FAVORE DI EDISON ENERGIA  Liquidazione Fattura Nr. 5950283780  del 16/09/2022 (di cui Split per euro 0,15) - 15104203728281",1,3,2,5,6
EDISON ENERGIA S.P.A.,18/10/2022,5285,Gas,"33,46","0,00","1,59",89162702C5,1,3,Acquisto di beni e servizi,2,5,6,"BONIFICO A FAVORE DI EDISON ENERGIA  Liquidazione Fattura Nr. 5950283079  del 16/09/2022 (di cui Split per euro 1,59) - 15104203730736",1,3,2,5,6
EDISON ENERGIA S.P.A.,18/10/2022,5268,Gas,"54,15","0,00","2,58",89162702C5,1,3,Acquisto di beni e servizi,2,5,6,"BONIFICO A FAVORE DI EDISON ENERGIA Liquidazione Fattura Nr. 5950282549  del 16/09/2022 (di cui Split per euro 2,58) - 15104203729253",1,3,2,5,6
EDISON ENERGIA S.P.A.,18/10/2022,5292,Gas,"20,08","0,00","0,95",89162702C5,1,3,Acquisto di beni e servizi,2,5,6,"BONIFICO A FAVORE DI EDISON ENERGIA Liquidazione Fattura Nr. 5950283077  del 16/09/2022 (di cui Split per euro 0,95) - 15964204269553",1,3,2,5,6
EDISON ENERGIA S.P.A.,18/10/2022,5291,Gas,"13,38","0,00","0,64",89162702C5,1,3,Acquisto di beni e servizi,2,5,6,"BONIFICO A FAVORE DI EDISON ENERGIA Liquidazione Fattura Nr. 5950283077  del 16/09/2022 (di cui Split per euro 0,64) - 15964204269553",1,3,2,5,6
EDISON ENERGIA S.P.A.,18/10/2022,5305,Gas,"33,46","0,00","1,59",89162702C5,1,3,Acquisto di beni e servizi,2,5,6,"BONIFICO A FAVORE DI EDISON ENERGIA Liquidazione Fattura Nr. 5950283078  del 16/09/2022 (di cui Split per euro 1,59) - 15104203730554",1,3,2,5,6
EDISON ENERGIA S.P.A.,18/10/2022,5278,Gas,"48,99","0,00","2,33",89162702C5,1,3,Acquisto di beni e servizi,2,5,6,"BONIFICO A FAVORE DI EDISON ENERGIA Liquidazione Fattura Nr. 5950282584  del 16/09/2022 (di cui Split per euro 2,33) - 15104203728332",1,3,2,5,6
CO&SO EMPOLI - CONS. DI COOP. SOCIALI - SOCIETA' COOPERATIVA,18/10/2022,5323,Altre spese per contratti di servizio pubblico,"1,06","0,00","0,19",9042374315,1,3,Acquisto di beni e servizi,2,15,999,"Liquidazione Fattura Nr. 000754-2C0  del 25/09/2022 (di cui Split per euro 0,19) - Fatt. regime reverse charge Fattura soggetta ""scissione dei pagamenti - Art. 17-ter DPR 633/72",1,3,2,15,999
CO&SO EMPOLI - CONS. DI COOP. SOCIALI - SOCIETA' COOPERATIVA,18/10/2022,5324,Altre spese per contratti di servizio pubblico,"57,40","0,00","10,35",9042374315,1,3,Acquisto di beni e servizi,2,15,999,"Liquidazione Fattura Nr. 000754-2C0  del 25/09/2022 (di cui Split per euro 10,35) - Fatt. regime reverse charge Fattura soggetta ""scissione dei pagamenti - Art. 17-ter DPR 633/72",1,3,2,15,999
CO&SO EMPOLI - CONS. DI COOP. SOCIALI - SOCIETA' COOPERATIVA,18/10/2022,5325,Altre spese per contratti di servizio pubblico,"52,20","0,00","9,41",9042374315,1,3,Acquisto di beni e servizi,2,15,999,"Liquidazione Fattura Nr. 000753-2C0  del 25/09/2022 (di cui Split per euro 9,41) - Fatt. regime sciss.pag. Fattura soggetta ""scissione dei pagamenti - Art. 17-ter DPR 633/72",1,3,2,15,999
FRATERNITA MISERICORDIA DI VINCI,18/10/2022,5314,Altri servizi ausiliari n.a.c.,"3.550,00","0,00","0,00",ZCE2FCD73F,1,3,Acquisto di beni e servizi,2,13,999,"Liquidazione Fattura Nr. FATTPA 45_22  del 04/10/2022 - DETERMINAZIONE A CONTRARRE E AFFIDAMENTO DEL SERVIZIO DI CUSTODIA, ASSISTENZA AGLI SPETTACOLI E PULIZIA DEL TEATRO DI VINCI DAL 1/01/2021 AL 31/12/2022 - IMPEGNO DI SPESA",1,3,2,13,999
RANGONI BASILIO SRL,18/10/2022,5320,Altri servizi diversi n.a.c.,"1.000,00","0,00","180,33",ZC237482AE,1,3,Acquisto di beni e servizi,2,99,999,"Liquidazione Fattura Nr. 034/H  del 20/09/2022 (di cui Split per euro 180,33) - FATTURA DI VENDITA SPLIT",1,3,2,99,999
RANGONI BASILIO SRL,18/10/2022,5326,Mobili e arredi n.a.c.,"224,78","0,00","40,53",ZC237482AE,2,2,Investimenti fissi lordi e acquisto di terreni,1,3,999,"Liquidazione Fattura Nr. 034/H  del 20/09/2022 (di cui Split per euro 40,53) - FATTURA DI VENDITA SPLIT",2,2,1,3,999
MINISTERO DELL'INTERNO DIREZIONE CENTRALE PER I SERVIZI DEMOGRAFICI,18/10/2022,5315,Trasferimenti correnti a Ministeri,"1.427,15","0,00","0,00",,1,4,Trasferimenti correnti,1,1,1,"COMUNE DI VINCI, M059, CORRISPETTIVO PER RILASCIO N. 85 CIE PERIODO 16-30 GIUGNO 2022",1,4,1,1,1
MINISTERO DELL'INTERNO DIREZIONE CENTRALE PER I SERVIZI DEMOGRAFICI,18/10/2022,5316,Trasferimenti correnti a Ministeri,"1.040,98","0,00","0,00",,1,4,Trasferimenti correnti,1,1,1,"COMUNE DI VINCI, M059, CORRISPETTIVO PER RILASCIO N. 62 CIE PERIODO 1-15 LUGLIO 2022",1,4,1,1,1
MINISTERO DELL'INTERNO DIREZIONE CENTRALE PER I SERVIZI DEMOGRAFICI,18/10/2022,5317,Trasferimenti correnti a Ministeri,"1.007,40","0,00","0,00",,1,4,Trasferimenti correnti,1,1,1,"COMUNE DI VINCI, M059, CORRISPETTIVO PER RILASCIO N. 60 CIE PERIODO 16-31 LUGLIO 2022",1,4,1,1,1
SOCIETA' AGRICOLA I MOZZI SS DI ALTIERI FILIPPO E BORGHERESI LUCIANA,18/10/2022,5307,Altri beni e materiali di consumo n.a.c.,"1.921,50","0,00","346,50",Z143754304,1,3,Acquisto di beni e servizi,1,2,999,"Liquidazione Fattura Nr. 28  del 31/08/2022 (di cui Split per euro 346,50) - Dati personali, necessari unicamente al rispetto degli adempimenti contabili e/o amministrativi obbligatori per legge, trattati nel rispetto delle disposizioni con",1,3,1,2,999
SOCIETA' DIDEROT SOC. COOP.,18/10/2022,5312,Altre spese per servizi amministrativi,"3.040,36","0,00","548,26",Z0D34898DD,1,3,Acquisto di beni e servizi,2,16,999,"Liquidazione Fattura Nr. FTE-46  del 03/10/2022 (di cui Split per euro 548,26) - SERVIZIO DI ARCHIVIO CORRENTE E DI DEPOSITO PRESSO IL COMUNE DI VINCI mesi di Agosto e Settembre2022 determinazione n. 283 del 23/12/2021",1,3,2,16,999
EREDI LEPORATTI GUIDO S.A.S. DI FIORETTA PACINI,18/10/2022,5322,Contratti di servizio di trasporto pubblico,"3.386,53","0,00","307,87",ZD43787388,1,3,Acquisto di beni e servizi,2,15,1,"LIQUIDAZIONE FATTURA NR. 15/22  DEL 03/10/2022 (DI CUI SPLIT PER EURO 307,87) - FATTURA TPL MENSILITA' SETTEMBRE 2022",1,3,2,15,1
FUTURA SRL,18/10/2022,5321,Altri servizi diversi n.a.c.,"659,90","0,00","119,00",ZE630D3F2E,1,3,Acquisto di beni e servizi,2,99,999,"Liquidazione Fattura Nr. 492  del 30/09/2022 (di cui Split per euro 119,00) - AFFIDAMENTO DEL SERVIZIO DI RITIRO, TRASPORTO E STOCCAGGIO DI ELEMENTI DI ARREDO E MATERIALI DEL MUSEO LEONARDIANO - mese di settembre 2022",1,3,2,99,999
NOVA AEG SPA,18/10/2022,5272,Energia elettrica,"23,96","0,00","4,32",897509310C,1,3,Acquisto di beni e servizi,2,5,4,"Liquidazione Fattura Nr. 2220139897  del 21/09/2022 (di cui Split per euro 4,32) - IT001E41741369 202208  SEDE DI FORNITURA EE",1,3,2,5,4
NOVA AEG SPA,18/10/2022,5271,Energia elettrica,"10,54","0,00","1,90",897509310C,1,3,Acquisto di beni e servizi,2,5,4,"Liquidazione Fattura Nr. 2220139905  del 21/09/2022 (di cui Split per euro 1,90) - IT001E04919533 202208  SEDE DI FORNITURA EE",1,3,2,5,4
NOVA AEG SPA,18/10/2022,5297,Energia elettrica,"86,94","0,00","15,68",897509310C,1,3,Acquisto di beni e servizi,2,5,4,"Liquidazione Fattura Nr. 2220139906  del 21/09/2022 (di cui Split per euro 15,68) - IT001E04919532 202208  SEDE DI FORNITURA EE",1,3,2,5,4
NOVA AEG SPA,18/10/2022,5289,Energia elettrica,"285,48","0,00","51,48",897509310C,1,3,Acquisto di beni e servizi,2,5,4,"Liquidazione Fattura Nr. 2220139877  del 21/09/2022 (di cui Split per euro 51,48) - IT001E40886806 202208  SEDE DI FORNITURA EE",1,3,2,5,4
NOVA AEG SPA,18/10/2022,5306,Energia elettrica,"924,49","0,00","166,71",897509310C,1,3,Acquisto di beni e servizi,2,5,4,"Liquidazione Fattura Nr. 2220139907  del 21/09/2022 (di cui Split per euro 166,71) - IT001E04919534 202208  SEDE DI FORNITURA EE",1,3,2,5,4
NOVA AEG SPA,18/10/2022,5274,Energia elettrica,"100,75","0,00","18,17",897509310C,1,3,Acquisto di beni e servizi,2,5,4,"Liquidazione Fattura Nr. 2220139900  del 21/09/2022 (di cui Split per euro 18,17) - IT001E04919530 202208  SEDE DI FORNITURA EE",1,3,2,5,4
NOVA AEG SPA,18/10/2022,5293,Energia elettrica,"26,80","0,00","4,83",897509310C,1,3,Acquisto di beni e servizi,2,5,4,"Liquidazione Fattura Nr. 2220139908  del 21/09/2022 (di cui Split per euro 4,83) - IT001E40889318 202208  SEDE DI FORNITURA EE",1,3,2,5,4
NOVA AEG SPA,18/10/2022,5294,Energia elettrica,"69,99","0,00","12,62",897509310C,1,3,Acquisto di beni e servizi,2,5,4,"Liquidazione Fattura Nr. 2220139902  del 21/09/2022 (di cui Split per euro 12,62) - IT001E04919543 202208  SEDE DI FORNITURA EE",1,3,2,5,4
NOVA AEG SPA,18/10/2022,5300,Energia elettrica,"132,85","0,00","23,96",897509310C,1,3,Acquisto di beni e servizi,2,5,4,"Liquidazione Fattura Nr. 2220139891  del 21/09/2022 (di cui Split per euro 23,96) - IT001E43232056 202208  SEDE DI FORNITURA EE",1,3,2,5,4
NOVA AEG SPA,18/10/2022,5296,Energia elettrica,"88,71","0,00","16,00",897509310C,1,3,Acquisto di beni e servizi,2,5,4,"Liquidazione Fattura Nr. 2220139892  del 21/09/2022 (di cui Split per euro 16,00) - IT001E04919526 202208  SEDE DI FORNITURA EE",1,3,2,5,4
NOVA AEG SPA,18/10/2022,5283,Energia elettrica,"174,69","0,00","31,50",897509310C,1,3,Acquisto di beni e servizi,2,5,4,"Liquidazione Fattura Nr. 2220139884  del 21/09/2022 (di cui Split per euro 31,50) - IT001E04919515 202208  SEDE DI FORNITURA EE",1,3,2,5,4
NOVA AEG SPA,18/10/2022,5288,Energia elettrica,"635,21","0,00","114,55",897509310C,1,3,Acquisto di beni e servizi,2,5,4,"Liquidazione Fattura Nr. 2220139874  del 21/09/2022 (di cui Split per euro 114,55) - IT001E04919520 202208  SEDE DI FORNITURA EE",1,3,2,5,4
NOVA AEG SPA,18/10/2022,5301,Energia elettrica,"146,64","0,00","26,44",897509310C,1,3,Acquisto di beni e servizi,2,5,4,"Liquidazione Fattura Nr. 2220139889  del 21/09/2022 (di cui Split per euro 26,44) - IT001E04919544 202208  SEDE DI FORNITURA EE",1,3,2,5,4
NOVA AEG SPA,18/10/2022,5298,Energia elettrica,"102,47","0,00","18,48",897509310C,1,3,Acquisto di beni e servizi,2,5,4,"Liquidazione Fattura Nr. 2220139903  del 21/09/2022 (di cui Split per euro 18,48) - IT001E41398842 202208  SEDE DI FORNITURA EE",1,3,2,5,4
NOVA AEG SPA,18/10/2022,5275,Energia elettrica,"87,03","0,00","15,69",897509310C,1,3,Acquisto di beni e servizi,2,5,4,"Liquidazione Fattura Nr. 2220139895  del 21/09/2022 (di cui Split per euro 15,69) - IT001E04919517 202208  SEDE DI FORNITURA EE",1,3,2,5,4
NOVA AEG SPA,18/10/2022,5276,Energia elettrica,"116,60","0,00","21,03",897509310C,1,3,Acquisto di beni e servizi,2,5,4,"Liquidazione Fattura Nr. 2220139881  del 21/09/2022 (di cui Split per euro 21,03) - IT001E04919518 202208  SEDE DI FORNITURA EE",1,3,2,5,4
NOVA AEG SPA,18/10/2022,5282,Energia elettrica,"2.770,90","0,00","499,67",897509310C,1,3,Acquisto di beni e servizi,2,5,4,"Liquidazione Fattura Nr. 2220139882  del 21/09/2022 (di cui Split per euro 499,67) - IT001E04919538 202208  SEDE DI FORNITURA EE",1,3,2,5,4
NOVA AEG SPA,18/10/2022,5277,Energia elettrica,"279,23","0,00","50,35",897509310C,1,3,Acquisto di beni e servizi,2,5,4,"Liquidazione Fattura Nr. 2220139875  del 21/09/2022 (di cui Split per euro 50,35) - IT001E43232057 202208  SEDE DI FORNITURA EE",1,3,2,5,4
NOVA AEG SPA,18/10/2022,5290,Energia elettrica,"904,19","0,00","163,05",897509310C,1,3,Acquisto di beni e servizi,2,5,4,"Liquidazione Fattura Nr. 2220139887  del 21/09/2022 (di cui Split per euro 163,05) - IT001E04919521 202208  SEDE DI FORNITURA EE",1,3,2,5,4
NOVA AEG SPA,18/10/2022,5299,Energia elettrica,"239,63","0,00","43,21",897509310C,1,3,Acquisto di beni e servizi,2,5,4,"Liquidazione Fattura Nr. 2220139890  del 21/09/2022 (di cui Split per euro 43,21) - IT001E43263124 202208  SEDE DI FORNITURA EE",1,3,2,5,4
NOVA AEG SPA,18/10/2022,5295,Energia elettrica,"452,51","0,00","81,60",897509310C,1,3,Acquisto di beni e servizi,2,5,4,"Liquidazione Fattura Nr. 2220139893  del 21/09/2022 (di cui Split per euro 81,60) - IT001E04919525 202208  SEDE DI FORNITURA EE",1,3,2,5,4
NOVA AEG SPA,18/10/2022,5303,Energia elettrica,"1.100,38","0,00","198,43",897509310C,1,3,Acquisto di beni e servizi,2,5,4,"Liquidazione Fattura Nr. 2220139885  del 21/09/2022 (di cui Split per euro 198,43) - IT001E04919540 202208  SEDE DI FORNITURA EE",1,3,2,5,4
NOVA AEG SPA,18/10/2022,5273,Energia elettrica,"10,54","0,00","1,90",897509310C,1,3,Acquisto di beni e servizi,2,5,4,"Liquidazione Fattura Nr. 2220139888  del 21/09/2022 (di cui Split per euro 1,90) - IT001E04919522 202208  SEDE DI FORNITURA EE",1,3,2,5,4
NOVA AEG SPA,18/10/2022,5286,Energia elettrica,"989,74","0,00","178,48",897509310C,1,3,Acquisto di beni e servizi,2,5,4,"Liquidazione Fattura Nr. 2220139886  del 21/09/2022 (di cui Split per euro 178,48) - IT001E04919516 202208  SEDE DI FORNITURA EE",1,3,2,5,4
NOVA AEG SPA,18/10/2022,5281,Energia elettrica,"47,63","0,00","8,59",897509310C,1,3,Acquisto di beni e servizi,2,5,4,"Liquidazione Fattura Nr. 2220139910  del 21/09/2022 (di cui Split per euro 8,59) - IT001E04919535 202208  SEDE DI FORNITURA EE",1,3,2,5,4
BALDACCI VITTORIO,18/10/2022,5267,Patrocinio legale,"2.392,00","0,00","0,00",,1,3,Acquisto di beni e servizi,2,11,6,Pagamento delle spese di lite sentenza Tar Toscana n. 979 /2018,1,3,2,11,6
CO&SO EMPOLI - CONS. DI COOP. SOCIALI - SOCIETA' COOPERATIVA,20/10/2022,5328,Altre spese per contratti di servizio pubblico,"1.858,22","0,00","335,09",7551132F3D,1,3,Acquisto di beni e servizi,2,15,999,"Liquidazione Fattura Nr. 000738-2C0  del 09/09/2022 (di cui Split per euro 335,09) - Pulizie mese di agosto 2022",1,3,2,15,999
CO&SO EMPOLI - CONS. DI COOP. SOCIALI - SOCIETA' COOPERATIVA,20/10/2022,5329,Altre spese per contratti di servizio pubblico,"35.451,92","0,00","0,00",7551132F3D,1,3,Acquisto di beni e servizi,2,15,999,Liquidazione Fattura Nr. 000133-1C0  del 09/09/2022 - Servizi museali mese di agosto 2022,1,3,2,15,999
CO&SO EMPOLI - CONS. DI COOP. SOCIALI - SOCIETA' COOPERATIVA,20/10/2022,5330,Altre spese per contratti di servizio pubblico,"5.259,30","0,00","948,40",7551132F3D,1,3,Acquisto di beni e servizi,2,15,999,"Liquidazione Fattura Nr. 000739-2C0  del 09/09/2022 (di cui Split per euro 948,40) - Servizi turistici mese di agosto 2022",1,3,2,15,999
ALIA SERVIZI AMBIENTALI S.P.A.,20/10/2022,5331,Contratti di servizio per la raccolta rifiuti,"277.454,84","0,00","25.223,17",4726694F44,1,3,Acquisto di beni e servizi,2,15,4,"LIQUIDAZIONE FATTURA NR. 0000134372  DEL 30/09/2022 (DI CUI SPLIT PER EURO 25.223,17) -  DETERMINA 62 DEL 28.06.2022  IVA DA VERSARE A CURA DEL CESSIONARIO O COMMITTENTE AI SENSI DELL'ART.17 -TER DEL D.P.R. NR.633/1972 SCISSIONE PAGAMENTI",1,3,2,15,4
REGIONE TOSCANA,20/10/2022,5327,Trasferimenti correnti a Citt� metropolitane e Roma capitale,"1.140,77","0,00","0,00",,1,4,Trasferimenti correnti,1,2,4,SECONDA RATA 2022 COFINANZIAMENTO SERVIZI TPL LOTTO UNICO,1,4,1,2,4
V.A.B. VIGILANZA ANTICENDI BOSCHIVI,21/10/2022,5334,"Altre spese per relazioni pubbliche, convegni e mostre, pubblicit� n.a.c","375,00","0,00","0,00",ZDD37C7C6E,1,3,Acquisto di beni e servizi,2,2,999,LIQUIDAZIONE FATTURA NR. FPA 16/22  DEL 21/09/2022 - FORNITURA GENERICA,1,3,2,2,999
UNIONE DEI COMUNI CIRCONDARIO EMPOLESE VALDELSA,21/10/2022,5332,Trasferimenti correnti a Unioni di Comuni,"186.944,25","0,00","0,00",,1,4,Trasferimenti correnti,1,2,5,TRASFERIMENTO QUOTA SERVIZIO SOCIALE 3 RATA ES. 2022,1,4,1,2,5
UNIONE DEI COMUNI CIRCONDARIO EMPOLESE VALDELSA,21/10/2022,5333,Trasferimenti correnti a Unioni di Comuni,"22.373,53","0,00","0,00",,1,4,Trasferimenti correnti,1,2,5,TRASFERIMENTO PER FUNZIONE SOCIALE ACCONTO SU QUOTA AGGIUNTIVA  COME DA RICHIESTA DELL'UNIONE  DEL 06/10/2022,1,4,1,2,5
EMPORIO DELL'AUTO SRL,21/10/2022,5335,Strumenti tecnico-specialistici non sanitari,"500,00","0,00","90,16",Z7336F38EE,1,3,Acquisto di beni e servizi,1,2,8,"Liquidazione Fattura Nr. 14/PA/26  del 31/08/2022 (di cui Split per euro 90,16) - ACQUISTO COMPRESSORE E RICAMBI",1,3,1,2,8
EMPORIO DELL'AUTO SRL,21/10/2022,5345,"Manutenzione ordinaria e riparazioni di mezzi di trasporto ad uso civile, di sicurezza e ordine pubblico","1.217,69","0,00","219,59",Z7336F38EE,1,3,Acquisto di beni e servizi,2,9,1,"LIQUIDAZIONE FATTURA NR. 14/PA/26  DEL 31/08/2022 (DI CUI SPLIT PER EURO 219,59) - ACQUISTO COMPRESSORE E RICAMBI",1,3,2,9,1
SOC.ING.MAGNANI SRL,21/10/2022,5352,Altri beni e materiali di consumo n.a.c.,"195,69","0,00","35,29",Z203639868,1,3,Acquisto di beni e servizi,1,2,999,"Liquidazione Fattura Nr. 39/10  del 27/09/2022 (di cui Split per euro 35,29) - FORNITURA STABILIZZATO PER MANUTENZIONE STRADE VICINALI - DETERMINA N. 66 DEL 04/05/2022",1,3,1,2,999
SOC.ING.MAGNANI SRL,21/10/2022,5353,Altri beni e materiali di consumo n.a.c.,"110,29","0,00","19,89",Z203639868,1,3,Acquisto di beni e servizi,1,2,999,"Liquidazione Fattura Nr. 45/10  del 29/09/2022 (di cui Split per euro 19,89) - FORNITURA STABILIZZATO PER MANUTENZIONE STRADE VICINALI - DETERMINA N. 66 DEL 04/05/2022",1,3,1,2,999
LINEA RINNOVA SNC,21/10/2022,5350,Manutenzione ordinaria e riparazioni di beni immobili,"6.097,56","0,00","1.099,56",ZD8379FDC7,1,3,Acquisto di beni e servizi,2,9,8,"Liquidazione Fattura Nr. 25E  del 14/09/2022 (di cui Split per euro 1.099,56) - imbiancatura scuola secondaria Sovigliana",1,3,2,9,8
STUDIO TECNICO SALVAGGIO S. & MARCHETTI D. PERITI INDUSTRIALI ASS.NE PROF.LE,21/10/2022,5354,Incarichi professionali per la realizzazione di investimenti,"3.008,31","469,68","0,00",ZF8376B165,2,2,Investimenti fissi lordi e acquisto di terreni,3,5,1,LIQUIDAZIONE FATTURA NR. 111  DEL 03/10/2022 - SALDO FASI PROGETTAZIONE LOTTO 1 INERENTI INTERVENTI DI EFFICENTAMENTO ENERGETICO DELL'MPIANTO DI ILLUMINAZIONE PUBBLICA DEL VIALE P. TOGLIATTI COMUNE DI VINCI (FI),2,2,3,5,1
STUDIO TECNICO SALVAGGIO S. & MARCHETTI D. PERITI INDUSTRIALI ASS.NE PROF.LE,21/10/2022,5355,Incarichi professionali per la realizzazione di investimenti,"3.008,31","469,68","0,00",Z01376B17E,2,2,Investimenti fissi lordi e acquisto di terreni,3,5,1,LIQUIDAZIONE FATTURA NR. 112  DEL 03/10/2022 - SALDO FASI PROGETTAZIONE LOTTO 2 INERENTI INTERVENTI DI EFFICENTAMENTO ENERGETICO DELL'MPIANTO DI ILLUMINAZIONE PUBBLICA DEL VIALE P. TOGLIATTI COMUNE DI VINCI (FI),2,2,3,5,1
SCOTTI SPA,21/10/2022,5337,"Manutenzione ordinaria e riparazioni di mezzi di trasporto ad uso civile, di sicurezza e ordine pubblico","660,06","0,00","119,03",ZCC3670E0C,1,3,Acquisto di beni e servizi,2,9,1,"Liquidazione Fattura Nr. 23 / 5000  del 26/09/2022 (di cui Split per euro 119,03) - riparazione vari mezzi",1,3,2,9,1
SCOTTI SPA,21/10/2022,5338,"Manutenzione ordinaria e riparazioni di mezzi di trasporto ad uso civile, di sicurezza e ordine pubblico","97,60","0,00","17,60",Z00357C2F5,1,3,Acquisto di beni e servizi,2,9,1,"Liquidazione Fattura Nr. 28 / 5000  del 26/09/2022 (di cui Split per euro 17,60) - riparazione vari mezzi",1,3,2,9,1
SCOTTI SPA,21/10/2022,5339,"Manutenzione ordinaria e riparazioni di mezzi di trasporto ad uso civile, di sicurezza e ordine pubblico","942,33","0,00","169,93",Z00357C2F5,1,3,Acquisto di beni e servizi,2,9,1,"Liquidazione Fattura Nr. 27 / 5000  del 26/09/2022 (di cui Split per euro 169,93) - riparazione vari mezzi",1,3,2,9,1
SCOTTI SPA,21/10/2022,5344,"Manutenzione ordinaria e riparazioni di mezzi di trasporto ad uso civile, di sicurezza e ordine pubblico","469,32","0,00","84,63",Z00357C2F5,1,3,Acquisto di beni e servizi,2,9,1,"Liquidazione Fattura Nr. 27 / 5000  del 26/09/2022 (di cui Split per euro 84,63) - riparazione vari mezzi",1,3,2,9,1
SCOTTI SPA,21/10/2022,5340,"Manutenzione ordinaria e riparazioni di mezzi di trasporto ad uso civile, di sicurezza e ordine pubblico","89,94","0,00","16,22",ZCC3670E0C,1,3,Acquisto di beni e servizi,2,9,1,"Liquidazione Fattura Nr. 24 / 5000  del 26/09/2022 (di cui Split per euro 16,22) - riparazione vari mezzi",1,3,2,9,1
SCOTTI SPA,21/10/2022,5343,"Manutenzione ordinaria e riparazioni di mezzi di trasporto ad uso civile, di sicurezza e ordine pubblico","434,79","0,00","78,40",ZCC3670E0C,1,3,Acquisto di beni e servizi,2,9,1,"Liquidazione Fattura Nr. 24 / 5000  del 26/09/2022 (di cui Split per euro 78,40) - riparazione vari mezzi",1,3,2,9,1
SCOTTI SPA,21/10/2022,5341,"Manutenzione ordinaria e riparazioni di mezzi di trasporto ad uso civile, di sicurezza e ordine pubblico","157,00","0,00","28,31",Z00357C2F5,1,3,Acquisto di beni e servizi,2,9,1,"Liquidazione Fattura Nr. 26 / 5000  del 26/09/2022 (di cui Split per euro 28,31) - riparazione vari mezzi",1,3,2,9,1
SCOTTI SPA,21/10/2022,5342,"Manutenzione ordinaria e riparazioni di mezzi di trasporto ad uso civile, di sicurezza e ordine pubblico","981,09","0,00","175,08",Z00357C2F5,1,3,Acquisto di beni e servizi,2,9,1,"Liquidazione Fattura Nr. 29 / 5000  del 26/09/2022 (di cui Split per euro 175,08) - riparazione vari mezzi",1,3,2,9,1
SCOTTI SPA,21/10/2022,5346,"Manutenzione ordinaria e riparazioni di mezzi di trasporto ad uso civile, di sicurezza e ordine pubblico","415,34","0,00","74,90",ZCC3670E0C,1,3,Acquisto di beni e servizi,2,9,1,"Liquidazione Fattura Nr. 25 / 5000  del 26/09/2022 (di cui Split per euro 74,90) - riparazione vari mezzi",1,3,2,9,1
IDRALTERMICA SRL,21/10/2022,5351,Manutenzione ordinaria e riparazioni di impianti e macchinari,"109,24","0,00","19,70",Z8129B564F,1,3,Acquisto di beni e servizi,2,9,4,"Liquidazione Fattura Nr. 827  del 31/08/2022 (di cui Split per euro 19,70) - LAVORI DI RIPRISTINO GRUPPI PRESSURIZZAZIONE ANTINCENDIO E LAVAGGIO IMPIANTI RISCALDAMENTO PRESSO IMMOBILI COMUNALI � DETERMINA A CONTRARRE � AFFIDAMENTO DITTA IDR",1,3,2,9,4
IDRALTERMICA SRL,21/10/2022,5349,Manutenzione ordinaria e riparazioni di impianti e macchinari,"1.106,66","0,00","199,56",Z8129B564F,1,3,Acquisto di beni e servizi,2,9,4,"LIQUIDAZIONE FATTURA NR. 827  DEL 31/08/2022 (DI CUI SPLIT PER EURO 199,56) - LAVORI DI RIPRISTINO GRUPPI PRESSURIZZAZIONE ANTINCENDIO E LAVAGGIO IMPIANTI RISCALDAMENTO PRESSO IMMOBILI COMUNALI � DETERMINA A CONTRARRE � AFFIDAMENTO DITTA ID",1,3,2,9,4
IDRALTERMICA SRL,21/10/2022,5347,Manutenzione ordinaria e riparazioni di impianti e macchinari,"1.839,15","0,00","331,65",Z8129B564F,1,3,Acquisto di beni e servizi,2,9,4,"LIQUIDAZIONE FATTURA NR. 827  DEL 31/08/2022 (DI CUI SPLIT PER EURO 331,65) - LAVORI DI RIPRISTINO GRUPPI PRESSURIZZAZIONE ANTINCENDIO E LAVAGGIO IMPIANTI RISCALDAMENTO PRESSO IMMOBILI COMUNALI � DETERMINA A CONTRARRE � AFFIDAMENTO DITTA ID",1,3,2,9,4
IDRALTERMICA SRL,21/10/2022,5348,Manutenzione ordinaria e riparazioni di impianti e macchinari,"4.983,18","0,00","898,61",Z8129B564F,1,3,Acquisto di beni e servizi,2,9,4,"LIQUIDAZIONE FATTURA NR. 827  DEL 31/08/2022 (DI CUI SPLIT PER EURO 898,61) - LAVORI DI RIPRISTINO GRUPPI PRESSURIZZAZIONE ANTINCENDIO E LAVAGGIO IMPIANTI RISCALDAMENTO PRESSO IMMOBILI COMUNALI � DETERMINA A CONTRARRE � AFFIDAMENTO DITTA ID",1,3,2,9,4
CARRI ELETTRONICA INDUSTRIALE DI DAVID CARRI,21/10/2022,5336,Manutenzione ordinaria e riparazioni di impianti e macchinari,"1.933,70","0,00","348,70",ZCB371F627,1,3,Acquisto di beni e servizi,2,9,4,"LIQUIDAZIONE FATTURA NR. 54  DEL 09/09/2022 (DI CUI SPLIT PER EURO 348,70) - RIPRISTINO FUNZIONALIT� GRUPPO UPS",1,3,2,9,4
PERSONALE DIPENDENTE SEDE,25/10/2022,5361,Organi istituzionali dell'amministrazione - Rimborsi ,"229,08","0,00","0,00",,1,3,Acquisto di beni e servizi,2,1,2,Stipendio 10,1,3,2,1,2
PERSONALE DIPENDENTE SEDE,25/10/2022,5360,Organi istituzionali dell'amministrazione - indennit�,"414,38","0,00","0,00",,1,3,Acquisto di beni e servizi,2,1,1,Stipendio 10,1,3,2,1,1
AMMINISTRATORI COMUNALI,25/10/2022,5356,Organi istituzionali dell'amministrazione - indennit�,"9.812,28","0,00","0,00",,1,3,Acquisto di beni e servizi,2,1,1,stipendio 10,1,3,2,1,1
AMMINISTRATORI COMUNALI,25/10/2022,5357,Organi istituzionali dell'amministrazione - indennit�,"2.223,72","0,00","0,00",,1,3,Acquisto di beni e servizi,2,1,1,stipendio 10,1,3,2,1,1
AMMINISTRATORI COMUNALI,25/10/2022,5358,Organi istituzionali dell'amministrazione - indennit�,"2.059,00","0,00","0,00",,1,3,Acquisto di beni e servizi,2,1,1,Stipendio 10,1,3,2,1,1
VESCOVI RENZO SPA,31/10/2022,5655,Infrastrutture stradali,"61.913,91","0,00","5.628,54",8981334F44,2,2,Investimenti fissi lordi e acquisto di terreni,1,9,12,"Liquidazione Fattura Nr. 76/10  del 19/10/2022 (di cui Split per euro 5.628,54) - LAVORI DI RIQUALIFICAZIONE DELLA SP 13 � MONTALBANO � MEDIANTE LA REALIZZAZIONE DI UN PERCORSO PROTETTO PER L'UTENZA DEBOLE  2� LOTTO - CIG 8981334F44 - CUP ",2,2,1,9,12
DROMEDIAN SRL,31/10/2022,5650,Altri servizi diversi n.a.c.,"864,35","0,00","155,87",ZC63760129,1,3,Acquisto di beni e servizi,2,99,999,"Liquidazione Fattura Nr. 464/00  del 02/10/2022 (di cui Split per euro 155,87) - PAGAMENTO PRESTAZIONE  RIF. DETERMINAZIONE N.106 DEL 04/08/2022",1,3,2,99,999
NOVA AEG SPA,31/10/2022,5651,Energia elettrica,"2.935,91","0,00","529,43",89749689E2,1,3,Acquisto di beni e servizi,2,5,4,"Liquidazione Fattura Nr. 2220139909  del 21/09/2022 (di cui Split per euro 529,43) - IT001E43445285 202208  SEDE DI FORNITURA EE",1,3,2,5,4
NOVA AEG SPA,31/10/2022,5652,Energia elettrica,"497,76","0,00","89,76",89749689E2,1,3,Acquisto di beni e servizi,2,5,4,"Liquidazione Fattura Nr. 2220139879  del 21/09/2022 (di cui Split per euro 89,76) - IT001E40095287 202208  SEDE DI FORNITURA EE",1,3,2,5,4
NOVA AEG SPA,31/10/2022,5653,Energia elettrica,"63.539,89","0,00","11.458,01",89749689E2,1,3,Acquisto di beni e servizi,2,5,4,"Liquidazione Fattura Nr. 2220139873  del 21/09/2022 (di cui Split per euro 11.458,01) - 202208 ",1,3,2,5,4
NOVA AEG SPA,31/10/2022,5649,Energia elettrica,"7.086,39","0,00","1.277,87",897509310C,1,3,Acquisto di beni e servizi,2,5,4,"Liquidazione Fattura Nr. 2220139904  del 21/09/2022 (di cui Split per euro 1.277,87) - IT001E04919531 202208  SEDE DI FORNITURA EE",1,3,2,5,4
NOVA AEG SPA,31/10/2022,5642,Energia elettrica,"5.597,60","0,00","1.009,40",897509310C,1,3,Acquisto di beni e servizi,2,5,4,"Liquidazione Fattura Nr. 2220139876  del 21/09/2022 (di cui Split per euro 1.009,40) - IT001E04919523 202208  SEDE DI FORNITURA EE",1,3,2,5,4
NOVA AEG SPA,31/10/2022,5648,Energia elettrica,"1.238,26","0,00","223,29",897509310C,1,3,Acquisto di beni e servizi,2,5,4,"Liquidazione Fattura Nr. 2220139894  del 21/09/2022 (di cui Split per euro 223,29) - IT001E40889726 202208  SEDE DI FORNITURA EE",1,3,2,5,4
NOVA AEG SPA,31/10/2022,5643,Energia elettrica,"1.360,42","0,00","245,32",897509310C,1,3,Acquisto di beni e servizi,2,5,4,"Liquidazione Fattura Nr. 2220139896  del 21/09/2022 (di cui Split per euro 245,32) - IT001E04919524 202208  SEDE DI FORNITURA EE",1,3,2,5,4
NOVA AEG SPA,31/10/2022,5647,Energia elettrica,"1.463,01","0,00","263,82",897509310C,1,3,Acquisto di beni e servizi,2,5,4,"Liquidazione Fattura Nr. 2220139901  del 21/09/2022 (di cui Split per euro 263,82) - IT001E04919529 202208  SEDE DI FORNITURA EE",1,3,2,5,4
NOVA AEG SPA,31/10/2022,5644,Energia elettrica,"104,63","0,00","18,87",897509310C,1,3,Acquisto di beni e servizi,2,5,4,"Liquidazione Fattura Nr. 2220139898  del 21/09/2022 (di cui Split per euro 18,87) - IT001E04919527 202208  SEDE DI FORNITURA EE",1,3,2,5,4
NOVA AEG SPA,31/10/2022,5646,Energia elettrica,"16.174,98","0,00","2.916,80",897509310C,1,3,Acquisto di beni e servizi,2,5,4,"Liquidazione Fattura Nr. 2220139899  del 21/09/2022 (di cui Split per euro 2.916,80) - IT001E04919528 202208  SEDE DI FORNITURA EE",1,3,2,5,4
NOVA AEG SPA,31/10/2022,5645,Energia elettrica,"1.542,43","0,00","278,14",897509310C,1,3,Acquisto di beni e servizi,2,5,4,"Liquidazione Fattura Nr. 2220139878  del 21/09/2022 (di cui Split per euro 278,14) - IT001E04919536 202208  SEDE DI FORNITURA EE",1,3,2,5,4
FRASSINELLI S.R.L.,31/10/2022,5654,Infrastrutture stradali,"64.441,00","0,00","5.858,27",8981334F44,2,2,Investimenti fissi lordi e acquisto di terreni,1,9,12,"Liquidazione Fattura Nr. 1551  del 19/10/2022 (di cui Split per euro 5.858,27) - LAVORI DI RIQUALIFICAZIONE DELLA SP 13 � MONTALBANO � MEDIANTE LA REALIZZAZIONE DI UN PERCORSO PROTETTO PER L'UTENZA DEBOLE  2� LOTTO - CIG 8981334F44 - CUP J",2,2,1,9,12
CENTRO L.I.F.E.,08/11/2022,5668,Altri servizi diversi n.a.c.,"3.553,26","0,00","640,75",ZBC346691F,1,3,Acquisto di beni e servizi,2,99,999,Liquidazione Fattura Nr. 16  del 20/10/2022 - sportello lavoro luglio agosto settembre,1,3,2,99,999
ARCA COOPERATIVA SOCIALE,08/11/2022,5665,Contratti di servizio di asilo nido,"34.911,26","0,00","1.662,44",8388889A31,1,3,Acquisto di beni e servizi,2,15,10,"Liquidazione Fattura Nr. 1858/E  del 12/10/2022 (di cui Split per euro 1.662,44) - Vendita Iva da versare a cura del cessionario o committente ai sensi dell'art. 17-ter del D.P.R. n. 633/1972 (scissione dei pagamenti)",1,3,2,15,10
ARCA COOPERATIVA SOCIALE,08/11/2022,5666,Contratti di servizio di asilo nido,"4.950,89","0,00","235,76",8388889A31,1,3,Acquisto di beni e servizi,2,15,10,"Liquidazione Fattura Nr. 1859/E  del 12/10/2022 (di cui Split per euro 235,76) - Vendita Iva da versare a cura del cessionario o committente ai sensi dell'art. 17-ter del D.P.R. n. 633/1972 (scissione dei pagamenti)",1,3,2,15,10
AUSER VOLONTARIATO TERRITORIALE EMPOLESE-VALDELSA,08/11/2022,5657,Trasferimenti correnti a Istituzioni Sociali Private ,"800,00","0,00","0,00",,1,4,Trasferimenti correnti,4,1,1,AUSER TERRITORIALE EMPOLESE VALDELSA CONTRIBUTO COVID 2021,1,4,4,1,1
ASSOCIAZIONE CULTURALE IL PONTE,08/11/2022,5672,Altre spese per contratti di servizio pubblico,"1.797,43","0,00","324,13",9042374315,1,3,Acquisto di beni e servizi,2,15,999,"Liquidazione Fattura Nr. 10  del 04/10/2022 (di cui Split per euro 324,13) - Appalto dei Servizi Educativi Integrativi per l'Infanzia, dei Servizi Extrascolastici e ulteriori attività dal 27 dicembre 2021 al 31 agosto 2022 - ULTERIORI ATTI",1,3,2,15,999
ASSOCIAZIONE CULTURALE IL PONTE,08/11/2022,5673,Altre spese per contratti di servizio pubblico,"216,83","0,00","39,10",9042374315,1,3,Acquisto di beni e servizi,2,15,999,"Liquidazione Fattura Nr. 11  del 04/10/2022 (di cui Split per euro 39,10) - FATTURA VENDITA",1,3,2,15,999
ASSOCIAZIONE CULTURALE IL PONTE,08/11/2022,5670,Altre spese per contratti di servizio pubblico,"3,33","0,00","0,60",9042374315,1,3,Acquisto di beni e servizi,2,15,999,"Liquidazione Fattura Nr. 11  del 04/10/2022 (di cui Split per euro 0,60) - FATTURA VENDITA",1,3,2,15,999
ETRURIA P.A. SRL,08/11/2022,5660,Beni per consultazioni elettorali,"1.204,38","0,00","217,18",Z863771708,1,3,Acquisto di beni e servizi,1,2,10,"Liquidazione Fattura Nr. 309/00003  del 23/09/2022 (di cui Split per euro 217,18) - ELEZIONI POLITICHE 2022 - AFFIDAMENTO DIRETTO AI SENSI  DELL'ART. 36 COMMA 2 LETT. A) D.LGS.50/2016 COME MODIFICATO DAL D.L. 16 LUGLIO 2020, N. 76 CONVERTIT",1,3,1,2,10
ESKIMO COOP. SOCIALE ONLUS,08/11/2022,5675,Altre spese per contratti di servizio pubblico,"144,68","0,00","0,00",9042374315,1,3,Acquisto di beni e servizi,2,15,999,"Liquidazione Fattura Nr. FATTPA 114_22  del 11/10/2022 - APPROVAZIONE DELLO SCHEMA DI CONTRATTO OPERATIVO PER L'APPALTO DEI SERVIZI EDUCATIVI INTEGRATIVI PER LA PRIMA INFANZIA,DEI SERVIZI EXTRA SCOLASTICI E ULTERIORI ATTIVITA' DI CUI ALL'AC",1,3,2,15,999
ESKIMO COOP. SOCIALE ONLUS,08/11/2022,5671,Altre spese per contratti di servizio pubblico,"1,73","0,00","0,00",9042374315,1,3,Acquisto di beni e servizi,2,15,999,"Liquidazione Fattura Nr. FATTPA 114_22  del 11/10/2022 - APPROVAZIONE DELLO SCHEMA DI CONTRATTO OPERATIVO PER L'APPALTO DEI SERVIZI EDUCATIVI INTEGRATIVI PER LA PRIMA INFANZIA,DEI SERVIZI EXTRA SCOLASTICI E ULTERIORI ATTIVITA' DI CUI ALL'AC",1,3,2,15,999
ESKIMO COOP. SOCIALE ONLUS,08/11/2022,5674,Altre spese per contratti di servizio pubblico,"200,51","0,00","0,00",9042374315,1,3,Acquisto di beni e servizi,2,15,999,"Liquidazione Fattura Nr. FATTPA 111_22  del 11/10/2022 - APPROVAZIONE DELLO SCHEMA DI CONTRATTO OPERATIVO PER L'APPALTO DEI SERVIZI EDUCATIVI INTEGRATIVI PER LA PRIMA INFANZIA,DEI SERVIZI EXTRA SCOLASTICI E ULTERIORI ATTIVITA' DI CUI ALL'AC",1,3,2,15,999
ESKIMO COOP. SOCIALE ONLUS,08/11/2022,5667,Altri trasferimenti a famiglie n.a.c.,"9.565,00","0,00","0,00",,1,4,Trasferimenti correnti,2,5,999,"VOUCHER CENTRI ESTIVI ""VINCI ESTATE 2022""",1,4,2,5,999
SCUOLA DELL'INFANZIA PARROCCHIALE DON SERGIO CIONI,08/11/2022,5662,Trasferimenti correnti a Istituzioni Sociali Private ,"4.282,86","0,00","0,00",,1,4,Trasferimenti correnti,4,1,1,SOSTEGNO ALLE SCUOLE PARITARIE PRIVATE - ASSEGNAZIONE CONTRIBUTI REGIONALI A.S. 2021-2022 DELIBERAZIONE DELLA G.R. N. 1161/2021,1,4,4,1,1
STUDIO PICCHI ASSOCIATO,08/11/2022,5658,Altre prestazioni professionali e specialistiche n.a.c.,"3.383,46","533,33","0,00",ZC8349CC26,1,3,Acquisto di beni e servizi,2,11,999,"LIQUIDAZIONE FATTURA NR. 104/PA  DEL 24/10/2022 - SERVIZIO ELABORAZIONE PAGHE, CONTRIBUTI ED ADEMPIMENTI CONNESSI PER L'ANNO 2022",1,3,2,11,999
SYNLAB MED SRL A SOCIO UNICO,08/11/2022,5659,Spese per accertamenti sanitari resi necessari dall'attivit� lavorativa,"32,00","0,00","0,00",ZCE3487F6D,1,3,Acquisto di beni e servizi,2,18,1,Liquidazione Fattura Nr. G22/00140  del 30/09/2022 - DS02160/1,1,3,2,18,1
B. & B. SERVICE SOCIETA' COOPERATIVA,08/11/2022,5661,Contratti di servizio di trasporto scolastico,"20.821,77","0,00","1.892,89",7784415E76,1,3,Acquisto di beni e servizi,2,15,2,"Liquidazione Fattura Nr. 793/PA  del 30/09/2022 (di cui Split per euro 1.892,89) - COSTITUZIONE IMPEGNO ANNUALITA' 2022 - APPALTO  DEI SERVIZI DI TRASPORTO SCOLASTICO DAL 15 OTTOBRE 2019 AL 30 GIUGNO 2024",1,3,2,15,2
EREDI LEPORATTI GUIDO S.A.S. DI FIORETTA PACINI,08/11/2022,5664,Contratti di servizio di trasporto pubblico,"1.259,32","0,00","114,48",Z0D363D8E6,1,3,Acquisto di beni e servizi,2,15,1,"Liquidazione Fattura Nr. 18/22  del 21/10/2022 (di cui Split per euro 114,48) - FATTURA NAVETTA MENSILITA' SETTEMBRE 2022",1,3,2,15,1
EREDI LEPORATTI GUIDO S.A.S. DI FIORETTA PACINI,08/11/2022,5663,Contratti di servizio di trasporto pubblico,"1.259,32","0,00","114,48",Z0D363D8E6,1,3,Acquisto di beni e servizi,2,15,1,"Liquidazione Fattura Nr. 19/22  del 21/10/2022 (di cui Split per euro 114,48) - FATTURA NAVETTA MENSILITA' AGOSTO 2022",1,3,2,15,1
L'OPEROSA SPA,08/11/2022,5669,Altri servizi diversi n.a.c.,"2.852,71","0,00","514,42",ZE134F55C8,1,3,Acquisto di beni e servizi,2,99,999,"Liquidazione Fattura Nr. 869/CMF  del 24/10/2022 (di cui Split per euro 514,42) - sanificazione covid febbraio 2022",1,3,2,99,999
ANCI TOSCANA,09/11/2022,5676,Acquisto di servizi per altre spese per formazione e addestramento n.a.c.,"98,00","0,00","0,00",ZA8350B036,1,3,Acquisto di beni e servizi,2,4,999,"Liquidazione Fattura Nr. 1360/01  del 19/10/2022 - FORMAZIONE DELLE RISORSE UMANE DELL'ENTE - ACQUISTO DEL SERVIZIO DI FORMAZIONE IN WEBINAR PER UNA UNITA' DELL'ENTE ""IL PIAO: STRATEGIA, ORGANIZZAZIONE, LEGALIT� E LA CREAZIONE DI VALORE PUB",1,3,2,4,999
KUWAIT PETROLEUM ITALIA S.P.A.,09/11/2022,5683,"Carburanti, combustibili e lubrificanti ","922,34","0,00","166,33",9010548B6D,1,3,Acquisto di beni e servizi,1,2,2,"Liquidazione Fattura Nr. PJ05940281  del 30/09/2022 (di cui Split per euro 166,33) - Fornitura generica",1,3,1,2,2
KUWAIT PETROLEUM ITALIA S.P.A.,09/11/2022,5684,"Carburanti, combustibili e lubrificanti ","432,61","0,00","77,84",9010548B6D,1,3,Acquisto di beni e servizi,1,2,2,"Liquidazione Fattura Nr. PJ05940281  del 30/09/2022 (di cui Split per euro 77,84) - Fornitura generica",1,3,1,2,2
KUWAIT PETROLEUM ITALIA S.P.A.,09/11/2022,5685,"Carburanti, combustibili e lubrificanti ","1.332,88","0,00","240,52",9010548B6D,1,3,Acquisto di beni e servizi,1,2,2,"Liquidazione Fattura Nr. PJ05940281  del 30/09/2022 (di cui Split per euro 240,52) - Fornitura generica",1,3,1,2,2
ETRURIA P.A. SRL,09/11/2022,5690,Assistenza all'utente e formazione,"750,00","0,00","0,00",Z3837D4FDC,1,3,Acquisto di beni e servizi,2,19,2,Liquidazione Fattura Nr. 1534/00000  del 04/11/2022 - ACQUISTO DEL SERVIZIO DI ISTRUZIONE E FORMAZIONE ALL'USO DELLE PROCEDURE DI CONTABILITA' FINANZIARIA - DETERMINA A CONTRARRE E DI AFFIDAMENTO DIRETTO CIG,1,3,2,19,2
TIM S.P.A. DIREZIONE E COORDINAMENTO VIVENDI SA,09/11/2022,5693,Servizi di rete per trasmissione dati e VoIP e relativa manutenzione,"449,00","0,00","80,97",ZF522267E6,1,3,Acquisto di beni e servizi,2,19,4,"Liquidazione Fattura Nr. 6820221020000333 del 06/10/2022 - FATTURAZIONE CONTRATTO RETE DATI RTRT3 - 3' TRIMESTRE 2022 (di cui Split per euro 80,97)",1,3,2,19,4
TIM S.P.A. DIREZIONE E COORDINAMENTO VIVENDI SA,09/11/2022,5687,Servizi di rete per trasmissione dati e VoIP e relativa manutenzione,"250,10","0,00","45,10",Z360C4F27E,1,3,Acquisto di beni e servizi,2,19,4,"Liquidazione Fattura Nr. 6820221020000333 del 06/10/2022 - FATTURAZIONE CONTRATTO RETE DATI RTRT3 - 3' TRIMESTRE 2022 (di cui Split per euro 45,10)",1,3,2,19,4
TIM S.P.A. DIREZIONE E COORDINAMENTO VIVENDI SA,09/11/2022,5694,Servizi di rete per trasmissione dati e VoIP e relativa manutenzione,"51,20","0,00","9,23",ZF522267E6,1,3,Acquisto di beni e servizi,2,19,4,"Liquidazione Fattura Nr. 6820221020000333 del 06/10/2022 - FATTURAZIONE CONTRATTO RETE DATI RTRT3 - 3' TRIMESTRE 2022 (di cui Split per euro 9,23)",1,3,2,19,4
TIM S.P.A. DIREZIONE E COORDINAMENTO VIVENDI SA,09/11/2022,5689,Telefonia mobile,"379,06","0,00","65,75",ZDF358188E,1,3,Acquisto di beni e servizi,2,5,2,"Liquidazione Fattura Nr. 7X04420240 del 11/10/2022 - Fattura Ottobre 22: Periodo 6/22 Ago-Sett (di cui Split per euro 65,75)",1,3,2,5,2
TIM S.P.A. DIREZIONE E COORDINAMENTO VIVENDI SA,09/11/2022,5686,Telefonia mobile,"189,81","0,00","32,92",ZDF358188E,1,3,Acquisto di beni e servizi,2,5,2,"Liquidazione Fattura Nr. 7X04420240 del 11/10/2022 - Fattura Ottobre 22: Periodo 6/22 Ago-Sett (di cui Split per euro 32,92)",1,3,2,5,2
TIM S.P.A. DIREZIONE E COORDINAMENTO VIVENDI SA,09/11/2022,5688,Telefonia mobile,"82,03","0,00","14,23",ZDF358188E,1,3,Acquisto di beni e servizi,2,5,2,"Liquidazione Fattura Nr. 7X04420240 del 11/10/2022 - Fattura Ottobre 22: Periodo 6/22 Ago-Sett (di cui Split per euro 14,23)",1,3,2,5,2
TIM S.P.A. DIREZIONE E COORDINAMENTO VIVENDI SA,09/11/2022,5695,Servizi di rete per trasmissione dati e VoIP e relativa manutenzione,"26,94","0,00","4,68",ZDF358188E,1,3,Acquisto di beni e servizi,2,19,4,"Liquidazione Fattura Nr. 7X04420240 del 11/10/2022 - Fattura Ottobre 22: Periodo 6/22 Ago-Sett (di cui Split per euro 4,68)",1,3,2,19,4
BANCA CAMBIANO 1884,09/11/2022,5681,Oneri per servizio di tesoreria,"5.000,00","0,00","0,00",88040335DD,1,3,Acquisto di beni e servizi,2,17,2,"Liquidazione Fattura Nr. 2022E-721  del 27/10/2022 - PROCEDURA NEGOZIATA EX ART. 1 COMMA 2, LETTERA B) DEL D.L. 16/07/2020 N. 76 CONVERTITO CON MODIFICAZIONI NELLA LEGGE 120/2020 SVOLTA CON MODALITA' TELEMATICA PER L'AFFIDAMENTO IN APPALTO ",1,3,2,17,2
TECHNE S.R.L,09/11/2022,5691,Licenze d'uso per software,"1.878,80","0,00","338,80",Z9F3800948,1,3,Acquisto di beni e servizi,2,7,6,"Liquidazione Fattura Nr. 415 del 24/10/2022 - OdA 6975251 del 11.10.22 - Procedura 91015 - CIG Z9F3800948 (di cui Split per euro 338,80)",1,3,2,7,6
SYNLAB MED SRL A SOCIO UNICO,09/11/2022,5680,Spese per accertamenti sanitari resi necessari dall'attivit� lavorativa,"520,00","0,00","0,00",ZCE3487F6D,1,3,Acquisto di beni e servizi,2,18,1,LIQUIDAZIONE FATTURA NR. G22/00151  DEL 31/10/2022 - DS02160/1,1,3,2,18,1
CALDARINI & ASSOCIATI SRL,09/11/2022,5677,Acquisto di servizi per altre spese per formazione e addestramento n.a.c.,"251,00","0,00","0,00",ZB2382AFFC,1,3,Acquisto di beni e servizi,2,4,999,"Liquidazione Fattura Nr. 1386.22  del 27/10/2022 - FORMAZIONE  DELLE RISORSE UMANE DELL'ENTE  - ACQUISTO  DEL SERVIZIO DI FORMAZIONE ON LINE ""LA GESTIONE DEI FLUSSI FINANZIARI DEL PNRR"" - DETERMINA A CONTRARRE  E DI AFFIDAMENTO DIRETTO  - C",1,3,2,4,999
CALDARINI & ASSOCIATI SRL,09/11/2022,5678,Acquisto di servizi per formazione obbligatoria,"31,00","0,00","0,00",ZB2382AFFC,1,3,Acquisto di beni e servizi,2,4,4,"Liquidazione Fattura Nr. 1386.22  del 27/10/2022 - FORMAZIONE  DELLE RISORSE UMANE DELL'ENTE  - ACQUISTO  DEL SERVIZIO DI FORMAZIONE ON LINE ""LA GESTIONE DEI FLUSSI FINANZIARI DEL PNRR"" - DETERMINA A CONTRARRE  E DI AFFIDAMENTO DIRETTO  - C",1,3,2,4,4
DELFINO & PARTNERS SPA,09/11/2022,5679,Acquisto di servizi per formazione obbligatoria,"70,00","0,00","0,00",Z67382D699,1,3,Acquisto di beni e servizi,2,4,4,"Liquidazione Fattura Nr. 1891/PA  del 28/10/2022 - FORMAZIONE  DELLE RISORSE UMANE DELL'ENTE  - ACQUISTO  DEL SERVIZIO DI FORMAZIONE IN WEBINAR  ""LA CERTIFICAZIONE FONDI COVID E CARO BOLLETTE "" - DETERMINA A CONTRARRE  E DI AFFIDAMENTO DIRE",1,3,2,4,4
CLANIUS CONSULTING S.R.L.,09/11/2022,5682,Materiale informatico,"427,00","0,00","77,00",Z0037D4E7E,1,3,Acquisto di beni e servizi,1,2,6,"Liquidazione Fattura Nr. 641-22 del 25/10/2022 - 2022-09-22 Ordine 9+1 SC CNS da Comune di Vinci (FI) (MEPA) Z0037D4E7E (di cui Split per euro 77,00)",1,3,1,2,6
ACQUE S.P.A.,10/11/2022,5736,Acqua,"45,38","0,00","4,13",,1,3,Acquisto di beni e servizi,2,5,5,"LIQUIDAZIONE FATTURA NR. 6022012000011721  DEL 13/10/2022 (DI CUI SPLIT PER EURO 4,13) - FORNITURA ACQUA POTABILE PER SERVIZI E IMMOBILI COMUNALI ANNO 2022-IMPEGNO DI SPESA.",1,3,2,5,5
ACQUE S.P.A.,10/11/2022,5731,Acqua,"166,16","0,00","15,11",,1,3,Acquisto di beni e servizi,2,5,5,"LIQUIDAZIONE FATTURA NR. 6022012000011923  DEL 17/10/2022 (DI CUI SPLIT PER EURO 15,11) - FORNITURA ACQUA POTABILE PER SERVIZI E IMMOBILI COMUNALI ANNO 2022-IMPEGNO DI SPESA.",1,3,2,5,5
ACQUE S.P.A.,10/11/2022,5737,Acqua,"5,34","0,00","0,40",,1,3,Acquisto di beni e servizi,2,5,5,"LIQUIDAZIONE FATTURA NR. 6022012000011941  DEL 17/10/2022 (DI CUI SPLIT PER EURO 0,40) - FORNITURA ACQUA POTABILE PER SERVIZI E IMMOBILI COMUNALI ANNO 2022-IMPEGNO DI SPESA.",1,3,2,5,5
ACQUE S.P.A.,10/11/2022,5714,Acqua,"1.232,70","0,00","112,06",,1,3,Acquisto di beni e servizi,2,5,5,"LIQUIDAZIONE FATTURA NR. 6022012000012067  DEL 19/10/2022 (DI CUI SPLIT PER EURO 112,06) - FORNITURA ACQUA POTABILE PER SERVIZI E IMMOBILI COMUNALI ANNO 2022-IMPEGNO DI SPESA.",1,3,2,5,5
ACQUE S.P.A.,10/11/2022,5719,Acqua,"1.612,02","0,00","146,55",,1,3,Acquisto di beni e servizi,2,5,5,"LIQUIDAZIONE FATTURA NR. 6022012000011714  DEL 13/10/2022 (DI CUI SPLIT PER EURO 146,55) - FORNITURA ACQUA POTABILE PER SERVIZI E IMMOBILI COMUNALI ANNO 2022-IMPEGNO DI SPESA.",1,3,2,5,5
ACQUE S.P.A.,10/11/2022,5738,Acqua,"16,72","0,00","1,52",,1,3,Acquisto di beni e servizi,2,5,5,"LIQUIDAZIONE FATTURA NR. 6022012000012183  DEL 20/10/2022 (DI CUI SPLIT PER EURO 1,52) - FORNITURA ACQUA POTABILE PER SERVIZI E IMMOBILI COMUNALI ANNO 2022-IMPEGNO DI SPESA.",1,3,2,5,5
ACQUE S.P.A.,10/11/2022,5754,Acqua,"1.677,35","0,00","152,49",,1,3,Acquisto di beni e servizi,2,5,5,"LIQUIDAZIONE FATTURA NR. 6022012000012212  DEL 21/10/2022 (DI CUI SPLIT PER EURO 152,49) - FORNITURA ACQUA POTABILE PER SERVIZI E IMMOBILI COMUNALI ANNO 2022-IMPEGNO DI SPESA.",1,3,2,5,5
ACQUE S.P.A.,10/11/2022,5710,Acqua,"466,68","0,00","34,24",,1,3,Acquisto di beni e servizi,2,5,5,"LIQUIDAZIONE FATTURA NR. 6022012000012246  DEL 21/10/2022 (DI CUI SPLIT PER EURO 34,24) - FORNITURA ACQUA POTABILE PER SERVIZI E IMMOBILI COMUNALI ANNO 2022-IMPEGNO DI SPESA.",1,3,2,5,5
ACQUE S.P.A.,10/11/2022,5711,Acqua,"29,43","0,00","2,68",,1,3,Acquisto di beni e servizi,2,5,5,"LIQUIDAZIONE FATTURA NR. 6022012000012222  DEL 21/10/2022 (DI CUI SPLIT PER EURO 2,68) - FORNITURA ACQUA POTABILE PER SERVIZI E IMMOBILI COMUNALI ANNO 2022-IMPEGNO DI SPESA.",1,3,2,5,5
ACQUE S.P.A.,10/11/2022,5726,Acqua,"321,12","0,00","29,19",,1,3,Acquisto di beni e servizi,2,5,5,"LIQUIDAZIONE FATTURA NR. 6022012000012372  DEL 24/10/2022 (DI CUI SPLIT PER EURO 29,19) - FORNITURA ACQUA POTABILE PER SERVIZI E IMMOBILI COMUNALI ANNO 2022-IMPEGNO DI SPESA.",1,3,2,5,5
ACQUE S.P.A.,10/11/2022,5722,Acqua,"422,93","0,00","38,45",,1,3,Acquisto di beni e servizi,2,5,5,"LIQUIDAZIONE FATTURA NR. 6022012000012370  DEL 24/10/2022 (DI CUI SPLIT PER EURO 38,45) - FORNITURA ACQUA POTABILE PER SERVIZI E IMMOBILI COMUNALI ANNO 2022-IMPEGNO DI SPESA.",1,3,2,5,5
ACQUE S.P.A.,10/11/2022,5750,Acqua,"502,16","0,00","45,65",,1,3,Acquisto di beni e servizi,2,5,5,"LIQUIDAZIONE FATTURA NR. 6022012000012576  DEL 27/10/2022 (DI CUI SPLIT PER EURO 45,65) - FORNITURA ACQUA POTABILE PER SERVIZI E IMMOBILI COMUNALI ANNO 2022-IMPEGNO DI SPESA.",1,3,2,5,5
EDISON ENERGIA S.P.A.,10/11/2022,5732,Gas,"134,65","0,00","6,41",89162702C5,1,3,Acquisto di beni e servizi,2,5,6,"BONIFICO A FAVORE DI EDISON ENERGIA   Liquidazione Fattura Nr. 5950284774  del 17/10/2022 (di cui Split per euro 6,41) - 15964204269553",1,3,2,5,6
EDISON ENERGIA S.P.A.,10/11/2022,5733,Gas,"89,76","0,00","4,28",89162702C5,1,3,Acquisto di beni e servizi,2,5,6," BONIFICO A FAVORE DI EDISON ENERGIA Liquidazione Fattura Nr. 5950284774  del 17/10/2022 (di cui Split per euro 4,28) - 15964204269553",1,3,2,5,6
EDISON ENERGIA S.P.A.,10/11/2022,5751,Gas,"94,26","0,00","4,49",89162702C5,1,3,Acquisto di beni e servizi,2,5,6,"BONIFICO A FAVORE DI EDISON ENERGIA -Liquidazione Fattura Nr. 5950285051  del 17/10/2022 (di cui Split per euro 4,49) - 15104203729242",1,3,2,5,6
EDISON ENERGIA S.P.A.,10/11/2022,5696,Gas,"3,06","0,00","0,15",89162702C5,1,3,Acquisto di beni e servizi,2,5,6,"BONIFICO A FAVORE DI EDISON ENERGIALiquidazione Fattura Nr. 5950286550  del 17/10/2022 (di cui Split per euro 0,15) - 15104203729241",1,3,2,5,6
EDISON ENERGIA S.P.A.,10/11/2022,5713,Gas,"303,60","0,00","14,46",89162702C5,1,3,Acquisto di beni e servizi,2,5,6,"BONIFICO A FAVORE DI EDISON ENERGIA  Liquidazione Fattura Nr. 5950284695  del 17/10/2022 (di cui Split per euro 14,46) - 15104203728332",1,3,2,5,6
EDISON ENERGIA S.P.A.,10/11/2022,5755,Gas,"33,46","0,00","1,59",89162702C5,1,3,Acquisto di beni e servizi,2,5,6," BONIFICO A FAVORE DI EDISON ENERGIA Liquidazione Fattura Nr. 5950285786  del 17/10/2022 (di cui Split per euro 1,59) - 15104203730554",1,3,2,5,6
EDISON ENERGIA S.P.A.,10/11/2022,5718,Gas,"33,46","0,00","1,59",89162702C5,1,3,Acquisto di beni e servizi,2,5,6,"BONIFICO A FAVORE DI EDISON ENERGIA  Liquidazione Fattura Nr. 5950285787  del 17/10/2022 (di cui Split per euro 1,59) - 15104203730736",1,3,2,5,6
EDISON ENERGIA S.P.A.,10/11/2022,5721,Gas,"33,46","0,00","1,59",89162702C5,1,3,Acquisto di beni e servizi,2,5,6," BONIFICO A FAVORE DI EDISON ENERGIA Liquidazione Fattura Nr. 5950285785  del 17/10/2022 (di cui Split per euro 1,59) - 15104203730640",1,3,2,5,6
EDISON ENERGIA S.P.A.,10/11/2022,5753,Gas,"3,06","0,00","0,15",89162702C5,1,3,Acquisto di beni e servizi,2,5,6," BONIFICO A FAVORE DI EDISON ENERGIA Liquidazione Fattura Nr. 5950286551  del 17/10/2022 (di cui Split per euro 0,15) - 15104203729400",1,3,2,5,6
NOVA AEG SPA,10/11/2022,5739,Energia elettrica,"10,54","0,00","1,90",897509310C,1,3,Acquisto di beni e servizi,2,5,4,"Liquidazione Fattura Nr. 2220151663  del 21/10/2022 (di cui Split per euro 1,90) - IT001E04919533 202209  SEDE DI FORNITURA EE",1,3,2,5,4
NOVA AEG SPA,10/11/2022,5728,Energia elettrica,"1.180,92","0,00","212,95",897509310C,1,3,Acquisto di beni e servizi,2,5,4,"Liquidazione Fattura Nr. 2220151659  del 21/10/2022 (di cui Split per euro 212,95) - IT001E04919529 202209  SEDE DI FORNITURA EE",1,3,2,5,4
NOVA AEG SPA,10/11/2022,5712,Energia elettrica,"60,49","0,00","10,91",897509310C,1,3,Acquisto di beni e servizi,2,5,4,"Liquidazione Fattura Nr. 2220151660  del 21/10/2022 (di cui Split per euro 10,91) - IT001E04919543 202209  SEDE DI FORNITURA EE",1,3,2,5,4
NOVA AEG SPA,10/11/2022,5747,Energia elettrica,"154,49","0,00","27,86",897509310C,1,3,Acquisto di beni e servizi,2,5,4,"LIQUIDAZIONE FATTURA NR. 2220151633  DEL 21/10/2022 (DI CUI SPLIT PER EURO 27,86) - IT001E43232057 202209  SEDE DI FORNITURA EE",1,3,2,5,4
NOVA AEG SPA,10/11/2022,5730,Energia elettrica,"906,53","0,00","163,47",897509310C,1,3,Acquisto di beni e servizi,2,5,4,"Liquidazione Fattura Nr. 2220151652  del 21/10/2022 (di cui Split per euro 163,47) - IT001E40889726 202209  SEDE DI FORNITURA EE",1,3,2,5,4
NOVA AEG SPA,10/11/2022,5716,Energia elettrica,"271,17","0,00","48,90",897509310C,1,3,Acquisto di beni e servizi,2,5,4,"Liquidazione Fattura Nr. 2220151642  del 21/10/2022 (di cui Split per euro 48,90) - IT001E04919515 202209  SEDE DI FORNITURA EE",1,3,2,5,4
NOVA AEG SPA,10/11/2022,5752,Energia elettrica,"475,03","0,00","85,66",897509310C,1,3,Acquisto di beni e servizi,2,5,4,"Liquidazione Fattura Nr. 2220151643  del 21/10/2022 (di cui Split per euro 85,66) - IT001E04919540 202209  SEDE DI FORNITURA EE",1,3,2,5,4
NOVA AEG SPA,10/11/2022,5700,Energia elettrica,"4.191,65","0,00","755,87",897509310C,1,3,Acquisto di beni e servizi,2,5,4,"Liquidazione Fattura Nr. 2220151634  del 21/10/2022 (di cui Split per euro 755,87) - IT001E04919523 202209  SEDE DI FORNITURA EE",1,3,2,5,4
NOVA AEG SPA,10/11/2022,5699,Energia elettrica,"79,12","0,00","14,27",897509310C,1,3,Acquisto di beni e servizi,2,5,4,"Liquidazione Fattura Nr. 2220151664  del 21/10/2022 (di cui Split per euro 14,27) - IT001E04919532 202209  SEDE DI FORNITURA EE",1,3,2,5,4
NOVA AEG SPA,10/11/2022,5720,Energia elettrica,"1.102,99","0,00","198,90",897509310C,1,3,Acquisto di beni e servizi,2,5,4,"Liquidazione Fattura Nr. 2220151644  del 21/10/2022 (di cui Split per euro 198,90) - IT001E04919516 202209  SEDE DI FORNITURA EE",1,3,2,5,4
NOVA AEG SPA,10/11/2022,5698,Energia elettrica,"89,45","0,00","16,13",897509310C,1,3,Acquisto di beni e servizi,2,5,4,"Liquidazione Fattura Nr. 2220151653  del 21/10/2022 (di cui Split per euro 16,13) - IT001E04919517 202209  SEDE DI FORNITURA EE",1,3,2,5,4
NOVA AEG SPA,10/11/2022,5724,Energia elettrica,"890,71","0,00","160,62",897509310C,1,3,Acquisto di beni e servizi,2,5,4,"Liquidazione Fattura Nr. 2220151635  del 21/10/2022 (di cui Split per euro 160,62) - IT001E40886806 202209  SEDE DI FORNITURA EE",1,3,2,5,4
NOVA AEG SPA,10/11/2022,5701,Energia elettrica,"758,82","0,00","136,84",897509310C,1,3,Acquisto di beni e servizi,2,5,4,"Liquidazione Fattura Nr. 2220151636  del 21/10/2022 (di cui Split per euro 136,84) - IT001E04919536 202209  SEDE DI FORNITURA EE",1,3,2,5,4
NOVA AEG SPA,10/11/2022,5717,Energia elettrica,"47,63","0,00","8,59",897509310C,1,3,Acquisto di beni e servizi,2,5,4,"Liquidazione Fattura Nr. 2220151668  del 21/10/2022 (di cui Split per euro 8,59) - IT001E04919535 202209  SEDE DI FORNITURA EE",1,3,2,5,4
NOVA AEG SPA,10/11/2022,5749,Energia elettrica,"749,51","0,00","135,16",897509310C,1,3,Acquisto di beni e servizi,2,5,4,"Liquidazione Fattura Nr. 2220151647  del 21/10/2022 (di cui Split per euro 135,16) - IT001E04919544 202209  SEDE DI FORNITURA EE",1,3,2,5,4
NOVA AEG SPA,10/11/2022,5704,Energia elettrica,"742,87","0,00","133,96",897509310C,1,3,Acquisto di beni e servizi,2,5,4,"Liquidazione Fattura Nr. 2220151654  del 21/10/2022 (di cui Split per euro 133,96) - IT001E04919524 202209  SEDE DI FORNITURA EE",1,3,2,5,4
NOVA AEG SPA,10/11/2022,5705,Energia elettrica,"169,69","0,00","30,60",897509310C,1,3,Acquisto di beni e servizi,2,5,4,"Liquidazione Fattura Nr. 2220151656  del 21/10/2022 (di cui Split per euro 30,60) - IT001E04919527 202209  SEDE DI FORNITURA EE",1,3,2,5,4
NOVA AEG SPA,10/11/2022,5706,Energia elettrica,"93,56","0,00","16,87",897509310C,1,3,Acquisto di beni e servizi,2,5,4,"Liquidazione Fattura Nr. 2220151639  del 21/10/2022 (di cui Split per euro 16,87) - IT001E04919518 202209  SEDE DI FORNITURA EE",1,3,2,5,4
NOVA AEG SPA,10/11/2022,5734,Energia elettrica,"276,41","0,00","49,84",897509310C,1,3,Acquisto di beni e servizi,2,5,4,"Liquidazione Fattura Nr. 2220151638  del 21/10/2022 (di cui Split per euro 49,84) - IT001E41412665 202209  SEDE DI FORNITURA EE",1,3,2,5,4
NOVA AEG SPA,10/11/2022,5735,Energia elettrica,"184,27","0,00","33,23",897509310C,1,3,Acquisto di beni e servizi,2,5,4,"Liquidazione Fattura Nr. 2220151638  del 21/10/2022 (di cui Split per euro 33,23) - IT001E41412665 202209  SEDE DI FORNITURA EE",1,3,2,5,4
NOVA AEG SPA,10/11/2022,5707,Energia elettrica,"22,14","0,00","3,99",897509310C,1,3,Acquisto di beni e servizi,2,5,4,"Liquidazione Fattura Nr. 2220151655  del 21/10/2022 (di cui Split per euro 3,99) - IT001E41741369 202209  SEDE DI FORNITURA EE",1,3,2,5,4
NOVA AEG SPA,10/11/2022,5745,Energia elettrica,"170,79","0,00","30,80",897509310C,1,3,Acquisto di beni e servizi,2,5,4,"LIQUIDAZIONE FATTURA NR. 2220151648  DEL 21/10/2022 (DI CUI SPLIT PER EURO 30,80) - IT001E43263124 202209  SEDE DI FORNITURA EE",1,3,2,5,4
NOVA AEG SPA,10/11/2022,5746,Energia elettrica,"75,58","0,00","13,63",897509310C,1,3,Acquisto di beni e servizi,2,5,4,"LIQUIDAZIONE FATTURA NR. 2220151649  DEL 21/10/2022 (DI CUI SPLIT PER EURO 13,63) - IT001E43232056 202209  SEDE DI FORNITURA EE",1,3,2,5,4
NOVA AEG SPA,10/11/2022,5708,Energia elettrica,"549,81","0,00","99,15",897509310C,1,3,Acquisto di beni e servizi,2,5,4,"Liquidazione Fattura Nr. 2220151641  del 21/10/2022 (di cui Split per euro 99,15) - IT001E04919519 202209  SEDE DI FORNITURA EE",1,3,2,5,4
NOVA AEG SPA,10/11/2022,5748,Energia elettrica,"90,65","0,00","16,35",897509310C,1,3,Acquisto di beni e servizi,2,5,4,"LIQUIDAZIONE FATTURA NR. 2220151661  DEL 21/10/2022 (DI CUI SPLIT PER EURO 16,35) - IT001E41398842 202209  SEDE DI FORNITURA EE",1,3,2,5,4
NOVA AEG SPA,10/11/2022,5725,Energia elettrica,"525,37","0,00","94,74",897509310C,1,3,Acquisto di beni e servizi,2,5,4,"Liquidazione Fattura Nr. 2220151645  del 21/10/2022 (di cui Split per euro 94,74) - IT001E04919521 202209  SEDE DI FORNITURA EE",1,3,2,5,4
NOVA AEG SPA,10/11/2022,5740,Energia elettrica,"74,04","0,00","13,35",897509310C,1,3,Acquisto di beni e servizi,2,5,4,"Liquidazione Fattura Nr. 2220151650  del 21/10/2022 (di cui Split per euro 13,35) - IT001E04919526 202209  SEDE DI FORNITURA EE",1,3,2,5,4
NOVA AEG SPA,10/11/2022,5697,Energia elettrica,"71,17","0,00","12,83",897509310C,1,3,Acquisto di beni e servizi,2,5,4,"Liquidazione Fattura Nr. 2220151658  del 21/10/2022 (di cui Split per euro 12,83) - IT001E04919530 202209  SEDE DI FORNITURA EE",1,3,2,5,4
NOVA AEG SPA,10/11/2022,5741,Energia elettrica,"197,57","0,00","35,63",897509310C,1,3,Acquisto di beni e servizi,2,5,4,"Liquidazione Fattura Nr. 2220151651  del 21/10/2022 (di cui Split per euro 35,63) - IT001E04919525 202209  SEDE DI FORNITURA EE",1,3,2,5,4
NOVA AEG SPA,10/11/2022,5715,Energia elettrica,"2.258,27","0,00","407,23",897509310C,1,3,Acquisto di beni e servizi,2,5,4,"Liquidazione Fattura Nr. 2220151640  del 21/10/2022 (di cui Split per euro 407,23) - IT001E04919538 202209  SEDE DI FORNITURA EE",1,3,2,5,4
NOVA AEG SPA,10/11/2022,5709,Energia elettrica,"14,62","0,00","2,64",897509310C,1,3,Acquisto di beni e servizi,2,5,4,"Liquidazione Fattura Nr. 2220151666  del 21/10/2022 (di cui Split per euro 2,64) - IT001E40889318 202209  SEDE DI FORNITURA EE",1,3,2,5,4
NOVA AEG SPA,10/11/2022,5729,Energia elettrica,"4.268,43","0,00","769,72",897509310C,1,3,Acquisto di beni e servizi,2,5,4,"Liquidazione Fattura Nr. 2220151662  del 21/10/2022 (di cui Split per euro 769,72) - IT001E04919531 202209  SEDE DI FORNITURA EE",1,3,2,5,4
NOVA AEG SPA,10/11/2022,5743,Energia elettrica,"44.074,93","0,00","7.947,94",89749689E2,1,3,Acquisto di beni e servizi,2,5,4,"Liquidazione Fattura Nr. 2220151631  del 21/10/2022 (di cui Split per euro 7.947,94) - 202209 ",1,3,2,5,4
NOVA AEG SPA,10/11/2022,5744,Energia elettrica,"2.675,81","0,00","482,52",89749689E2,1,3,Acquisto di beni e servizi,2,5,4,"Liquidazione Fattura Nr. 2220151667  del 21/10/2022 (di cui Split per euro 482,52) - IT001E43445285 202209  SEDE DI FORNITURA EE",1,3,2,5,4
NOVA AEG SPA,10/11/2022,5727,Energia elettrica,"9.584,89","0,00","1.728,42",897509310C,1,3,Acquisto di beni e servizi,2,5,4,"Liquidazione Fattura Nr. 2220151657  del 21/10/2022 (di cui Split per euro 1.728,42) - IT001E04919528 202209  SEDE DI FORNITURA EE",1,3,2,5,4
NOVA AEG SPA,10/11/2022,5742,Energia elettrica,"378,40","0,00","68,24",89749689E2,1,3,Acquisto di beni e servizi,2,5,4,"Liquidazione Fattura Nr. 2220151637  del 21/10/2022 (di cui Split per euro 68,24) - IT001E40095287 202209  SEDE DI FORNITURA EE",1,3,2,5,4
NOVA AEG SPA,10/11/2022,5702,Energia elettrica,"10,54","0,00","1,90",897509310C,1,3,Acquisto di beni e servizi,2,5,4,"Liquidazione Fattura Nr. 2220151646  del 21/10/2022 (di cui Split per euro 1,90) - IT001E04919522 202209  SEDE DI FORNITURA EE",1,3,2,5,4
NOVA AEG SPA,10/11/2022,5756,Energia elettrica,"960,35","0,00","173,18",897509310C,1,3,Acquisto di beni e servizi,2,5,4,"Liquidazione Fattura Nr. 2220151665  del 21/10/2022 (di cui Split per euro 173,18) - IT001E04919534 202209  SEDE DI FORNITURA EE",1,3,2,5,4
NOVA AEG SPA,10/11/2022,5703,Energia elettrica,"59,76","0,00","10,78",897509310C,1,3,Acquisto di beni e servizi,2,5,4,"Liquidazione Fattura Nr. 2220151669  del 21/10/2022 (di cui Split per euro 10,78) - IT001E40890531 202209  SEDE DI FORNITURA EE",1,3,2,5,4
NOVA AEG SPA,10/11/2022,5723,Energia elettrica,"1.106,33","0,00","199,50",897509310C,1,3,Acquisto di beni e servizi,2,5,4,"Liquidazione Fattura Nr. 2220151632  del 21/10/2022 (di cui Split per euro 199,50) - IT001E04919520 202209  SEDE DI FORNITURA EE",1,3,2,5,4
ERARIO DELLO STATO PER PAGAMENTO I.V.A.,14/11/2022,5760,Versamenti IVA a debito per le gestioni commerciali,"6.461,14","0,00","0,00",,1,10,Altre spese correnti,3,1,1,VERSAMENTO IVA A DEBITO MESE DI OTTOBRE 2022. IMPEGNO E LIQUIDAZIONE.,1,10,3,1,1
ATO TOSCANA CENTRO AUTORIT� PER IL SERVIZIO DI GESTIONE INTEGRATA DEI RIFIUTI UR,14/11/2022,5764,Trasferimenti correnti a altre Amministrazioni Locali n.a.c.,"8.700,00","0,00","0,00",,1,4,Trasferimenti correnti,1,2,999,SPESE DI FUNZIONAMENTO ATO TOSCANA CENTRO. IMPEGNO DI SPESA ESERCIZIO 2022.,1,4,1,2,999
COOPERATIVA SOCIALE PEGASO SOCIETA' COOPERATIVA,17/11/2022,5767,Manutenzione ordinaria e riparazioni di beni immobili,"32.808,24","0,00","5.916,24",Z933708130,1,3,Acquisto di beni e servizi,2,9,8,"Liquidazione Fattura Nr. 226/01  del 31/10/2022 (di cui Split per euro 5.916,24) - manutenzione verde pubblico anno 2022_pagamento.1�sal",1,3,2,9,8
ALIA SERVIZI AMBIENTALI S.P.A.,17/11/2022,5766,Contratti di servizio per la raccolta rifiuti,"277.454,84","0,00","25.223,17",4726694F44,1,3,Acquisto di beni e servizi,2,15,4,"LIQUIDAZIONE FATTURA NR. 0000134715  DEL 31/10/2022 (DI CUI SPLIT PER EURO 25.223,17) -  DETERMINA 62 DEL 28.06.2022  IVA DA VERSARE A CURA DEL CESSIONARIO O COMMITTENTE AI SENSI DELL'ART.17 -TER DEL D.P.R. NR.633/1972 SCISSIONE PAGAMENTI",1,3,2,15,4
LOCUOCO DANIELE,17/11/2022,5765,Altri trasferimenti a famiglie n.a.c.,"780,00","0,00","0,00",,1,4,Trasferimenti correnti,2,5,999,contributi in favore della popolazione colpita dagli eventi atmosferici di novembre 2019,1,4,2,5,999
AUTOPASS EMPOLI S.R.L.,21/11/2022,5807,"Manutenzione ordinaria e riparazioni di mezzi di trasporto ad uso civile, di sicurezza e ordine pubblico","745,66","0,00","134,46",ZA035703C0,1,3,Acquisto di beni e servizi,2,9,1,"Liquidazione Fattura Nr. 0000021FE  del 30/09/2022 (di cui Split per euro 134,46) - sostituzione pneumatici",1,3,2,9,1
ARCA COOPERATIVA SOCIALE,21/11/2022,5825,Contratti di servizio di asilo nido,"4.950,89","0,00","235,76",8388889A31,1,3,Acquisto di beni e servizi,2,15,10,"Liquidazione Fattura Nr. 1992/E  del 03/11/2022 (di cui Split per euro 235,76) - Vendita Iva da versare a cura del cessionario o committente ai sensi dell'art. 17-ter del D.P.R. n. 633/1972 (scissione dei pagamenti)",1,3,2,15,10
CEROFOLINI S.R.L.,21/11/2022,5827,Altri servizi diversi n.a.c.,"1.830,00","0,00","330,00",Z9A37D0B2B,1,3,Acquisto di beni e servizi,2,99,999,"Liquidazione Fattura Nr. 52/06  del 18/10/2022 (di cui Split per euro 330,00) - ELEZIONI POLITICHE DEL 25 SETTEMBRE 2022 - PULIZIA E SANIFICAZIONE SEGGI ELETTORALI ",1,3,2,99,999
PARROCCHIA DI SANTA MARIA A FALTOGNANO,21/11/2022,5851,Altri trasferimenti a famiglie n.a.c.,"50,00","0,00","0,00",,1,4,Trasferimenti correnti,2,5,999,liquidazione utenze anno 2021 relative ad allacciamenti lampade pubbliche su contatori privati,1,4,2,5,999
PACI SRL,21/11/2022,5828,Mobili e arredi n.a.c.,"3.296,62","0,00","594,47",Z7437D854A,2,2,Investimenti fissi lordi e acquisto di terreni,1,3,999,"Liquidazione Fattura Nr. 00113  del 25/10/2022 (di cui Split per euro 594,47) - Determinazione 179 del 27/09/2022",2,2,1,3,999
PROMOCULTURA SOCIETA' COOPERATIVA IMPRESA SOCIALE PICCOLA SOCIETA' COOPERATIVA,21/11/2022,5838,Altri servizi diversi n.a.c.,"1.750,00","0,00","0,00",ZE236A2D2D,1,3,Acquisto di beni e servizi,2,99,999,"Liquidazione Fattura Nr. 107-E-2022 del 03/11/2022 - Realizzazione e svolgimento del progetto ""LEGGERE FUORI"" luglio-settembre 2022 rif. determina Settore 5 n. 79  del 21/06/2022; cig ZE236A2D2D",1,3,2,99,999
NOL CAR SRL,21/11/2022,5806,Noleggi di mezzi di trasporto,"366,00","0,00","66,00",Z1C37A159F,1,3,Acquisto di beni e servizi,2,7,2,Liquidazione Fattura Nr. 00003/A del 26/09/2022 - Fornitura furgone ,1,3,2,7,2
POSTE ITALIANE SPA SOCIETA' CON SOCIO UNICO,21/11/2022,5836,Spese postali,"77,00","0,00","0,00",Z14361EF92,1,3,Acquisto di beni e servizi,2,16,2,Liquidazione Fattura Nr. 1022273246  del 26/10/2022 - 30027076-015 PICK UP AGOSTO 2022,1,3,2,16,2
BARTALUCCI SAS DI BARTALUCCI ELENA E BARTALUCCI MONICA,21/11/2022,5803,Altri servizi ausiliari n.a.c.,"64,71","0,00","11,67",Z0136F1066,1,3,Acquisto di beni e servizi,2,13,999,"Liquidazione Fattura Nr. 477/P  del 22/10/2022 (di cui Split per euro 11,67) - SERVIZIO DI TRASCRIZIONE SEDUTA DEL 21/04/2022",1,3,2,13,999
BARTALUCCI SAS DI BARTALUCCI ELENA E BARTALUCCI MONICA,21/11/2022,5802,Altri servizi ausiliari n.a.c.,"31,52","0,00","5,68",Z0136F1066,1,3,Acquisto di beni e servizi,2,13,999,"Liquidazione Fattura Nr. 475/P  del 22/10/2022 (di cui Split per euro 5,68) - TRASCRIZIONE REGISTRAZIONI SEDUTA CC DEL 28/07/2022",1,3,2,13,999
MATERIALI EDILI BALDACCI DI BALDACCI RENATO E C. SNC,21/11/2022,5826,Altri beni e materiali di consumo n.a.c.,"16,43","0,00","2,96",Z75367A329,1,3,Acquisto di beni e servizi,1,2,999,"Liquidazione Fattura Nr. 1238/00  del 30/09/2022 (di cui Split per euro 2,96) - ACQUISTO MATERIALI EDILI ",1,3,1,2,999
PARROCCHIA SAN PIETRO APOSTOLO,21/11/2022,5853,Altri trasferimenti a famiglie n.a.c.,"43,00","0,00","0,00",,1,4,Trasferimenti correnti,2,5,999,liquidazione utenze anno 2021 relative ad allacciamenti lampade pubbliche su contatori privati,1,4,2,5,999
TARCHI  FABRIZIO,21/11/2022,5857,Altri trasferimenti a famiglie n.a.c.,"19,00","0,00","0,00",,1,4,Trasferimenti correnti,2,5,999,liquidazione utenze anno 2021 relative ad allacciamenti lampade pubbliche su contatori privati,1,4,2,5,999
EUROSPURGHI S.R.L.,21/11/2022,5815,Manutenzione ordinaria e riparazioni di beni immobili,"484,00","0,00","44,00",Z18358BD90,1,3,Acquisto di beni e servizi,2,9,8,"LIQUIDAZIONE FATTURA NR. 23/P  DEL 30/09/2022 (DI CUI SPLIT PER EURO 44,00) - PULIZIA E VUOTATURE FOSSE BIOLOGICHE",1,3,2,9,8
SERAFINI   LUIGI,21/11/2022,5855,Altri trasferimenti a famiglie n.a.c.,"50,00","0,00","0,00",,1,4,Trasferimenti correnti,2,5,999,liquidazione utenze anno 2021 relative ad allacciamenti lampade pubbliche su contatori privati,1,4,2,5,999
BIONDI   MARIETTA,21/11/2022,5841,Altri trasferimenti a famiglie n.a.c.,"55,00","0,00","0,00",,1,4,Trasferimenti correnti,2,5,999,liquidazione utenze anno 2021 relative ad allacciamenti lampade pubbliche su contatori privati,1,4,2,5,999
SOSTEGNI  FRANCESCO,21/11/2022,5856,Altri trasferimenti a famiglie n.a.c.,"50,00","0,00","0,00",,1,4,Trasferimenti correnti,2,5,999,liquidazione utenze anno 2021 relative ad allacciamenti lampade pubbliche su contatori privati,1,4,2,5,999
VIOLANTI  PIERO,21/11/2022,5858,Altri trasferimenti a famiglie n.a.c.,"93,00","0,00","0,00",,1,4,Trasferimenti correnti,2,5,999,liquidazione utenze anno 2021 relative ad allacciamenti lampade pubbliche su contatori privati,1,4,2,5,999
MARZI  RICCARDO,21/11/2022,5849,Altri trasferimenti a famiglie n.a.c.,"43,00","0,00","0,00",,1,4,Trasferimenti correnti,2,5,999,liquidazione utenze anno 2021 relative ad allacciamenti lampade pubbliche su contatori privati,1,4,2,5,999
LASTRUCCI  CARLA,21/11/2022,5846,Altri trasferimenti a famiglie n.a.c.,"50,00","0,00","0,00",,1,4,Trasferimenti correnti,2,5,999,liquidazione utenze anno 2021 relative ad allacciamenti lampade pubbliche su contatori privati,1,4,2,5,999
FONATELLI MARIA PIA,21/11/2022,5843,Altri trasferimenti a famiglie n.a.c.,"86,00","0,00","0,00",,1,4,Trasferimenti correnti,2,5,999,liquidazione utenze anno 2021 relative ad allacciamenti lampade pubbliche su contatori privati,1,4,2,5,999
MANCINI MARIO,21/11/2022,5848,Altri trasferimenti a famiglie n.a.c.,"25,00","0,00","0,00",,1,4,Trasferimenti correnti,2,5,999,liquidazione utenze anno 2021 relative ad allacciamenti lampade pubbliche su contatori privati,1,4,2,5,999
IMMOBILIARE AGRICOLA FALTOGNANO,21/11/2022,5845,Altri trasferimenti a famiglie n.a.c.,"86,00","0,00","0,00",,1,4,Trasferimenti correnti,2,5,999,liquidazione utenze anno 2021 relative ad allacciamenti lampade pubbliche su contatori privati,1,4,2,5,999
CENTRO INTERNAZIONALE DI STUDI E DOCUMENTAZIONE LEONARDO DA VINCI ETS C/O BIBLIO,21/11/2022,5780,Altre spese per contratti di servizio pubblico,"22.997,85","0,00","0,00",,1,3,Acquisto di beni e servizi,2,15,999,"LIQUIDAZIONE RICHIESTA DI RIMBORSO DEL SALDO PER LA GESTIONE DELL�ESPOSIZIONE �LEONARDO  E LA PITTURA�, 11.01./26.06.2022  (SOTTRATTI 168 GIORNI DI SOSPENSIONE PER EMERGENZA SANITARIA)",1,3,2,15,999
GIGLIOLI PIATTAFORME DI GIGLIOLI ANTONIO & C. S.A.S.,21/11/2022,5821,Altre spese sostenute per utilizzo di beni di terzi n.a.c.,"262,30","0,00","47,30",Z9037DECEC,1,3,Acquisto di beni e servizi,2,7,999,"Liquidazione Fattura Nr. 1731  del 30/09/2022 (di cui Split per euro 47,30) - Contratto di Noleggio ",1,3,2,7,999
GIRALDI PAOLO,21/11/2022,5844,Altri trasferimenti a famiglie n.a.c.,"43,00","0,00","0,00",,1,4,Trasferimenti correnti,2,5,999,liquidazione utenze anno 2021 relative ad allacciamenti lampade pubbliche su contatori privati,1,4,2,5,999
ESKIMO COOP. SOCIALE ONLUS,21/11/2022,5799,Altre spese per contratti di servizio pubblico,"5.591,28","0,00","0,00",9454707F06,1,3,Acquisto di beni e servizi,2,15,999,"Liquidazione Fattura Nr. FATTPA 112_22  del 11/10/2022 - APPROVAZIONE DELLO SCHEMA DI CONTRATTO OPERATIVO PER L'APPALTO DEI SERVIZI EDUCATIVI INTEGRATIVI PER LA PRIMA INFANZIA,DEI SERVIZI EXTRA SCOLASTICI E ULTERIORI ATTIVITA' DI CUI ALL'AC",1,3,2,15,999
ESKIMO COOP. SOCIALE ONLUS,21/11/2022,5859,Altre spese per contratti di servizio pubblico,"369,69","0,00","0,00",9454707F06,1,3,Acquisto di beni e servizi,2,15,999,"Liquidazione Fattura Nr. FATTPA 113_22  del 11/10/2022 - APPROVAZIONE DELLO SCHEMA DI CONTRATTO OPERATIVO PER L'APPALTO DEI SERVIZI EDUCATIVI INTEGRATIVI PER LA PRIMA INFANZIA,DEI SERVIZI EXTRA SCOLASTICI E ULTERIORI ATTIVITA' DI CUI ALL'AC",1,3,2,15,999
ESKIMO COOP. SOCIALE ONLUS,21/11/2022,5800,Altre spese per contratti di servizio pubblico,"7.370,83","0,00","0,00",9454707F06,1,3,Acquisto di beni e servizi,2,15,999,"Liquidazione Fattura Nr. FATTPA 127_22  del 04/11/2022 - APPR. SCHEMA DI CONTRATTO OPER.  L'APPALTO DEI SERVIZI EDUC.INTEGR.PRIMA INFANZIA,DEI SERVIZI EXTRA SCOLASTICI E ULTERIORI ATTIVITA' DI CUI ALL'ACCORDO QUADRO REP. N. 1558 DEL 07/12/2",1,3,2,15,999
ESKIMO COOP. SOCIALE ONLUS,21/11/2022,5860,Altre spese per contratti di servizio pubblico,"369,69","0,00","0,00",9454707F06,1,3,Acquisto di beni e servizi,2,15,999,"Liquidazione Fattura Nr. FATTPA 128_22  del 04/11/2022 - APPROV..SCHEMA DI CONTR. OPERATIVO . L'APPALTO . SERVIZI EDUC. INTEGRATIVI  PRIMA INFANZIA,SERVIZI EXTRA SCOL. E ULTERIORI ATTIVITA' DI CUI  ACC.QUADRO QUADRO REP. N. 1558 DEL 07/12/2",1,3,2,15,999
CO&SO EMPOLI - CONS. DI COOP. SOCIALI - SOCIETA' COOPERATIVA,21/11/2022,5819,Altre spese per contratti di servizio pubblico,"5.089,64","0,00","917,80",7551132F3D,1,3,Acquisto di beni e servizi,2,15,999,"Liquidazione Fattura Nr. 000793-2C0  del 07/10/2022 (di cui Split per euro 917,80) - Servizi turistici mese di settembre 2022",1,3,2,15,999
CO&SO EMPOLI - CONS. DI COOP. SOCIALI - SOCIETA' COOPERATIVA,21/11/2022,5837,Altre spese per contratti di servizio pubblico,"3.801,00","0,00","0,00",8603669443,1,3,Acquisto di beni e servizi,2,15,999,"Liquidazione Fattura Nr. 000159-1C0 del 07/10/2022 - Front-office per biblioteca leonardiana e sedi distaccate, settembre 2022",1,3,2,15,999
CO&SO EMPOLI - CONS. DI COOP. SOCIALI - SOCIETA' COOPERATIVA,21/11/2022,5779,Altre spese per contratti di servizio pubblico,"30.745,56","0,00","0,00",7551132F3D,1,3,Acquisto di beni e servizi,2,15,999,Liquidazione Fattura Nr. 000160-1C0  del 07/10/2022 - Servizi museali mese di settembre 2022,1,3,2,15,999
CO&SO EMPOLI - CONS. DI COOP. SOCIALI - SOCIETA' COOPERATIVA,21/11/2022,5809,Altre spese per contratti di servizio pubblico,"1.798,27","0,00","324,28",7551132F3D,1,3,Acquisto di beni e servizi,2,15,999,"Liquidazione Fattura Nr. 000794-2C0  del 07/10/2022 (di cui Split per euro 324,28) - Pulizie mese di settembre 2022",1,3,2,15,999
CO&SO EMPOLI - CONS. DI COOP. SOCIALI - SOCIETA' COOPERATIVA,21/11/2022,5810,Altre spese per contratti di servizio pubblico,"653,48","0,00","117,84",7551132F3D,1,3,Acquisto di beni e servizi,2,15,999,"Liquidazione Fattura Nr. 000812-2C0  del 10/10/2022 (di cui Split per euro 117,84) - Oneri di sicurezza 2022",1,3,2,15,999
CO&SO EMPOLI - CONS. DI COOP. SOCIALI - SOCIETA' COOPERATIVA,21/11/2022,5797,Altre spese per contratti di servizio pubblico,"12.281,38","0,00","584,83",820729386F,1,3,Acquisto di beni e servizi,2,15,999,"Liquidazione Fattura Nr. 000836-2C0  del 17/10/2022 (di cui Split per euro 584,83) - Fatt. regime sciss.pag. Fattura soggetta ""scissione dei pagamenti - Art. 17-ter DPR 633/72",1,3,2,15,999
CO&SO EMPOLI - CONS. DI COOP. SOCIALI - SOCIETA' COOPERATIVA,21/11/2022,5796,Altre spese per contratti di servizio pubblico,"692,00","0,00","32,95",820729386F,1,3,Acquisto di beni e servizi,2,15,999,"Liquidazione Fattura Nr. 000836-2C0  del 17/10/2022 (di cui Split per euro 32,95) - Fatt. regime sciss.pag. Fattura soggetta ""scissione dei pagamenti - Art. 17-ter DPR 633/72",1,3,2,15,999
PARROCCHIA DI TOIANO C/O DON AGOSTINELLI DONATO,21/11/2022,5852,Altri trasferimenti a famiglie n.a.c.,"136,00","0,00","0,00",,1,4,Trasferimenti correnti,2,5,999,liquidazione utenze anno 2021 relative ad allacciamenti lampade pubbliche su contatori privati,1,4,2,5,999
CINTELLI MARIO,21/11/2022,5842,Altri trasferimenti a famiglie n.a.c.,"43,00","0,00","0,00",,1,4,Trasferimenti correnti,2,5,999,liquidazione utenze anno 2021 relative ad allacciamenti lampade pubbliche su contatori privati,1,4,2,5,999
PACINI   SANDRA,21/11/2022,5850,Altri trasferimenti a famiglie n.a.c.,"43,00","0,00","0,00",,1,4,Trasferimenti correnti,2,5,999,liquidazione utenze anno 2021 relative ad allacciamenti lampade pubbliche su contatori privati,1,4,2,5,999
MINISTERO DELL'INTERNO DIREZIONE CENTRALE PER I SERVIZI DEMOGRAFICI,21/11/2022,5830,Trasferimenti correnti a Ministeri,"654,81","0,00","0,00",,1,4,Trasferimenti correnti,1,1,1,"COMUNE DI VINCI, M059, CORRISPETTIVO PER RILASCIO N. 39 CIE PERIODO 1-15 AGOSTO 2022",1,4,1,1,1
MINISTERO DELL'INTERNO DIREZIONE CENTRALE PER I SERVIZI DEMOGRAFICI,21/11/2022,5831,Trasferimenti correnti a Ministeri,"654,81","0,00","0,00",,1,4,Trasferimenti correnti,1,1,1,"COMUNE DI VINCI, M059, CORRISPETTIVO PER RILASCIO N. 39 CIE PERIODO 16-31 AGOSTO 2022",1,4,1,1,1
MINISTERO DELL'INTERNO DIREZIONE CENTRALE PER I SERVIZI DEMOGRAFICI,21/11/2022,5832,Trasferimenti correnti a Ministeri,"1.040,98","0,00","0,00",,1,4,Trasferimenti correnti,1,1,1,"COMUNE DI VINCI, M059, CORRISPETTIVO PER RILASCIO N. 62 CIE PERIODO 1-15 SETTEMBRE 2022",1,4,1,1,1
MINISTERO DELL'INTERNO DIREZIONE CENTRALE PER I SERVIZI DEMOGRAFICI,21/11/2022,5833,Trasferimenti correnti a Ministeri,"973,82","0,00","0,00",,1,4,Trasferimenti correnti,1,1,1,"COMUNE DI VINCI, M059, CORRISPETTIVO PER RILASCIO N. 58 CIE PERIODO 16-30 SETTEMBRE 2022",1,4,1,1,1
MINISTERO DELL'INTERNO DIREZIONE CENTRALE PER I SERVIZI DEMOGRAFICI,21/11/2022,5834,Trasferimenti correnti a Ministeri,"1.175,30","0,00","0,00",,1,4,Trasferimenti correnti,1,1,1,"COMUNE DI VINCI, M059, CORRISPETTIVO PER RILASCIO N. 70 CIE PERIODO 1-15 OTTOBRE 2022",1,4,1,1,1
MINISTERO DELL'INTERNO DIREZIONE CENTRALE PER I SERVIZI DEMOGRAFICI,21/11/2022,5835,Trasferimenti correnti a Ministeri,"1.477,52","0,00","0,00",,1,4,Trasferimenti correnti,1,1,1,"COMUNE DI VINCI, M059, CORRISPETTIVO PER RILASCIO N. 88 CIE PERIODO 16-31 OTTOBRE 2022",1,4,1,1,1
SOCIETA' DIDEROT SOC. COOP.,21/11/2022,5804,Altre spese per servizi amministrativi,"1.870,99","0,00","337,39",Z0D34898DD,1,3,Acquisto di beni e servizi,2,16,999,"Liquidazione Fattura Nr. FTE-52  del 02/11/2022 (di cui Split per euro 337,39) - SERVIZIO DI ARCHIVIO CORRENTE E DI DEPOSITO PRESSO IL COMUNE DI VINCI mesi di Ottobre e2022 determinazione n. 283 del 23/12/2021",1,3,2,16,999
LAURA TROMBACCO E ELISA TROMBACCO,21/11/2022,5847,Altri trasferimenti a famiglie n.a.c.,"86,00","0,00","0,00",,1,4,Trasferimenti correnti,2,5,999,liquidazione utenze anno 2021 relative ad allacciamenti lampade pubbliche su contatori privati,1,4,2,5,999
SONEPAR ITALIA SPA,21/11/2022,5808,Altri beni e materiali di consumo n.a.c.,"28,08","0,00","5,06",ZF236FBC3A,1,3,Acquisto di beni e servizi,1,2,999,"LIQUIDAZIONE FATTURA NR. 0031270389  DEL 30/09/2022 (DI CUI SPLIT PER EURO 5,06) - FORNITURA MATERIALE ELETTRICO ",1,3,1,2,999
SONEPAR ITALIA SPA,21/11/2022,5822,Altri beni e materiali di consumo n.a.c.,"1.700,00","0,00","307,00",ZF236FBC3A,1,3,Acquisto di beni e servizi,1,2,999,"LIQUIDAZIONE FATTURA NR. 0031270389  DEL 30/09/2022 (DI CUI SPLIT PER EURO 307,00) - FORNITURA MATERIALE ELETTRICO ",1,3,1,2,999
SONEPAR ITALIA SPA,21/11/2022,5818,Altri beni e materiali di consumo n.a.c.,"226,40","0,00","40,39",ZF236FBC3A,1,3,Acquisto di beni e servizi,1,2,999,"LIQUIDAZIONE FATTURA NR. 0031270389  DEL 30/09/2022 (DI CUI SPLIT PER EURO 40,39) - FORNITURA MATERIALE ELETTRICO ",1,3,1,2,999
EREDI LEPORATTI GUIDO S.A.S. DI FIORETTA PACINI,21/11/2022,5823,Contratti di servizio di trasporto pubblico,"3.386,53","0,00","307,87",ZD43787388,1,3,Acquisto di beni e servizi,2,15,1,"Liquidazione Fattura Nr. 23/22  del 11/11/2022 (di cui Split per euro 307,87) - FATTURA TPL MENSILITA' OTTOBRE 2022",1,3,2,15,1
GRONCHI SAFETY SRL,21/11/2022,5791,Manutenzione ordinaria e riparazioni di impianti e macchinari,"12,62","0,00","2,28",Z81348A194,1,3,Acquisto di beni e servizi,2,9,4,"Liquidazione Fattura Nr. 37/SP  del 30/09/2022 (di cui Split per euro 2,28) - manutenzione e verifiche periodiche presidi antincendio",1,3,2,9,4
GRONCHI SAFETY SRL,21/11/2022,5790,Manutenzione ordinaria e riparazioni di impianti e macchinari,"13,18","0,00","2,38",Z952FDFBC0,1,3,Acquisto di beni e servizi,2,9,4,"Liquidazione Fattura Nr. 37/SP  del 30/09/2022 (di cui Split per euro 2,38) - manutenzione e verifiche periodiche presidi antincendio",1,3,2,9,4
GRONCHI SAFETY SRL,21/11/2022,5798,Manutenzione ordinaria e riparazioni di impianti e macchinari,"39,48","0,00","7,12",Z952FDFBC0,1,3,Acquisto di beni e servizi,2,9,4,"LIQUIDAZIONE FATTURA NR. 37/SP  DEL 30/09/2022 (DI CUI SPLIT PER EURO 7,12) - MANUTENZIONE E VERIFICHE PERIODICHE PRESIDI ANTINCENDIO",1,3,2,9,4
GRONCHI SAFETY SRL,21/11/2022,5795,Manutenzione ordinaria e riparazioni di impianti e macchinari,"122,44","0,00","22,08",Z81348A194,1,3,Acquisto di beni e servizi,2,9,4,"LIQUIDAZIONE FATTURA NR. 37/SP  DEL 30/09/2022 (DI CUI SPLIT PER EURO 22,08) - MANUTENZIONE E VERIFICHE PERIODICHE PRESIDI ANTINCENDIO",1,3,2,9,4
GRONCHI SAFETY SRL,21/11/2022,5783,Manutenzione ordinaria e riparazioni di impianti e macchinari,"164,61","0,00","29,68",Z952FDFBC0,1,3,Acquisto di beni e servizi,2,9,4,"LIQUIDAZIONE FATTURA NR. 37/SP  DEL 30/09/2022 (DI CUI SPLIT PER EURO 29,68) - MANUTENZIONE E VERIFICHE PERIODICHE PRESIDI ANTINCENDIO",1,3,2,9,4
GRONCHI SAFETY SRL,21/11/2022,5794,Manutenzione ordinaria e riparazioni di impianti e macchinari,"168,89","0,00","30,46",Z952FDFBC0,1,3,Acquisto di beni e servizi,2,9,4,"LIQUIDAZIONE FATTURA NR. 37/SP  DEL 30/09/2022 (DI CUI SPLIT PER EURO 30,46) - MANUTENZIONE E VERIFICHE PERIODICHE PRESIDI ANTINCENDIO",1,3,2,9,4
GRONCHI SAFETY SRL,21/11/2022,5772,Manutenzione ordinaria e riparazioni di impianti e macchinari,"273,72","0,00","49,36",Z952FDFBC0,1,3,Acquisto di beni e servizi,2,9,4,"LIQUIDAZIONE FATTURA NR. 37/SP  DEL 30/09/2022 (DI CUI SPLIT PER EURO 49,36) - MANUTENZIONE E VERIFICHE PERIODICHE PRESIDI ANTINCENDIO",1,3,2,9,4
GRONCHI SAFETY SRL,21/11/2022,5771,Manutenzione ordinaria e riparazioni di impianti e macchinari,"410,60","0,00","74,04",Z81348A194,1,3,Acquisto di beni e servizi,2,9,4,"Liquidazione Fattura Nr. 37/SP  del 30/09/2022 (di cui Split per euro 74,04) - manutenzione e verifiche periodiche presidi antincendio",1,3,2,9,4
GRONCHI SAFETY SRL,21/11/2022,5789,Manutenzione ordinaria e riparazioni di impianti e macchinari,"481,99","0,00","86,90",Z81348A194,1,3,Acquisto di beni e servizi,2,9,4,"Liquidazione Fattura Nr. 37/SP  del 30/09/2022 (di cui Split per euro 86,90) - manutenzione e verifiche periodiche presidi antincendio",1,3,2,9,4
GRONCHI SAFETY SRL,21/11/2022,5770,Manutenzione ordinaria e riparazioni di impianti e macchinari,"704,27","0,00","127,00",Z952FDFBC0,1,3,Acquisto di beni e servizi,2,9,4,"LIQUIDAZIONE FATTURA NR. 37/SP  DEL 30/09/2022 (DI CUI SPLIT PER EURO 127,00) - MANUTENZIONE E VERIFICHE PERIODICHE PRESIDI ANTINCENDIO",1,3,2,9,4
GRONCHI SAFETY SRL,21/11/2022,5785,Manutenzione ordinaria e riparazioni di impianti e macchinari,"840,17","0,00","151,51",Z952FDFBC0,1,3,Acquisto di beni e servizi,2,9,4,"LIQUIDAZIONE FATTURA NR. 37/SP  DEL 30/09/2022 (DI CUI SPLIT PER EURO 151,51) - MANUTENZIONE E VERIFICHE PERIODICHE PRESIDI ANTINCENDIO",1,3,2,9,4
GRONCHI SAFETY SRL,21/11/2022,5784,Manutenzione ordinaria e riparazioni di impianti e macchinari,"1.317,86","0,00","237,65",Z81348A194,1,3,Acquisto di beni e servizi,2,9,4,"LIQUIDAZIONE FATTURA NR. 37/SP  DEL 30/09/2022 (DI CUI SPLIT PER EURO 237,65) - MANUTENZIONE E VERIFICHE PERIODICHE PRESIDI ANTINCENDIO",1,3,2,9,4
GRONCHI SAFETY SRL,21/11/2022,5775,Manutenzione ordinaria e riparazioni di impianti e macchinari,"1.397,96","0,00","252,09",Z952FDFBC0,1,3,Acquisto di beni e servizi,2,9,4,"LIQUIDAZIONE FATTURA NR. 37/SP  DEL 30/09/2022 (DI CUI SPLIT PER EURO 252,09) - MANUTENZIONE E VERIFICHE PERIODICHE PRESIDI ANTINCENDIO",1,3,2,9,4
GRONCHI SAFETY SRL,21/11/2022,5769,Manutenzione ordinaria e riparazioni di impianti e macchinari,"1.440,41","0,00","259,75",Z81348A194,1,3,Acquisto di beni e servizi,2,9,4,"Liquidazione Fattura Nr. 37/SP  del 30/09/2022 (di cui Split per euro 259,75) - manutenzione e verifiche periodiche presidi antincendio",1,3,2,9,4
GRONCHI SAFETY SRL,21/11/2022,5774,Manutenzione ordinaria e riparazioni di impianti e macchinari,"1.490,15","0,00","268,72",Z81348A194,1,3,Acquisto di beni e servizi,2,9,4,"Liquidazione Fattura Nr. 37/SP  del 30/09/2022 (di cui Split per euro 268,72) - manutenzione e verifiche periodiche presidi antincendio",1,3,2,9,4
GRONCHI SAFETY SRL,21/11/2022,5778,Manutenzione ordinaria e riparazioni di impianti e macchinari,"1.781,07","0,00","321,18",Z81348A194,1,3,Acquisto di beni e servizi,2,9,4,"Liquidazione Fattura Nr. 37/SP  del 30/09/2022 (di cui Split per euro 321,18) - manutenzione e verifiche periodiche presidi antincendio",1,3,2,9,4
GRONCHI SAFETY SRL,21/11/2022,5773,Manutenzione ordinaria e riparazioni di impianti e macchinari,"2.225,86","0,00","401,38",Z952FDFBC0,1,3,Acquisto di beni e servizi,2,9,4,"LIQUIDAZIONE FATTURA NR. 37/SP  DEL 30/09/2022 (DI CUI SPLIT PER EURO 401,38) - MANUTENZIONE E VERIFICHE PERIODICHE PRESIDI ANTINCENDIO",1,3,2,9,4
GRONCHI SAFETY SRL,21/11/2022,5777,Manutenzione ordinaria e riparazioni di impianti e macchinari,"2.847,78","0,00","513,53",Z952FDFBC0,1,3,Acquisto di beni e servizi,2,9,4,"LIQUIDAZIONE FATTURA NR. 37/SP  DEL 30/09/2022 (DI CUI SPLIT PER EURO 513,53) - MANUTENZIONE E VERIFICHE PERIODICHE PRESIDI ANTINCENDIO",1,3,2,9,4
GRONCHI SAFETY SRL,21/11/2022,5776,Manutenzione ordinaria e riparazioni di impianti e macchinari,"3.013,87","0,00","543,48",Z81348A194,1,3,Acquisto di beni e servizi,2,9,4,"Liquidazione Fattura Nr. 37/SP  del 30/09/2022 (di cui Split per euro 543,48) - manutenzione e verifiche periodiche presidi antincendio",1,3,2,9,4
GRONCHI SAFETY SRL,21/11/2022,5793,Manutenzione ordinaria e riparazioni di impianti e macchinari,"622,53","0,00","112,26",Z952FDFBC0,1,3,Acquisto di beni e servizi,2,9,4,"LIQUIDAZIONE FATTURA NR. 875/G  DEL 26/10/2022 (DI CUI SPLIT PER EURO 112,26) - MANUTENZIONE E VERIFICHE PERIODICHE PRESIDI ANTINCENDIO",1,3,2,9,4
GRONCHI SAFETY SRL,21/11/2022,5781,Manutenzione ordinaria e riparazioni di impianti e macchinari,"1.066,50","0,00","192,32",Z81348A194,1,3,Acquisto di beni e servizi,2,9,4,"LIQUIDAZIONE FATTURA NR. 875/G  DEL 26/10/2022 (DI CUI SPLIT PER EURO 192,32) - MANUTENZIONE E VERIFICHE PERIODICHE PRESIDI ANTINCENDIO",1,3,2,9,4
GRONCHI SAFETY SRL,21/11/2022,5788,Manutenzione ordinaria e riparazioni di impianti e macchinari,"1.104,12","0,00","199,10",Z952FDFBC0,1,3,Acquisto di beni e servizi,2,9,4,"Liquidazione Fattura Nr. 875/G  del 26/10/2022 (di cui Split per euro 199,10) - manutenzione e verifiche periodiche presidi antincendio",1,3,2,9,4
GRONCHI SAFETY SRL,21/11/2022,5792,Manutenzione ordinaria e riparazioni di impianti e macchinari,"79,73","0,00","14,38",Z81348A194,1,3,Acquisto di beni e servizi,2,9,4,"LIQUIDAZIONE FATTURA NR. 875/G  DEL 26/10/2022 (DI CUI SPLIT PER EURO 14,38) - MANUTENZIONE E VERIFICHE PERIODICHE PRESIDI ANTINCENDIO",1,3,2,9,4
GRONCHI SAFETY SRL,21/11/2022,5782,Manutenzione ordinaria e riparazioni di impianti e macchinari,"287,66","0,00","51,87",Z952FDFBC0,1,3,Acquisto di beni e servizi,2,9,4,"LIQUIDAZIONE FATTURA NR. 875/G  DEL 26/10/2022 (DI CUI SPLIT PER EURO 51,87) - MANUTENZIONE E VERIFICHE PERIODICHE PRESIDI ANTINCENDIO",1,3,2,9,4
GRONCHI SAFETY SRL,21/11/2022,5787,Manutenzione ordinaria e riparazioni di impianti e macchinari,"45,18","0,00","8,15",Z81348A194,1,3,Acquisto di beni e servizi,2,9,4,"Liquidazione Fattura Nr. 875/G  del 26/10/2022 (di cui Split per euro 8,15) - manutenzione e verifiche periodiche presidi antincendio",1,3,2,9,4
FUTURA SRL,21/11/2022,5817,Altri servizi diversi n.a.c.,"659,90","0,00","119,00",ZE630D3F2E,1,3,Acquisto di beni e servizi,2,99,999,"Liquidazione Fattura Nr. 544  del 31/10/2022 (di cui Split per euro 119,00) - AFFIDAMENTO DEL SERVIZIO DI RITIRO, TRASPORTO E STOCCAGGIO DI ELEMENTI DI ARREDO E MATERIALI DEL MUSEO LEONARDIANO - MESE DI OTTOBRE 2022",1,3,2,99,999
LIGUIGLI FINE ARTS SERVICE DI LIGUIGLI NICOLA & C. SAS,21/11/2022,5812,Altri servizi ausiliari n.a.c.,"883,57","0,00","159,33",Z3530E1E15,1,3,Acquisto di beni e servizi,2,13,999,"Liquidazione Fattura Nr. EP/84  del 10/10/2022 (di cui Split per euro 159,33) - AFFIDAMENTO SERVIZIO DI DEPOSITO, CUSTODIA, TRASPORTO E MOVIMENTAZIONE DI MODELLI MUSEO LEONARDIANO - MESE DI SETTEMBRE 2022",1,3,2,13,999
LIGUIGLI FINE ARTS SERVICE DI LIGUIGLI NICOLA & C. SAS,21/11/2022,5811,Altri servizi ausiliari n.a.c.,"883,57","0,00","159,33",Z3530E1E15,1,3,Acquisto di beni e servizi,2,13,999,"Liquidazione Fattura Nr. EP/93  del 07/11/2022 (di cui Split per euro 159,33) - AFFIDAMENTO SERVIZIO DI DEPOSITO, CUSTODIA, TRASPORTO E MOVIMENTAZIONE DI MODELLI DEL MUSEO LEONARDIANO - mese di ottobre 2022",1,3,2,13,999
LA RAPIDA SRL,21/11/2022,5820,Manutenzione ordinaria e riparazioni di beni immobili,"5.343,60","0,00","963,60",ZF43315502,1,3,Acquisto di beni e servizi,2,9,8,"Liquidazione Fattura Nr. 55/VPA  del 31/08/2022 (di cui Split per euro 963,60) - PULIZIA CADITOIE STRADALI",1,3,2,9,8
BERTINI CONTRACT SAS,21/11/2022,5816,Altri beni e materiali di consumo n.a.c.,"3.556,30","0,00","641,30",ZAB34AC923,1,3,Acquisto di beni e servizi,1,2,999,"Liquidazione Fattura Nr. 16/001  del 09/11/2022 (di cui Split per euro 641,30) - ESTENSIONE DEL QUINTO D'OBBLIGO DEL CONTRATTO STIPULATO IN DATA 20/10/2021 CON BERTINI CONTRACT SAS PER L'APPALTO DELLA REALIZZAZIONE, FORNITURA, POSA IN OPERA",1,3,1,2,999
BERTINI CONTRACT SAS,21/11/2022,5786,Altri servizi diversi n.a.c.,"6.667,10","0,00","1.202,26",Z5E3304B12,1,3,Acquisto di beni e servizi,2,99,999,"Liquidazione Fattura Nr. 14/001  del 28/10/2022 (di cui Split per euro 1.202,26) - REALIZZAZIONE, FORNITURA, POSA IN OPERA DI ALLESTIMENTI MUSEALI E SERVIZI CONNESSI PERIODO OTTOBRE-DICEMBRE 2021",1,3,2,99,999
BERTINI CONTRACT SAS,21/11/2022,5801,Attrezzature n.a.c.,"4.227,50","0,00","762,34",Z5E3304B12,2,2,Investimenti fissi lordi e acquisto di terreni,1,5,999,"Liquidazione Fattura Nr. 14/001  del 28/10/2022 (di cui Split per euro 762,34) - REALIZZAZIONE, FORNITURA, POSA IN OPERA DI ALLESTIMENTI MUSEALI E SERVIZI CONNESSI PERIODO OTTOBRE-DICEMBRE 2021",2,2,1,5,999
START SRL,21/11/2022,5839,Altre spese sostenute per utilizzo di beni di terzi n.a.c.,"271,25","0,00","0,00",Z7A36A6868,1,3,Acquisto di beni e servizi,2,7,999,Liquidazione Fattura Nr. 600  del 12/10/2022 - Fattura PA immediata (TD01) del 12/10/2022 N.ro 600,1,3,2,7,999
START SRL,21/11/2022,5840,Altre spese sostenute per utilizzo di beni di terzi n.a.c.,"655,00","0,00","0,00",Z7A36A6868,1,3,Acquisto di beni e servizi,2,7,999,Liquidazione Fattura Nr. 729  del 07/11/2022 - Fattura PA immediata (TD01) del 07/11/2022 N.ro 729,1,3,2,7,999
SOCIETA' COOPERATIVA SOCIALE SINTESI-MINERVA,21/11/2022,5805,Altri servizi ausiliari n.a.c.,"2.000,00","0,00","360,66",Z6136864CE,1,3,Acquisto di beni e servizi,2,13,999,"Liquidazione Fattura Nr. 000416B/  del 30/09/2022 (di cui Split per euro 360,66) - ATTIVITA' DI SUPPORTO PER LO SVOLGIMENTO DI FIERE, MANIFESTAZIONI ED ALTRI EVENTI",1,3,2,13,999
SOCIETA' COOPERATIVA SOCIALE SINTESI-MINERVA,21/11/2022,5824,Manutenzione ordinaria e riparazioni di beni immobili,"3.479,63","0,00","627,47",Z6136864CE,1,3,Acquisto di beni e servizi,2,9,8,"LIQUIDAZIONE FATTURA NR. 000416B/  DEL 30/09/2022 (DI CUI SPLIT PER EURO 627,47) - ATTIVITA' DI SUPPORTO PER LO SVOLGIMENTO DI FIERE, MANIFESTAZIONI ED ALTRI EVENTI",1,3,2,9,8
C.I.A.- CENTRO INSTALLAZIONE AUTOMATISMI SRL,21/11/2022,5814,Manutenzione ordinaria e riparazioni di impianti e macchinari,"1.034,80","0,00","0,00",Z8836B9834,1,3,Acquisto di beni e servizi,2,9,4,Liquidazione Fattura Nr. 4PA_2022   del 30/09/2022 - MANUTENZIONE PORTA AUTOMATICA INSTALLATA PRESSO LA BIGLIETTERIA DEL MU.LEO,1,3,2,9,4
C.I.A.- CENTRO INSTALLAZIONE AUTOMATISMI SRL,21/11/2022,5813,Manutenzione ordinaria e riparazioni di impianti e macchinari,"227,66","0,00","227,66",Z8836B9834,1,3,Acquisto di beni e servizi,2,9,4,"Liquidazione Fattura Nr. 4PA_2022   del 30/09/2022 (di cui Split per euro 227,66) - MANUTENZIONE PORTA AUTOMATICA INSTALLATA PRESSO LA BIGLIETTERIA DEL MU.LEO",1,3,2,9,4
PASQUETTI PIERINA,21/11/2022,5854,Altri trasferimenti a famiglie n.a.c.,"50,00","0,00","0,00",,1,4,Trasferimenti correnti,2,5,999,liquidazione utenze anno 2021 relative ad allacciamenti lampade pubbliche su contatori privati,1,4,2,5,999
AMMINISTRATORI COMUNALI,24/11/2022,5861,Organi istituzionali dell'amministrazione - indennit�,"9.812,28","0,00","0,00",,1,3,Acquisto di beni e servizi,2,1,1,stipendio 11,1,3,2,1,1
CEROFOLINI S.R.L.,28/11/2022,6199,Servizi di pulizia e lavanderia,"549,00","0,00","99,00",ZA93794391,1,3,Acquisto di beni e servizi,2,13,2,"Liquidazione Fattura Nr. 57/06  del 27/10/2022 (di cui Split per euro 99,00) - pulizie e sanificazione palasport Falcone e Borselino per atti vandalici",1,3,2,13,2
CEROFOLINI S.R.L.,28/11/2022,6198,Servizi di pulizia e lavanderia,"2.745,00","0,00","495,00",ZA93794391,1,3,Acquisto di beni e servizi,2,13,2,"Liquidazione Fattura Nr. 49/06  del 18/10/2022 (di cui Split per euro 495,00) - pulizia e sanificazione scuola Sibilla Aleramo per atti vandalici",1,3,2,13,2
COMUNE DI LAMPORECCHIO,28/11/2022,6203,Spese postali,"17,64","0,00","0,00",,1,3,Acquisto di beni e servizi,2,16,2,RIMBORSO DIRITTI DI NOTIFICA CRON.67/22 - 75/21 - 76/21,1,3,2,16,2
COMUNE DI FIRENZE,28/11/2022,6202,Spese postali,"15,97","0,00","0,00",,1,3,Acquisto di beni e servizi,2,16,2,RIMBORSO DIRITTI DI NOTIFICA ANNO 2021,1,3,2,16,2
POSTE ITALIANE SPA SOCIETA' CON SOCIO UNICO,28/11/2022,6206,Spese postali,"620,50","0,00","0,00",Z14361EF92,1,3,Acquisto di beni e servizi,2,16,2,Liquidazione Fattura Nr. 1022284244  del 04/11/2022 - 30027076-014 - posta easy mese di settembre 2022,1,3,2,16,2
POSTE ITALIANE SPA SOCIETA' CON SOCIO UNICO,28/11/2022,6207,Spese postali,"2.513,78","0,00","0,00",Z14361EF92,1,3,Acquisto di beni e servizi,2,16,2,Liquidazione Fattura Nr. 1022287452  del 10/11/2022 - 30027076-014 posta easy maggio 2022,1,3,2,16,2
POSTE ITALIANE SPA SOCIETA' CON SOCIO UNICO,28/11/2022,6208,Spese postali,"77,00","0,00","0,00",Z14361EF92,1,3,Acquisto di beni e servizi,2,16,2,Liquidazione Fattura Nr. 1022294174  del 14/11/2022 - 30027076-015 pickup maggio 2022,1,3,2,16,2
COMUNE DI CAPRAIA E LIMITE,28/11/2022,6201,Spese postali,"42,62","0,00","0,00",,1,3,Acquisto di beni e servizi,2,16,2,RIMBORSO DIRETTI DI NOTIFICA CRON. 149/2019-238/2020-215/2021-340/2021,1,3,2,16,2
COMUNE DI PISTOIA,28/11/2022,6204,Spese postali,"5,88","0,00","0,00",,1,3,Acquisto di beni e servizi,2,16,2,ACC.247 E N. INVITO 206/2021,1,3,2,16,2
OASI VERDE SNC DI GIRALDI SONIA & C.,28/11/2022,6197,Beni per attivit� di rappresentanza ,"110,00","0,00","0,00",Z7736356A2,1,3,Acquisto di beni e servizi,1,2,9,Liquidazione Fattura Nr. 25  del 06/11/2022 - due corone di alloro per cerimonia del 6 novembre,1,3,1,2,9
GENERALI ITALIA SPA,28/11/2022,6200,Spese per risarcimento danni,"1.646,40","0,00","0,00",,1,10,Altre spese correnti,5,2,1,LIQUIDAZIONE FRANCHIGIE  SINISTRI 51315 E 51162 ANNO 2021,1,10,5,2,1
COMUNE DI SANTA MARIA A MONTE,28/11/2022,6205,Spese postali,"5,88","0,00","0,00",,1,3,Acquisto di beni e servizi,2,16,2,NOTIFICHE ATTI ANNO 2021,1,3,2,16,2
LASER S.R.L.,28/11/2022,6209,Manutenzione ordinaria e riparazioni di macchine per ufficio ,"531,86","0,00","95,91",ZF6336C3DA,1,3,Acquisto di beni e servizi,2,9,6,"Liquidazione Fattura Nr. 3047  del 15/11/2022 (di cui Split per euro 95,91) - Scarico per Vendita Iva da versare a cura del cessionario o committente ai sensi dell'art. 17-ter del D.P.R. n. 633/1972 (scissione dei pagamenti)",1,3,2,9,6
ARCA COOPERATIVA SOCIALE,07/12/2022,6284,Contratti di servizio di asilo nido,"34.911,26","0,00","1.662,44",8388889A31,1,3,Acquisto di beni e servizi,2,15,10,"Liquidazione Fattura Nr. 1991/E  del 03/11/2022 (di cui Split per euro 1.662,44) - Vendita Iva da versare a cura del cessionario o committente ai sensi dell'art. 17-ter del D.P.R. n. 633/1972 (scissione dei pagamenti)",1,3,2,15,10
ANCI TOSCANA,07/12/2022,6219,Acquisto di servizi per altre spese per formazione e addestramento n.a.c.,"82,00","0,00","0,00",Z313836004,1,3,Acquisto di beni e servizi,2,4,999,Liquidazione Fattura Nr. 1464/01  del 16/11/2022 - Fornitura generica,1,3,2,4,999
KUWAIT PETROLEUM ITALIA S.P.A.,07/12/2022,6224,"Carburanti, combustibili e lubrificanti ","537,54","0,00","96,93",9010548B6D,1,3,Acquisto di beni e servizi,1,2,2,"Liquidazione Fattura Nr. PJ06064236  del 31/10/2022 (di cui Split per euro 96,93) - Fornitura generica",1,3,1,2,2
KUWAIT PETROLEUM ITALIA S.P.A.,07/12/2022,6225,"Carburanti, combustibili e lubrificanti ","510,57","0,00","92,07",9010548B6D,1,3,Acquisto di beni e servizi,1,2,2,"Liquidazione Fattura Nr. PJ06064236  del 31/10/2022 (di cui Split per euro 92,07) - Fornitura generica",1,3,1,2,2
KUWAIT PETROLEUM ITALIA S.P.A.,07/12/2022,6226,"Carburanti, combustibili e lubrificanti ","1.804,20","0,00","325,35",9010548B6D,1,3,Acquisto di beni e servizi,1,2,2,"Liquidazione Fattura Nr. PJ06064236  del 31/10/2022 (di cui Split per euro 325,35) - Fornitura generica",1,3,1,2,2
ACQUE S.P.A.,07/12/2022,6280,Acqua,"276,16","0,00","25,11",,1,3,Acquisto di beni e servizi,2,5,5,"Liquidazione Fattura Nr. 6022012000013389  del 14/11/2022 (di cui Split per euro 25,11) - FORNITURA ACQUA POTABILE PER SERVIZI E IMMOBILI COMUNALI ANNO 2022-IMPEGNO DI SPESA.",1,3,2,5,5
ACQUE S.P.A.,07/12/2022,6266,Acqua,"4,94","0,00","0,45",,1,3,Acquisto di beni e servizi,2,5,5,"Liquidazione Fattura Nr. 6022012000013451  del 14/11/2022 (di cui Split per euro 0,45) - FORNITURA ACQUA POTABILE PER SERVIZI E IMMOBILI COMUNALI ANNO 2022-IMPEGNO DI SPESA.",1,3,2,5,5
ACQUE S.P.A.,07/12/2022,6267,Acqua,"209,01","0,00","19,00",,1,3,Acquisto di beni e servizi,2,5,5,"Liquidazione Fattura Nr. 6022012000013387  del 14/11/2022 (di cui Split per euro 19,00) - FORNITURA ACQUA POTABILE PER SERVIZI E IMMOBILI COMUNALI ANNO 2022-IMPEGNO DI SPESA.",1,3,2,5,5
ACQUE S.P.A.,07/12/2022,6253,Acqua,"47,14","0,00","4,29",,1,3,Acquisto di beni e servizi,2,5,5,"Liquidazione Fattura Nr. 6022012000013361  del 14/11/2022 (di cui Split per euro 4,29) - FORNITURA ACQUA POTABILE PER IMMOBILI E SERVIZI COMUNALI ANNO 2020_IMPEGNO DI SPESA PER ACQUE SPA",1,3,2,5,5
ACQUE S.P.A.,07/12/2022,6256,Acqua,"56,34","0,00","5,12",,1,3,Acquisto di beni e servizi,2,5,5,"Liquidazione Fattura Nr. 6022012000013365  del 14/11/2022 (di cui Split per euro 5,12) - FORNITURA ACQUA POTABILE PER SERVIZI E IMMOBILI COMUNALI ANNO 2022-IMPEGNO DI SPESA.",1,3,2,5,5
ACQUE S.P.A.,07/12/2022,6278,Acqua,"1,64","0,00","0,15",,1,3,Acquisto di beni e servizi,2,5,5,"Liquidazione Fattura Nr. 6022012000013363  del 14/11/2022 (di cui Split per euro 0,15) - FORNITURA ACQUA POTABILE PER SERVIZI E IMMOBILI COMUNALI ANNO 2022-IMPEGNO DI SPESA.",1,3,2,5,5
ACQUE S.P.A.,07/12/2022,6277,Acqua,"3,30","0,00","0,30",,1,3,Acquisto di beni e servizi,2,5,5,"Liquidazione Fattura Nr. 6022012000013404  del 14/11/2022 (di cui Split per euro 0,30) - FORNITURA ACQUA POTABILE PER SERVIZI E IMMOBILI COMUNALI ANNO 2022-IMPEGNO DI SPESA.",1,3,2,5,5
ACQUE S.P.A.,07/12/2022,6276,Acqua,"23,97","0,00","2,18",,1,3,Acquisto di beni e servizi,2,5,5,"Liquidazione Fattura Nr. 6022012000013386  del 14/11/2022 (di cui Split per euro 2,18) - FORNITURA ACQUA POTABILE PER SERVIZI E IMMOBILI COMUNALI ANNO 2022-IMPEGNO DI SPESA.",1,3,2,5,5
ACQUE S.P.A.,07/12/2022,6275,Acqua,"23,69","0,00","2,15",,1,3,Acquisto di beni e servizi,2,5,5,"Liquidazione Fattura Nr. 6022012000013391  del 14/11/2022 (di cui Split per euro 2,15) - FORNITURA ACQUA POTABILE PER SERVIZI E IMMOBILI COMUNALI ANNO 2022-IMPEGNO DI SPESA.",1,3,2,5,5
ACQUE S.P.A.,07/12/2022,6274,Acqua,"30,84","0,00","2,80",,1,3,Acquisto di beni e servizi,2,5,5,"Liquidazione Fattura Nr. 6022012000013394  del 14/11/2022 (di cui Split per euro 2,80) - FORNITURA ACQUA POTABILE PER SERVIZI E IMMOBILI COMUNALI ANNO 2022-IMPEGNO DI SPESA.",1,3,2,5,5
ACQUE S.P.A.,07/12/2022,6273,Acqua,"14,38","0,00","1,31",,1,3,Acquisto di beni e servizi,2,5,5,"Liquidazione Fattura Nr. 6022012000013395  del 14/11/2022 (di cui Split per euro 1,31) - FORNITURA ACQUA POTABILE PER SERVIZI E IMMOBILI COMUNALI ANNO 2022-IMPEGNO DI SPESA.",1,3,2,5,5
ACQUE S.P.A.,07/12/2022,6272,Acqua,"384,76","0,00","34,98",,1,3,Acquisto di beni e servizi,2,5,5,"Liquidazione Fattura Nr. 6022012000013402  del 14/11/2022 (di cui Split per euro 34,98) - FORNITURA ACQUA POTABILE PER SERVIZI E IMMOBILI COMUNALI ANNO 2022-IMPEGNO DI SPESA.",1,3,2,5,5
ACQUE S.P.A.,07/12/2022,6246,Acqua,"56,10","0,00","5,10",,1,3,Acquisto di beni e servizi,2,5,5,"Liquidazione Fattura Nr. 6022012000013364  del 14/11/2022 (di cui Split per euro 5,10) - FORNITURA ACQUA POTABILE PER IMMOBILI E SERVIZI COMUNALI ANNO 2020_IMPEGNO DI SPESA PER ACQUE SPA",1,3,2,5,5
ACQUE S.P.A.,07/12/2022,6263,Acqua,"91,13","0,00","7,18",,1,3,Acquisto di beni e servizi,2,5,5,"Liquidazione Fattura Nr. 6022012000013441  del 14/11/2022 (di cui Split per euro 7,18) - FORNITURA ACQUA POTABILE PER SERVIZI E IMMOBILI COMUNALI ANNO 2022-IMPEGNO DI SPESA.",1,3,2,5,5
ACQUE S.P.A.,07/12/2022,6264,Acqua,"16,31","0,00","1,48",,1,3,Acquisto di beni e servizi,2,5,5,"Liquidazione Fattura Nr. 6022012000013401  del 14/11/2022 (di cui Split per euro 1,48) - FORNITURA ACQUA POTABILE PER SERVIZI E IMMOBILI COMUNALI ANNO 2022-IMPEGNO DI SPESA.",1,3,2,5,5
ACQUE S.P.A.,07/12/2022,6265,Acqua,"23,12","0,00","2,10",,1,3,Acquisto di beni e servizi,2,5,5,"Liquidazione Fattura Nr. 6022012000013400  del 14/11/2022 (di cui Split per euro 2,10) - FORNITURA ACQUA POTABILE PER SERVIZI E IMMOBILI COMUNALI ANNO 2022-IMPEGNO DI SPESA.",1,3,2,5,5
ACQUE S.P.A.,07/12/2022,6223,Acqua,"47,14","0,00","4,29",,1,3,Acquisto di beni e servizi,2,5,5,"Liquidazione Fattura Nr. 6022012000013393  del 14/11/2022 (di cui Split per euro 4,29) - FORNITURA ACQUA POTABILE PER SERVIZI E IMMOBILI COMUNALI ANNO 2022-IMPEGNO DI SPESA.",1,3,2,5,5
ACQUE S.P.A.,07/12/2022,6242,Acqua,"51,69","0,00","4,70",,1,3,Acquisto di beni e servizi,2,5,5,"Liquidazione Fattura Nr. 6022012000013407  del 14/11/2022 (di cui Split per euro 4,70) - FORNITURA ACQUA POTABILE PER SERVIZI E IMMOBILI COMUNALI ANNO 2022-IMPEGNO DI SPESA.",1,3,2,5,5
ACQUE S.P.A.,07/12/2022,6268,Acqua,"23,69","0,00","2,15",,1,3,Acquisto di beni e servizi,2,5,5,"Liquidazione Fattura Nr. 6022012000013458  del 14/11/2022 (di cui Split per euro 2,15) - FORNITURA ACQUA POTABILE PER SERVIZI E IMMOBILI COMUNALI ANNO 2022-IMPEGNO DI SPESA.",1,3,2,5,5
ACQUE S.P.A.,07/12/2022,6269,Acqua,"23,97","0,00","2,18",,1,3,Acquisto di beni e servizi,2,5,5,"Liquidazione Fattura Nr. 6022012000013398  del 14/11/2022 (di cui Split per euro 2,18) - FORNITURA ACQUA POTABILE PER SERVIZI E IMMOBILI COMUNALI ANNO 2022-IMPEGNO DI SPESA.",1,3,2,5,5
ACQUE S.P.A.,07/12/2022,6270,Acqua,"23,97","0,00","2,18",,1,3,Acquisto di beni e servizi,2,5,5,"Liquidazione Fattura Nr. 6022012000013388  del 14/11/2022 (di cui Split per euro 2,18) - FORNITURA ACQUA POTABILE PER SERVIZI E IMMOBILI COMUNALI ANNO 2022-IMPEGNO DI SPESA.",1,3,2,5,5
ACQUE S.P.A.,07/12/2022,6271,Acqua,"158,16","0,00","14,38",,1,3,Acquisto di beni e servizi,2,5,5,"Liquidazione Fattura Nr. 6022012000013403  del 14/11/2022 (di cui Split per euro 14,38) - FORNITURA ACQUA POTABILE PER SERVIZI E IMMOBILI COMUNALI ANNO 2022-IMPEGNO DI SPESA.",1,3,2,5,5
ACQUE S.P.A.,07/12/2022,6262,Acqua,"4,68","0,00","0,43",,1,3,Acquisto di beni e servizi,2,5,5,"Liquidazione Fattura Nr. 6022012000013396  del 14/11/2022 (di cui Split per euro 0,43) - FORNITURA ACQUA POTABILE PER SERVIZI E IMMOBILI COMUNALI ANNO 2022-IMPEGNO DI SPESA.",1,3,2,5,5
ACQUE S.P.A.,07/12/2022,6254,Acqua,"37,57","0,00","3,42",,1,3,Acquisto di beni e servizi,2,5,5,"Liquidazione Fattura Nr. 6022012000013406  del 14/11/2022 (di cui Split per euro 3,42) - FORNITURA ACQUA POTABILE PER IMMOBILI E SERVIZI COMUNALI ANNO 2021 - IMPEGNO DI SPESA A FAVORE DI ACQUE SPA",1,3,2,5,5
ACQUE S.P.A.,07/12/2022,6261,Acqua,"74,86","0,00","6,81",,1,3,Acquisto di beni e servizi,2,5,5,"Liquidazione Fattura Nr. 6022012000013392  del 14/11/2022 (di cui Split per euro 6,81) - FORNITURA ACQUA POTABILE PER SERVIZI E IMMOBILI COMUNALI ANNO 2022-IMPEGNO DI SPESA.",1,3,2,5,5
ACQUE S.P.A.,07/12/2022,6255,Acqua,"74,86","0,00","6,81",,1,3,Acquisto di beni e servizi,2,5,5,"Liquidazione Fattura Nr. 6022012000013362  del 14/11/2022 (di cui Split per euro 6,81) - FORNITURA ACQUA POTABILE PER SERVIZI E IMMOBILI COMUNALI ANNO 2022-IMPEGNO DI SPESA.",1,3,2,5,5
ACQUE S.P.A.,07/12/2022,6222,Acqua,"23,41","0,00","2,13",,1,3,Acquisto di beni e servizi,2,5,5,"Liquidazione Fattura Nr. 6022012000013390  del 14/11/2022 (di cui Split per euro 2,13) - FORNITURA ACQUA POTABILE PER SERVIZI E IMMOBILI COMUNALI ANNO 2022-IMPEGNO DI SPESA.",1,3,2,5,5
ACQUE S.P.A.,07/12/2022,6259,Acqua,"7,43","0,00","0,68",,1,3,Acquisto di beni e servizi,2,5,5,"Liquidazione Fattura Nr. 6022012000013450  del 14/11/2022 (di cui Split per euro 0,68) - FORNITURA ACQUA POTABILE PER SERVIZI E IMMOBILI COMUNALI ANNO 2022-IMPEGNO DI SPESA.",1,3,2,5,5
ACQUE S.P.A.,07/12/2022,6260,Acqua,"3.120,83","0,00","282,60",,1,3,Acquisto di beni e servizi,2,5,5,"Liquidazione Fattura Nr. 6022012000014333  del 19/11/2022 (di cui Split per euro 282,60) - FORNITURA ACQUA POTABILE PER SERVIZI E IMMOBILI COMUNALI ANNO 2022-IMPEGNO DI SPESA.",1,3,2,5,5
ACQUE S.P.A.,07/12/2022,6228,Acqua,"37,84","0,00","3,44",,1,3,Acquisto di beni e servizi,2,5,5,"Liquidazione Fattura Nr. 6022012000013405  del 14/11/2022 (di cui Split per euro 3,44) - FORNITURA ACQUA POTABILE PER IMMOBILI E SERVIZI COMUNALI ANNO 2020_IMPEGNO DI SPESA PER ACQUE SPA",1,3,2,5,5
SPEMA S.N.C. - ALLESTIMENTI SU VEICOLI INDUSTRIALI,07/12/2022,6227,"Manutenzione ordinaria e riparazioni di mezzi di trasporto ad uso civile, di sicurezza e ordine pubblico","910,99","0,00","164,28",ZA037BD20E,1,3,Acquisto di beni e servizi,2,9,1,"Liquidazione Fattura Nr. 1019  del 30/09/2022 (di cui Split per euro 164,28) - INTERVENTI DI RIPARAZIONE SUGLI AUTOCARRI TARGATI CT439HR E DR369FB",1,3,2,9,1
ETRURIA P.A. SRL,07/12/2022,6236,Altre spese sostenute per utilizzo di beni di terzi n.a.c.,"610,00","0,00","110,00",ZF035446B5,1,3,Acquisto di beni e servizi,2,7,999,"Liquidazione Fattura Nr. 1501/00000 del 31/10/2022 - PACCHETTO ALL INCLUSIVE DI ACQUISTO, ATTIVAZIONE E MANTENIMENTO DEL SIGILLO ELETTRONICO QUALIFICATO EROGATO DA INFOCERT, COMPRESE TRANSAZIONI E SUA IMPLEMENTAZIONE NEL PROTOCOLLO INFORMAT",1,3,2,7,999
UNIONE DEI COMUNI CIRCONDARIO EMPOLESE VALDELSA,07/12/2022,6218,Trasferimenti correnti a Unioni di Comuni,"3.205,93","0,00","0,00",,1,4,Trasferimenti correnti,1,2,5,IMPEGNO E TRASFERIMENTO ALL'UNIONE DEI COMUNI CIRCONDARIO EMPOLESE  VALDELSA DI QUOTA PARTE DELLE SPESE INERENTI I SERVIZI INFORMATICI  PER L' ANNO 2022 � IMPEGNO DI SPESA,1,4,1,2,5
SOKOM SRL,07/12/2022,6235,Servizi di sicurezza,"2.196,00","0,00","396,00",ZDD3712834,1,3,Acquisto di beni e servizi,2,19,6,"Liquidazione Fattura Nr. 1858 del 15/11/2022 - STIPULA ASSISTENZA FIREWALL COMUNALE 2022 (di cui Split per euro 396,00)",1,3,2,19,6
FASTWEB SPA,07/12/2022,6230,Telefonia fissa,"634,71","0,00","114,46",Z1E2D7A299,1,3,Acquisto di beni e servizi,2,5,1,"Liquidazione Fattura Nr. PAE0038410 del 31/10/2022 - AFFIDAMENTO DIRETTO DEL SERVIZIO DI TELEFONIA FISSA E DI ALCUNE LINEE DATI MEDIANTE ADESIONE ALLA CONVENZIONE CONSIP DENOMINATA ""TELEFONIA FISSA 5"" PER LA DURATA CONTRATTUALE FISSATA AL 0",1,3,2,5,1
FASTWEB SPA,07/12/2022,6250,Telefonia fissa,"51,51","0,00","9,29",Z1E2D7A299,1,3,Acquisto di beni e servizi,2,5,1,"Liquidazione Fattura Nr. PAE0038410 del 31/10/2022 - AFFIDAMENTO DIRETTO DEL SERVIZIO DI TELEFONIA FISSA E DI ALCUNE LINEE DATI MEDIANTE ADESIONE ALLA CONVENZIONE CONSIP DENOMINATA ""TELEFONIA FISSA 5"" PER LA DURATA CONTRATTUALE FISSATA AL 0",1,3,2,5,1
FASTWEB SPA,07/12/2022,6245,Telefonia fissa,"37,84","0,00","6,82",Z1E2D7A299,1,3,Acquisto di beni e servizi,2,5,1,"Liquidazione Fattura Nr. PAE0038410 del 31/10/2022 - AFFIDAMENTO DIRETTO DEL SERVIZIO DI TELEFONIA FISSA E DI ALCUNE LINEE DATI MEDIANTE ADESIONE ALLA CONVENZIONE CONSIP DENOMINATA ""TELEFONIA FISSA 5"" PER LA DURATA CONTRATTUALE FISSATA AL 0",1,3,2,5,1
FASTWEB SPA,07/12/2022,6282,Telefonia fissa,"14,11","0,00","2,54",Z1E2D7A299,1,3,Acquisto di beni e servizi,2,5,1,"Liquidazione Fattura Nr. PAE0038410 del 31/10/2022 - AFFIDAMENTO DIRETTO DEL SERVIZIO DI TELEFONIA FISSA E DI ALCUNE LINEE DATI MEDIANTE ADESIONE ALLA CONVENZIONE CONSIP DENOMINATA ""TELEFONIA FISSA 5"" PER LA DURATA CONTRATTUALE FISSATA AL 0",1,3,2,5,1
FASTWEB SPA,07/12/2022,6239,Telefonia fissa,"13,43","0,00","2,43",Z1E2D7A299,1,3,Acquisto di beni e servizi,2,5,1,"Liquidazione Fattura Nr. PAE0038410 del 31/10/2022 - AFFIDAMENTO DIRETTO DEL SERVIZIO DI TELEFONIA FISSA E DI ALCUNE LINEE DATI MEDIANTE ADESIONE ALLA CONVENZIONE CONSIP DENOMINATA ""TELEFONIA FISSA 5"" PER LA DURATA CONTRATTUALE FISSATA AL 0",1,3,2,5,1
FASTWEB SPA,07/12/2022,6251,Telefonia fissa,"11,71","0,00","2,11",Z1E2D7A299,1,3,Acquisto di beni e servizi,2,5,1,"Liquidazione Fattura Nr. PAE0038410 del 31/10/2022 - AFFIDAMENTO DIRETTO DEL SERVIZIO DI TELEFONIA FISSA E DI ALCUNE LINEE DATI MEDIANTE ADESIONE ALLA CONVENZIONE CONSIP DENOMINATA ""TELEFONIA FISSA 5"" PER LA DURATA CONTRATTUALE FISSATA AL 0",1,3,2,5,1
FASTWEB SPA,07/12/2022,6279,Telefonia fissa,"11,71","0,00","2,11",Z1E2D7A299,1,3,Acquisto di beni e servizi,2,5,1,"Liquidazione Fattura Nr. PAE0038410 del 31/10/2022 - AFFIDAMENTO DIRETTO DEL SERVIZIO DI TELEFONIA FISSA E DI ALCUNE LINEE DATI MEDIANTE ADESIONE ALLA CONVENZIONE CONSIP DENOMINATA ""TELEFONIA FISSA 5"" PER LA DURATA CONTRATTUALE FISSATA AL 0",1,3,2,5,1
TIM S.P.A. DIREZIONE E COORDINAMENTO VIVENDI SA,07/12/2022,6229,Telefonia mobile,"106,23","0,00","19,16",Z692A72C5A,1,3,Acquisto di beni e servizi,2,5,2,"Liquidazione Fattura Nr. 7X04421988 del 11/10/2022 - Fattura Ottobre 22: Periodo 6/22 Ago-Sett (di cui Split per euro 19,16)",1,3,2,5,2
TIM S.P.A. DIREZIONE E COORDINAMENTO VIVENDI SA,07/12/2022,6233,Servizi di rete per trasmissione dati e VoIP e relativa manutenzione,"225,36","0,00","40,64",Z4419D9E67,1,3,Acquisto di beni e servizi,2,19,4,"Liquidazione Fattura Nr. 8L00636441 del 11/10/2022 - Fattura Ottobre 22: Periodo 6/22 Ago - Set            (di cui Split per euro 40,64)",1,3,2,19,4
TIM S.P.A. DIREZIONE E COORDINAMENTO VIVENDI SA,07/12/2022,6234,Servizi di rete per trasmissione dati e VoIP e relativa manutenzione,"124,66","0,00","22,48",Z5B1A0792B,1,3,Acquisto di beni e servizi,2,19,4,"Liquidazione Fattura Nr. 8L00632625 del 11/10/2022 - Fattura Ottobre 22: Periodo 6/22 Ago - Set            (di cui Split per euro 22,48)",1,3,2,19,4
TIM S.P.A. DIREZIONE E COORDINAMENTO VIVENDI SA,07/12/2022,6247,Servizi di rete per trasmissione dati e VoIP e relativa manutenzione,"90,52","0,00","14,52",Z112B35FF0,1,3,Acquisto di beni e servizi,2,19,4,"Liquidazione Fattura Nr. 8L00635183 del 11/10/2022 - Fattura Ottobre 22: Periodo 6/22 Ago - Set            (di cui Split per euro 14,52)",1,3,2,19,4
TIM S.P.A. DIREZIONE E COORDINAMENTO VIVENDI SA,07/12/2022,6241,Telefonia fissa,"90,52","0,00","14,52",Z1515A9942,1,3,Acquisto di beni e servizi,2,5,1,"Liquidazione Fattura Nr. 8L00631884 del 11/10/2022 - Fattura Ottobre 22: Periodo 6/22 Ago - Set            (di cui Split per euro 14,52)",1,3,2,5,1
TIM S.P.A. DIREZIONE E COORDINAMENTO VIVENDI SA,07/12/2022,6243,Servizi di rete per trasmissione dati e VoIP e relativa manutenzione,"124,66","0,00","22,48",Z112B35FF0,1,3,Acquisto di beni e servizi,2,19,4,"Liquidazione Fattura Nr. 8L00635513 del 11/10/2022 - Fattura Ottobre 22: Periodo 6/22 Ago - Set            (di cui Split per euro 22,48)",1,3,2,19,4
TIM S.P.A. DIREZIONE E COORDINAMENTO VIVENDI SA,07/12/2022,6257,Servizi di rete per trasmissione dati e VoIP e relativa manutenzione,"134,22","0,00","24,20",Z02264C2B7,1,3,Acquisto di beni e servizi,2,19,4,"Liquidazione Fattura Nr. 8L00633896 del 11/10/2022 - Fattura Ottobre 22: Periodo 6/22 Ago - Set            (di cui Split per euro 24,20)",1,3,2,19,4
TIM S.P.A. DIREZIONE E COORDINAMENTO VIVENDI SA,07/12/2022,6249,Servizi di rete per trasmissione dati e VoIP e relativa manutenzione,"146,40","0,00","26,40",Z02264C2B7,1,3,Acquisto di beni e servizi,2,19,4,"Liquidazione Fattura Nr. 8L00634296 del 11/10/2022 - Fattura Ottobre 22: Periodo 6/22 Ago - Set            (di cui Split per euro 26,40)",1,3,2,19,4
TIM S.P.A. DIREZIONE E COORDINAMENTO VIVENDI SA,07/12/2022,6248,Telefonia fissa,"263,18","0,00","46,38",Z02264C2B7,1,3,Acquisto di beni e servizi,2,5,1,"Liquidazione Fattura Nr. 8L00634726 del 11/10/2022 - Fattura Ottobre 22: Periodo 6/22 Ago - Set            (di cui Split per euro 46,38)",1,3,2,5,1
TIM S.P.A. DIREZIONE E COORDINAMENTO VIVENDI SA,07/12/2022,6231,Servizi di rete per trasmissione dati e VoIP e relativa manutenzione,"225,43","0,00","40,64",Z4419D9E67,1,3,Acquisto di beni e servizi,2,19,4,"Liquidazione Fattura Nr. 8L00631271 del 11/10/2022 - Fattura Ottobre 22: Periodo 6/22 Ago - Set            (di cui Split per euro 40,64)",1,3,2,19,4
TIM S.P.A. DIREZIONE E COORDINAMENTO VIVENDI SA,07/12/2022,6283,Servizi di rete per trasmissione dati e VoIP e relativa manutenzione,"112,24","0,00","20,24",Z4419D9E67,1,3,Acquisto di beni e servizi,2,19,4,"Liquidazione Fattura Nr. 8L00636241 del 11/10/2022 - Fattura Ottobre 22: Periodo 6/22 Ago - Set            (di cui Split per euro 20,24)",1,3,2,19,4
TIM S.P.A. DIREZIONE E COORDINAMENTO VIVENDI SA,07/12/2022,6232,Servizi di rete per trasmissione dati e VoIP e relativa manutenzione,"90,52","0,00","14,52",ZBB27E8244,1,3,Acquisto di beni e servizi,2,19,4,"Liquidazione Fattura Nr. 8L00632037 del 11/10/2022 - Fattura Ottobre 22: Periodo 6/22 Ago - Set            (di cui Split per euro 14,52)",1,3,2,19,4
TIM S.P.A. DIREZIONE E COORDINAMENTO VIVENDI SA,07/12/2022,6244,Servizi di rete per trasmissione dati e VoIP e relativa manutenzione,"67,89","0,00","10,89",Z112B35FF0,1,3,Acquisto di beni e servizi,2,19,4,"Liquidazione Fattura Nr. 8L00631629 del 11/10/2022 - Fattura Ottobre 22: Periodo 6/22 Ago - Set            (di cui Split per euro 10,89)",1,3,2,19,4
TIM S.P.A. DIREZIONE E COORDINAMENTO VIVENDI SA,07/12/2022,6238,Telefonia fissa,"22,63","0,00","3,63",Z112B35FF0,1,3,Acquisto di beni e servizi,2,5,1,"Liquidazione Fattura Nr. 8L00631629 del 11/10/2022 - Fattura Ottobre 22: Periodo 6/22 Ago - Set            (di cui Split per euro 3,63)",1,3,2,5,1
TIM S.P.A. DIREZIONE E COORDINAMENTO VIVENDI SA,07/12/2022,6240,Telefonia fissa,"153,70","0,00","27,72",Z1515A9942,1,3,Acquisto di beni e servizi,2,5,1,"Liquidazione Fattura Nr. 4220622800014305 del 11/10/2022 - Fattura Ottobre 22: Periodo 6/22 Ago - Set            (di cui Split per euro 27,72)",1,3,2,5,1
TIM S.P.A. DIREZIONE E COORDINAMENTO VIVENDI SA,07/12/2022,6258,Servizi di rete per trasmissione dati e VoIP e relativa manutenzione,"173,02","0,00","29,50",Z02264C2B7,1,3,Acquisto di beni e servizi,2,19,4,"Liquidazione Fattura Nr. 8L00631822 del 11/10/2022 - Fattura Ottobre 22: Periodo 6/22 Ago - Set            (di cui Split per euro 29,50)",1,3,2,19,4
TIM S.P.A. DIREZIONE E COORDINAMENTO VIVENDI SA,07/12/2022,6252,Telefonia fissa,"5,49","0,00","0,60",Z1515A9942,1,3,Acquisto di beni e servizi,2,5,1,"Liquidazione Fattura Nr. 8L00631822 del 11/10/2022 - Fattura Ottobre 22: Periodo 6/22 Ago - Set            (di cui Split per euro 0,60)",1,3,2,5,1
E-DISTRIBUZIOINE SPA,07/12/2022,6221,Energia elettrica,"6,97","0,00","1,26",,1,3,Acquisto di beni e servizi,2,5,4,"Liquidazione Fattura Nr. 0000922900019752  del 21/10/2022 (di cui Split per euro 1,26) - Fornitura generica",1,3,2,5,4
E-DISTRIBUZIOINE SPA,07/12/2022,6220,Energia elettrica,"6,97","0,00","1,26",,1,3,Acquisto di beni e servizi,2,5,4,"Liquidazione Fattura Nr. 0000922900019751  del 21/10/2022 (di cui Split per euro 1,26) - Fornitura generica",1,3,2,5,4
EREDI LEPORATTI GUIDO S.A.S. DI FIORETTA PACINI,07/12/2022,6281,Contratti di servizio di trasporto pubblico,"609,35","0,00","55,40",Z0D363D8E6,1,3,Acquisto di beni e servizi,2,15,1,"Liquidazione Fattura Nr. 21/22  del 04/11/2022 (di cui Split per euro 55,40) - FATTURA NAVETTA MENSILITA' OTTOBRE 2022",1,3,2,15,1
POSTE ITALIANE SPA SOCIETA' CON SOCIO UNICO,09/12/2022,6286,Spese postali,"805,28","0,00","0,00",Z14361EF92,1,3,Acquisto di beni e servizi,2,16,2,Liquidazione Fattura Nr. 1022301793  del 24/11/2022 - 30027076-014 - posta easy ottobre 2022,1,3,2,16,2
EUROSPURGHI S.R.L.,09/12/2022,6290,Manutenzione ordinaria e riparazioni di beni immobili,"132,00","0,00","12,00",Z18358BD90,1,3,Acquisto di beni e servizi,2,9,8,"LIQUIDAZIONE FATTURA NR. 24/P  DEL 11/10/2022 (DI CUI SPLIT PER EURO 12,00) - PULIZIA E VUOTATURA FOSSE BIOLOGICHE",1,3,2,9,8
EUROSPURGHI S.R.L.,09/12/2022,6292,Manutenzione ordinaria e riparazioni di beni immobili,"88,00","0,00","8,00",Z18358BD90,1,3,Acquisto di beni e servizi,2,9,8,"LIQUIDAZIONE FATTURA NR. 24/P  DEL 11/10/2022 (DI CUI SPLIT PER EURO 8,00) - PULIZIA E VUOTATURA FOSSE BIOLOGICHE",1,3,2,9,8
CO&SO EMPOLI - CONS. DI COOP. SOCIALI - SOCIETA' COOPERATIVA,09/12/2022,6293,Altre spese per contratti di servizio pubblico,"653,48","0,00","117,84",7551132F3D,1,3,Acquisto di beni e servizi,2,15,999,Liquidazione Fattura Nr. 000811-2C0  del 10/10/2022 - Oneri di sicurezza anno 2021,1,3,2,15,999
REGIONE TOSCANA - CANONE PER L'OCCUPAZIONE DEL DEMANIO IDRICO,09/12/2022,6285,Altre spese sostenute per utilizzo di beni di terzi n.a.c.,"3.401,46","0,00","0,00",,1,3,Acquisto di beni e servizi,2,7,999,INDENNIZZO 2022,1,3,2,7,999
MESTICHERIA FERRAMENTA SELMI SNC,09/12/2022,6294,Altri beni e materiali di consumo n.a.c.,"202,02","0,00","36,43",ZAC366CB93,1,3,Acquisto di beni e servizi,1,2,999,"LIQUIDAZIONE FATTURA NR. 4/1  DEL 30/09/2022 (DI CUI SPLIT PER EURO 36,43) - ACQUISTO MATERIALE DI FERRAMENTA",1,3,1,2,999
MESTICHERIA FERRAMENTA SELMI SNC,09/12/2022,6291,Altri beni e materiali di consumo n.a.c.,"300,00","0,00","54,10",ZAC366CB93,1,3,Acquisto di beni e servizi,1,2,999,"LIQUIDAZIONE FATTURA NR. 4/1  DEL 30/09/2022 (DI CUI SPLIT PER EURO 54,10) - ACQUISTO MATERIALE DI FERRAMENTA",1,3,1,2,999
MESTICHERIA FERRAMENTA SELMI SNC,09/12/2022,6298,Altri beni e materiali di consumo n.a.c.,"600,00","0,00","109,20",ZAC366CB93,1,3,Acquisto di beni e servizi,1,2,999,"LIQUIDAZIONE FATTURA NR. 4/1  DEL 30/09/2022 (DI CUI SPLIT PER EURO 109,20) - ACQUISTO MATERIALE DI FERRAMENTA",1,3,1,2,999
MESTICHERIA FERRAMENTA SELMI SNC,09/12/2022,6295,Altri beni e materiali di consumo n.a.c.,"384,31","0,00","68,30",ZAC366CB93,1,3,Acquisto di beni e servizi,1,2,999,"LIQUIDAZIONE FATTURA NR. 4/1  DEL 30/09/2022 (DI CUI SPLIT PER EURO 68,30) - ACQUISTO MATERIALE DI FERRAMENTA",1,3,1,2,999
GOTTARDO SRL,09/12/2022,6296,Manutenzione ordinaria e riparazioni di beni immobili,"707,60","0,00","127,60",ZED37C6645,1,3,Acquisto di beni e servizi,2,9,8,"Liquidazione Fattura Nr. FPA 47/22  del 30/09/2022 (di cui Split per euro 127,60) - RIPARAZIONE STRUTTURA LUDICA INSTALLATA PRESSO GIARDINO TERZANI ",1,3,2,9,8
EMPOLI PNEUS SRL,09/12/2022,6287,"Manutenzione ordinaria e riparazioni di mezzi di trasporto ad uso civile, di sicurezza e ordine pubblico","1.131,43","0,00","204,03",ZBA36EFBAB,1,3,Acquisto di beni e servizi,2,9,1,"Liquidazione Fattura Nr. 1080/0  del 20/10/2022 (di cui Split per euro 204,03) - sostituzione e riparazione pneumatici su vari mezzi",1,3,2,9,1
EMPOLI PNEUS SRL,09/12/2022,6288,"Manutenzione ordinaria e riparazioni di mezzi di trasporto ad uso civile, di sicurezza e ordine pubblico","305,00","0,00","55,00",ZBA36EFBAB,1,3,Acquisto di beni e servizi,2,9,1,"Liquidazione Fattura Nr. 1207/0  del 03/11/2022 (di cui Split per euro 55,00) - RIPARAZIONE PNEUMATICI VARI MEZZI",1,3,2,9,1
EMPOLI PNEUS SRL,09/12/2022,6289,"Manutenzione ordinaria e riparazioni di mezzi di trasporto ad uso civile, di sicurezza e ordine pubblico","108,58","0,00","19,58",ZBA36EFBAB,1,3,Acquisto di beni e servizi,2,9,1,"Liquidazione Fattura Nr. 1215/0  del 07/11/2022 (di cui Split per euro 19,58) - RIPARAZIONE PNEUMATICI VARI MEZZI",1,3,2,9,1
LA RAPIDA SRL,09/12/2022,6297,Manutenzione ordinaria e riparazioni di beni immobili,"11.285,00","0,00","2.035,00",Z7836DFF8C,1,3,Acquisto di beni e servizi,2,9,8,"Liquidazione Fattura Nr. 57/VPA  del 30/09/2022 (di cui Split per euro 2.035,00) - manutenzione condotta fognaria via empolese",1,3,2,9,8
COMUNE DI VINCI- CONTI CORRENTI POSTALI VARI,12/12/2022,6299,Spese per servizi finanziari n.a.c.,"65,10","0,00","0,00",,1,3,Acquisto di beni e servizi,2,17,999,CONTI CORRENTI POSTALI DELL'ENTE: REINTEGRO SPESE E BOLLI SINO AL 30/11/2022.,1,3,2,17,999
COMUNE DI VINCI- CONTI CORRENTI POSTALI VARI,12/12/2022,6303,Spese per servizi finanziari n.a.c.,"65,10","0,00","0,00",,1,3,Acquisto di beni e servizi,2,17,999,CONTI CORRENTI POSTALI DELL'ENTE: REINTEGRO SPESE E BOLLI SINO AL 30/11/2022.,1,3,2,17,999
COMUNE DI VINCI- CONTI CORRENTI POSTALI VARI,12/12/2022,6302,Spese per servizi finanziari n.a.c.,"60,34","0,00","0,00",,1,3,Acquisto di beni e servizi,2,17,999,CONTI CORRENTI POSTALI DELL'ENTE: REINTEGRO SPESE E BOLLI SINO AL 30/11/2022.,1,3,2,17,999
COMUNE DI VINCI- CONTI CORRENTI POSTALI VARI,12/12/2022,6301,Spese per servizi finanziari n.a.c.,"60,00","0,00","0,00",,1,3,Acquisto di beni e servizi,2,17,999,CONTI CORRENTI POSTALI DELL'ENTE: REINTEGRO SPESE E BOLLI SINO AL 30/11/2022.,1,3,2,17,999
COMUNE DI VINCI- CONTI CORRENTI POSTALI VARI,12/12/2022,6300,Spese per servizi finanziari n.a.c.,"60,00","0,00","0,00",,1,3,Acquisto di beni e servizi,2,17,999,CONTI CORRENTI POSTALI DELL'ENTE: REINTEGRO SPESE E BOLLI SINO AL 30/11/2022.,1,3,2,17,999
COMUNE DI VINCI- CONTI CORRENTI POSTALI VARI,12/12/2022,6304,Spese per servizi finanziari n.a.c.,"60,00","0,00","0,00",,1,3,Acquisto di beni e servizi,2,17,999,CONTI CORRENTI POSTALI DELL'ENTE: REINTEGRO SPESE E BOLLI SINO AL 30/11/2022.,1,3,2,17,999
UISP - UNIONE ITALIANA SPORT PER TUTTI COMITATO TERRITORIALE EMPOLI VALDELSA,13/12/2022,6347,Trasferimenti correnti a Istituzioni Sociali Private ,"5.000,00","0,00","0,00",,1,4,Trasferimenti correnti,4,1,1,"Liquidazione contributo per progetto ""Sani stili di Vita per Vinci""",1,4,4,1,1
KUWAIT PETROLEUM ITALIA S.P.A.,13/12/2022,6325,"Carburanti, combustibili e lubrificanti ","658,02","0,00","118,66",9010548B6D,1,3,Acquisto di beni e servizi,1,2,2,"Liquidazione Fattura Nr. PJ06188099  del 30/11/2022 (di cui Split per euro 118,66) - Fornitura generica",1,3,1,2,2
KUWAIT PETROLEUM ITALIA S.P.A.,13/12/2022,6326,"Carburanti, combustibili e lubrificanti ","333,41","0,00","60,13",9010548B6D,1,3,Acquisto di beni e servizi,1,2,2,"Liquidazione Fattura Nr. PJ06188099  del 30/11/2022 (di cui Split per euro 60,13) - Fornitura generica",1,3,1,2,2
KUWAIT PETROLEUM ITALIA S.P.A.,13/12/2022,6327,"Carburanti, combustibili e lubrificanti ","1.408,59","0,00","254,00",9010548B6D,1,3,Acquisto di beni e servizi,1,2,2,"Liquidazione Fattura Nr. PJ06188099  del 30/11/2022 (di cui Split per euro 254,00) - Fornitura generica",1,3,1,2,2
ACQUE S.P.A.,13/12/2022,6333,Acqua,"301,85","0,00","27,44",,1,3,Acquisto di beni e servizi,2,5,5,"Liquidazione Fattura Nr. 6022012000015455  del 05/12/2022 (di cui Split per euro 27,44) - FORNITURA ACQUA POTABILE PER SERVIZI E IMMOBILI COMUNALI ANNO 2022-IMPEGNO DI SPESA.",1,3,2,5,5
ACQUE S.P.A.,13/12/2022,6346,Acqua,"0,54","0,00","0,05",,1,3,Acquisto di beni e servizi,2,5,5,"Liquidazione Fattura Nr. 6022012000015456  del 05/12/2022 (di cui Split per euro 0,05) - FORNITURA ACQUA POTABILE PER SERVIZI E IMMOBILI COMUNALI ANNO 2022-IMPEGNO DI SPESA.",1,3,2,5,5
BABELE DI CINELLI GIANNI,13/12/2022,6362,Pubblicazioni,"444,82","0,00","0,00",,1,3,Acquisto di beni e servizi,1,1,2,Liquidazione Fattura Nr. 27  del 16/11/2022 - vendita libri scolastici per scuola primaria,1,3,1,1,2
ERARIO DELLO STATO PER PAGAMENTO I.V.A.,13/12/2022,6312,Versamenti IVA a debito per le gestioni commerciali,"8.588,86","0,00","0,00",,1,10,Altre spese correnti,3,1,1,VERSAMENTO IVA A DEBITO MESE DI NOVEMBRE 2022,1,10,3,1,1
ETRURIA P.A. SRL,13/12/2022,6332,Gestione e manutenzione applicazioni,"31.948,14","0,00","5.761,14",Z323798976,1,3,Acquisto di beni e servizi,2,19,1,"Liquidazione Fattura Nr. 1810/00000 del 02/12/2022 - ASSISTENZA APPLICATIVI GESTIONALI DELL'ENTE - ETRURIA P.A. - MEPA (di cui Split per euro 5.761,14)",1,3,2,19,1
ESKIMO COOP. SOCIALE ONLUS,13/12/2022,6366,Altre spese per contratti di servizio pubblico,"7.145,25","0,00","0,00",9454707F06,1,3,Acquisto di beni e servizi,2,15,999,"Liquidazione Fattura Nr. FATTPA 138_22  del 05/12/2022 - APPR. SCHEMA DI CONTRATTO OPER.  L'APPALTO DEI SERVIZI EDUC.INTEGR.PRIMA INFANZIA,DEI SERVIZI EXTRA SCOLASTICI E ULTERIORI ATTIVITA' DI CUI ALL'ACCORDO QUADRO REP. N. 1558 DEL 07/12/2",1,3,2,15,999
ESKIMO COOP. SOCIALE ONLUS,13/12/2022,6367,Altre spese per contratti di servizio pubblico,"369,69","0,00","0,00",9454707F06,1,3,Acquisto di beni e servizi,2,15,999,"Liquidazione Fattura Nr. FATTPA 139_22  del 05/12/2022 - APPROV..SCHEMA DI CONTR. OPERATIVO . L'APPALTO . SERVIZI EDUC. INTEGRATIVI  PRIMA INFANZIA,SERVIZI EXTRA SCOL. E ULTERIORI ATTIVITA' DI CUI  ACC.QUADRO QUADRO REP. N. 1558 DEL 07/12/2",1,3,2,15,999
CARTOLERIA ANNA,13/12/2022,6363,Pubblicazioni,"147,41","0,00","0,00",,1,3,Acquisto di beni e servizi,1,1,2,Liquidazione Fattura Nr. 5/PA  del 17/11/2022 - Fornitura generica,1,3,1,1,2
ALIA SERVIZI AMBIENTALI S.P.A.,13/12/2022,6357,Contratti di servizio per la raccolta rifiuti,"277.454,84","0,00","25.223,17",4726694F44,1,3,Acquisto di beni e servizi,2,15,4,"Liquidazione Fattura Nr. 0000134999  del 30/11/2022 (di cui Split per euro 25.223,17) -  Determina 62 del 28.06.2022  Iva da versare a cura del cessionario o committente ai sensi dell'art.17 -ter del D.P.R. nr.633/1972 Scissione pagamenti",1,3,2,15,4
MINISTERO DELL'INTERNO DIREZIONE CENTRALE PER I SERVIZI DEMOGRAFICI,13/12/2022,6361,Trasferimenti correnti a Ministeri,"1.343,20","0,00","0,00",,1,4,Trasferimenti correnti,1,1,1,"COMUNE DI VINCI, M059, CORRISPETTIVO PER RILASCIO N. 80 CIE PERIODO 1-15 NOVEMBRE 2022",1,4,1,1,1
B. & B. SERVICE SOCIETA' COOPERATIVA,13/12/2022,6365,Trasferimenti correnti a altre imprese,"24.095,34","0,00","0,00",,1,4,Trasferimenti correnti,3,99,999,RISTORO PER IMPRESE ESERCENTI SERVIZI TRASPORTO PER PERDITE DI FATTURATO CAUSATE DA EMERGENZA COVID 19,1,4,3,99,999
PUNTO E A CAPO S.R.L.,13/12/2022,6364,Pubblicazioni,"51,47","0,00","0,00",,1,3,Acquisto di beni e servizi,1,1,2,Liquidazione Fattura Nr. 72  del 21/11/2022 - Scarico per vendita,1,3,1,1,2
NOVA AEG SPA,13/12/2022,6324,Energia elettrica,"52,81","0,00","9,52",897509310C,1,3,Acquisto di beni e servizi,2,5,4,"Liquidazione Fattura Nr. 2220162705  del 21/11/2022 (di cui Split per euro 9,52) - IT001E04919532 202210  SEDE DI FORNITURA EE",1,3,2,5,4
NOVA AEG SPA,13/12/2022,6323,Energia elettrica,"104,42","0,00","18,83",897509310C,1,3,Acquisto di beni e servizi,2,5,4,"Liquidazione Fattura Nr. 2220162697  del 21/11/2022 (di cui Split per euro 18,83) - IT001E04919527 202210  SEDE DI FORNITURA EE",1,3,2,5,4
NOVA AEG SPA,13/12/2022,6343,Energia elettrica,"1.359,12","0,00","245,09",897509310C,1,3,Acquisto di beni e servizi,2,5,4,"Liquidazione Fattura Nr. 2220162698  del 21/11/2022 (di cui Split per euro 245,09) - IT001E04919528 202210  SEDE DI FORNITURA EE",1,3,2,5,4
NOVA AEG SPA,13/12/2022,6356,Energia elettrica,"54,68","0,00","9,86",897509310C,1,3,Acquisto di beni e servizi,2,5,4,"LIQUIDAZIONE FATTURA NR. 2220162702  DEL 21/11/2022 (DI CUI SPLIT PER EURO 9,86) - IT001E41398842 202210  SEDE DI FORNITURA EE",1,3,2,5,4
NOVA AEG SPA,13/12/2022,6322,Energia elettrica,"10,54","0,00","1,90",897509310C,1,3,Acquisto di beni e servizi,2,5,4,"Liquidazione Fattura Nr. 2220162687  del 21/11/2022 (di cui Split per euro 1,90) - IT001E04919522 202210  SEDE DI FORNITURA EE",1,3,2,5,4
NOVA AEG SPA,13/12/2022,6321,Energia elettrica,"17,69","0,00","3,19",897509310C,1,3,Acquisto di beni e servizi,2,5,4,"Liquidazione Fattura Nr. 2220162696  del 21/11/2022 (di cui Split per euro 3,19) - IT001E41741369 202210  SEDE DI FORNITURA EE",1,3,2,5,4
NOVA AEG SPA,13/12/2022,6355,Energia elettrica,"73,04","0,00","13,17",897509310C,1,3,Acquisto di beni e servizi,2,5,4,"LIQUIDAZIONE FATTURA NR. 2220162689  DEL 21/11/2022 (DI CUI SPLIT PER EURO 13,17) - IT001E43263124 202210  SEDE DI FORNITURA EE",1,3,2,5,4
NOVA AEG SPA,13/12/2022,6320,Energia elettrica,"10,54","0,00","1,90",897509310C,1,3,Acquisto di beni e servizi,2,5,4,"Liquidazione Fattura Nr. 2220162704  del 21/11/2022 (di cui Split per euro 1,90) - IT001E04919533 202210  SEDE DI FORNITURA EE",1,3,2,5,4
NOVA AEG SPA,13/12/2022,6358,Energia elettrica,"504,09","0,00","90,90",897509310C,1,3,Acquisto di beni e servizi,2,5,4,"Liquidazione Fattura Nr. 2220162688  del 21/11/2022 (di cui Split per euro 90,90) - IT001E04919544 202210  SEDE DI FORNITURA EE",1,3,2,5,4
NOVA AEG SPA,13/12/2022,6328,Energia elettrica,"440,59","0,00","79,45",897509310C,1,3,Acquisto di beni e servizi,2,5,4,"Liquidazione Fattura Nr. 2220162695  del 21/11/2022 (di cui Split per euro 79,45) - IT001E04919524 202210  SEDE DI FORNITURA EE",1,3,2,5,4
NOVA AEG SPA,13/12/2022,6341,Energia elettrica,"707,95","0,00","127,66",897509310C,1,3,Acquisto di beni e servizi,2,5,4,"Liquidazione Fattura Nr. 2220162700  del 21/11/2022 (di cui Split per euro 127,66) - IT001E04919529 202210  SEDE DI FORNITURA EE",1,3,2,5,4
NOVA AEG SPA,13/12/2022,6350,Energia elettrica,"35.009,99","0,00","6.313,28",89749689E2,1,3,Acquisto di beni e servizi,2,5,4,"Liquidazione Fattura Nr. 2220162672  del 21/11/2022 (di cui Split per euro 6.313,28) - 202210 ",1,3,2,5,4
NOVA AEG SPA,13/12/2022,6337,Energia elettrica,"919,94","0,00","165,89",897509310C,1,3,Acquisto di beni e servizi,2,5,4,"Liquidazione Fattura Nr. 2220162685  del 21/11/2022 (di cui Split per euro 165,89) - IT001E04919516 202210  SEDE DI FORNITURA EE",1,3,2,5,4
NOVA AEG SPA,13/12/2022,6315,Energia elettrica,"47,73","0,00","8,61",897509310C,1,3,Acquisto di beni e servizi,2,5,4,"Liquidazione Fattura Nr. 2220162699  del 21/11/2022 (di cui Split per euro 8,61) - IT001E04919530 202210  SEDE DI FORNITURA EE",1,3,2,5,4
NOVA AEG SPA,13/12/2022,6339,Energia elettrica,"74,98","0,00","13,52",897509310C,1,3,Acquisto di beni e servizi,2,5,4,"Liquidazione Fattura Nr. 2220162673  del 21/11/2022 (di cui Split per euro 13,52) - IT001E04919520 202210  SEDE DI FORNITURA EE",1,3,2,5,4
NOVA AEG SPA,13/12/2022,6331,Energia elettrica,"390,61","0,00","70,44",897509310C,1,3,Acquisto di beni e servizi,2,5,4,"Liquidazione Fattura Nr. 2220162677  del 21/11/2022 (di cui Split per euro 70,44) - IT001E04919536 202210  SEDE DI FORNITURA EE",1,3,2,5,4
NOVA AEG SPA,13/12/2022,6349,Energia elettrica,"101,02","0,00","18,22",897509310C,1,3,Acquisto di beni e servizi,2,5,4,"Liquidazione Fattura Nr. 2220162692  del 21/11/2022 (di cui Split per euro 18,22) - IT001E04919525 202210  SEDE DI FORNITURA EE",1,3,2,5,4
NOVA AEG SPA,13/12/2022,6353,Energia elettrica,"38,53","0,00","6,95",897509310C,1,3,Acquisto di beni e servizi,2,5,4,"LIQUIDAZIONE FATTURA NR. 2220162690  DEL 21/11/2022 (DI CUI SPLIT PER EURO 6,95) - IT001E43232056 202210  SEDE DI FORNITURA EE",1,3,2,5,4
NOVA AEG SPA,13/12/2022,6351,Energia elettrica,"291,57","0,00","52,58",89749689E2,1,3,Acquisto di beni e servizi,2,5,4,"Liquidazione Fattura Nr. 2220162678  del 21/11/2022 (di cui Split per euro 52,58) - IT001E40095287 202210  SEDE DI FORNITURA EE",1,3,2,5,4
NOVA AEG SPA,13/12/2022,6330,Energia elettrica,"232,95","0,00","42,01",897509310C,1,3,Acquisto di beni e servizi,2,5,4,"Liquidazione Fattura Nr. 2220162682  del 21/11/2022 (di cui Split per euro 42,01) - IT001E04919519 202210  SEDE DI FORNITURA EE",1,3,2,5,4
NOVA AEG SPA,13/12/2022,6352,Energia elettrica,"1.151,35","0,00","207,62",89749689E2,1,3,Acquisto di beni e servizi,2,5,4,"Liquidazione Fattura Nr. 2220162708  del 21/11/2022 (di cui Split per euro 207,62) - IT001E43445285 202210  SEDE DI FORNITURA EE",1,3,2,5,4
NOVA AEG SPA,13/12/2022,6359,Energia elettrica,"255,50","0,00","46,07",897509310C,1,3,Acquisto di beni e servizi,2,5,4,"Liquidazione Fattura Nr. 2220162684  del 21/11/2022 (di cui Split per euro 46,07) - IT001E04919540 202210  SEDE DI FORNITURA EE",1,3,2,5,4
NOVA AEG SPA,13/12/2022,6329,Energia elettrica,"46,57","0,00","8,40",897509310C,1,3,Acquisto di beni e servizi,2,5,4,"Liquidazione Fattura Nr. 2220162701  del 21/11/2022 (di cui Split per euro 8,40) - IT001E04919543 202210  SEDE DI FORNITURA EE",1,3,2,5,4
NOVA AEG SPA,13/12/2022,6318,Energia elettrica,"54,49","0,00","9,83",897509310C,1,3,Acquisto di beni e servizi,2,5,4,"Liquidazione Fattura Nr. 2220162710  del 21/11/2022 (di cui Split per euro 9,83) - IT001E40890531 202210  SEDE DI FORNITURA EE",1,3,2,5,4
NOVA AEG SPA,13/12/2022,6348,Energia elettrica,"44,33","0,00","7,99",897509310C,1,3,Acquisto di beni e servizi,2,5,4,"Liquidazione Fattura Nr. 2220162691  del 21/11/2022 (di cui Split per euro 7,99) - IT001E04919526 202210  SEDE DI FORNITURA EE",1,3,2,5,4
NOVA AEG SPA,13/12/2022,6316,Energia elettrica,"12,38","0,00","2,23",897509310C,1,3,Acquisto di beni e servizi,2,5,4,"Liquidazione Fattura Nr. 2220162707  del 21/11/2022 (di cui Split per euro 2,23) - IT001E40889318 202210  SEDE DI FORNITURA EE",1,3,2,5,4
NOVA AEG SPA,13/12/2022,6317,Energia elettrica,"72,36","0,00","13,05",897509310C,1,3,Acquisto di beni e servizi,2,5,4,"Liquidazione Fattura Nr. 2220162694  del 21/11/2022 (di cui Split per euro 13,05) - IT001E04919517 202210  SEDE DI FORNITURA EE",1,3,2,5,4
NOVA AEG SPA,13/12/2022,6335,Energia elettrica,"47,63","0,00","8,59",897509310C,1,3,Acquisto di beni e servizi,2,5,4,"Liquidazione Fattura Nr. 2220162709  del 21/11/2022 (di cui Split per euro 8,59) - IT001E04919535 202210  SEDE DI FORNITURA EE",1,3,2,5,4
NOVA AEG SPA,13/12/2022,6340,Energia elettrica,"285,08","0,00","51,41",897509310C,1,3,Acquisto di beni e servizi,2,5,4,"Liquidazione Fattura Nr. 2220162686  del 21/11/2022 (di cui Split per euro 51,41) - IT001E04919521 202210  SEDE DI FORNITURA EE",1,3,2,5,4
NOVA AEG SPA,13/12/2022,6319,Energia elettrica,"2.109,71","0,00","380,44",897509310C,1,3,Acquisto di beni e servizi,2,5,4,"Liquidazione Fattura Nr. 2220162675  del 21/11/2022 (di cui Split per euro 380,44) - IT001E04919523 202210  SEDE DI FORNITURA EE",1,3,2,5,4
NOVA AEG SPA,13/12/2022,6336,Energia elettrica,"268,91","0,00","48,49",897509310C,1,3,Acquisto di beni e servizi,2,5,4,"Liquidazione Fattura Nr. 2220162683  del 21/11/2022 (di cui Split per euro 48,49) - IT001E04919515 202210  SEDE DI FORNITURA EE",1,3,2,5,4
NOVA AEG SPA,13/12/2022,6342,Energia elettrica,"1.570,93","0,00","283,28",897509310C,1,3,Acquisto di beni e servizi,2,5,4,"Liquidazione Fattura Nr. 2220162703  del 21/11/2022 (di cui Split per euro 283,28) - IT001E04919531 202210  SEDE DI FORNITURA EE",1,3,2,5,4
NOVA AEG SPA,13/12/2022,6344,Energia elettrica,"477,67","0,00","86,14",897509310C,1,3,Acquisto di beni e servizi,2,5,4,"Liquidazione Fattura Nr. 2220162693  del 21/11/2022 (di cui Split per euro 86,14) - IT001E40889726 202210  SEDE DI FORNITURA EE",1,3,2,5,4
NOVA AEG SPA,13/12/2022,6354,Energia elettrica,"69,02","0,00","12,45",897509310C,1,3,Acquisto di beni e servizi,2,5,4,"LIQUIDAZIONE FATTURA NR. 2220162674  DEL 21/11/2022 (DI CUI SPLIT PER EURO 12,45) - IT001E43232057 202210  SEDE DI FORNITURA EE",1,3,2,5,4
NOVA AEG SPA,13/12/2022,6345,Energia elettrica,"554,16","0,00","99,93",897509310C,1,3,Acquisto di beni e servizi,2,5,4,"Liquidazione Fattura Nr. 2220162679  del 21/11/2022 (di cui Split per euro 99,93) - IT001E41412665 202210  SEDE DI FORNITURA EE",1,3,2,5,4
NOVA AEG SPA,13/12/2022,6360,Energia elettrica,"659,82","0,00","118,98",897509310C,1,3,Acquisto di beni e servizi,2,5,4,"Liquidazione Fattura Nr. 2220162706  del 21/11/2022 (di cui Split per euro 118,98) - IT001E04919534 202210  SEDE DI FORNITURA EE",1,3,2,5,4
NOVA AEG SPA,13/12/2022,6338,Energia elettrica,"745,60","0,00","134,45",897509310C,1,3,Acquisto di beni e servizi,2,5,4,"Liquidazione Fattura Nr. 2220162676  del 21/11/2022 (di cui Split per euro 134,45) - IT001E40886806 202210  SEDE DI FORNITURA EE",1,3,2,5,4
NOVA AEG SPA,13/12/2022,6334,Energia elettrica,"1.224,48","0,00","220,81",897509310C,1,3,Acquisto di beni e servizi,2,5,4,"Liquidazione Fattura Nr. 2220162681  del 21/11/2022 (di cui Split per euro 220,81) - IT001E04919538 202210  SEDE DI FORNITURA EE",1,3,2,5,4
CASSA DEPOSITI E PRESTITI S.P.A. PER M.E.F.,14/12/2022,6482,Interessi passivi a Cassa Depositi e Prestiti SPA su mutui e altri finanziamenti a medio lungo termine,"737,09","0,00","0,00",,1,7,Interessi passivi,5,4,3,Quota Interessi - DEBITI FUORI BILANCIO RICONOSCIUTI - RINEGOZIATO - Rep. N.4326669/00,1,7,5,4,3
CASSA DEPOSITI E PRESTITI S.P.A. (C.D.P. S.P.A.),14/12/2022,6383,Interessi passivi a Cassa Depositi e Prestiti SPA su mutui e altri finanziamenti a medio lungo termine,"1.546,22","0,00","0,00",,1,7,Interessi passivi,5,4,3,"Quota Interessi - IMPIANTI SPORTIVI C.S. SOVIGLIANA  142.025,65 - Rep. N.3067509/00",1,7,5,4,3
CASSA DEPOSITI E PRESTITI S.P.A. (C.D.P. S.P.A.),14/12/2022,6384,Interessi passivi a Cassa Depositi e Prestiti SPA su mutui e altri finanziamenti a medio lungo termine,"2.437,24","0,00","0,00",,1,7,Interessi passivi,5,4,3,"Quota Interessi - STRADE CIM. SPICCHIO  219.494,18 - Rep. N.3076816/00",1,7,5,4,3
CASSA DEPOSITI E PRESTITI S.P.A. (C.D.P. S.P.A.),14/12/2022,6385,Interessi passivi a Cassa Depositi e Prestiti SPA su mutui e altri finanziamenti a medio lungo termine,"800,01","0,00","0,00",,1,7,Interessi passivi,5,4,3,"Quota Interessi - SISTEMAZIONE STRADA  70.778,12 - Rep. N.3104145/00",1,7,5,4,3
CASSA DEPOSITI E PRESTITI S.P.A. (C.D.P. S.P.A.),14/12/2022,6412,Interessi passivi a Cassa Depositi e Prestiti SPA su mutui e altri finanziamenti a medio lungo termine,"813,48","0,00","0,00",,1,7,Interessi passivi,5,4,3,"Quota Interessi - ACQUEDOTTO CIVICO  121.367,37 - Rep. N.3124797/00",1,7,5,4,3
CASSA DEPOSITI E PRESTITI S.P.A. (C.D.P. S.P.A.),14/12/2022,6386,Interessi passivi a Cassa Depositi e Prestiti SPA su mutui e altri finanziamenti a medio lungo termine,"566,59","0,00","0,00",,1,7,Interessi passivi,5,4,3,"Quota Interessi - COSTRUZIONE STRADA COM.LE  69.375,66 - Rep. N.3154940/00",1,7,5,4,3
CASSA DEPOSITI E PRESTITI S.P.A. (C.D.P. S.P.A.),14/12/2022,6410,Interessi passivi a Cassa Depositi e Prestiti SPA su mutui e altri finanziamenti a medio lungo termine,"960,60","0,00","0,00",,1,7,Interessi passivi,5,4,3,"Quota Interessi - IMPIANTO PUBBLICA ILLUMINAZIONE  108.944,49 - Rep. N.3185942/00",1,7,5,4,3
CASSA DEPOSITI E PRESTITI S.P.A. (C.D.P. S.P.A.),14/12/2022,6413,Interessi passivi a Cassa Depositi e Prestiti SPA su mutui e altri finanziamenti a medio lungo termine,"652,35","0,00","0,00",,1,7,Interessi passivi,5,4,3,"Quota Interessi - RETE IDRICA INTERNA  185.159,24 - Rep. N.4051791/00",1,7,5,4,3
CASSA DEPOSITI E PRESTITI S.P.A. (C.D.P. S.P.A.),14/12/2022,6414,Interessi passivi a Cassa Depositi e Prestiti SPA su mutui e altri finanziamenti a medio lungo termine,"2.340,22","0,00","0,00",,1,7,Interessi passivi,5,4,3,"Quota Interessi - ACQUEDOTTO  232.103,77 - Rep. N.4055469/00",1,7,5,4,3
CASSA DEPOSITI E PRESTITI S.P.A. (C.D.P. S.P.A.),14/12/2022,6374,Interessi passivi a Cassa Depositi e Prestiti SPA su mutui e altri finanziamenti a medio lungo termine,"803,33","0,00","0,00",,1,7,Interessi passivi,5,4,3,"Quota Interessi - SCUOLA ELEMENTARE VITOLINI  228.011,35 - Rep. N.4083184/00",1,7,5,4,3
CASSA DEPOSITI E PRESTITI S.P.A. (C.D.P. S.P.A.),14/12/2022,6415,Interessi passivi a Cassa Depositi e Prestiti SPA su mutui e altri finanziamenti a medio lungo termine,"3.952,35","0,00","0,00",,1,7,Interessi passivi,5,4,3,"Quota Interessi - RETE FOGNARIA  374.917,54 - Rep. N.4102043/00",1,7,5,4,3
CASSA DEPOSITI E PRESTITI S.P.A. (C.D.P. S.P.A.),14/12/2022,6387,Interessi passivi a Cassa Depositi e Prestiti SPA su mutui e altri finanziamenti a medio lungo termine,"588,14","0,00","0,00",,1,7,Interessi passivi,5,4,3,"Quota Interessi - AUTOMEZZI PUBBLICI   90.643,02 - Rep. N.4130589/00",1,7,5,4,3
CASSA DEPOSITI E PRESTITI S.P.A. (C.D.P. S.P.A.),14/12/2022,6422,Interessi passivi a Cassa Depositi e Prestiti SPA su mutui e altri finanziamenti a medio lungo termine,"646,54","0,00","0,00",,1,7,Interessi passivi,5,4,3,"Quota Interessi - SISTEMAZIONE CIMITERO VITOLINI   99.641,88 - Rep. N.4145912/00",1,7,5,4,3
CASSA DEPOSITI E PRESTITI S.P.A. (C.D.P. S.P.A.),14/12/2022,6411,Interessi passivi a Cassa Depositi e Prestiti SPA su mutui e altri finanziamenti a medio lungo termine,"613,63","0,00","0,00",,1,7,Interessi passivi,5,4,3,"Quota Interessi - IMPIANTO IMMUNIZ. PUBBL. FALTOGNANO  60.875,36 - Rep. N.4223978/00",1,7,5,4,3
CASSA DEPOSITI E PRESTITI S.P.A. (C.D.P. S.P.A.),14/12/2022,6388,Interessi passivi a Cassa Depositi e Prestiti SPA su mutui e altri finanziamenti a medio lungo termine,"1.345,09","0,00","0,00",,1,7,Interessi passivi,5,4,3,"Quota Interessi - OPERE VIARIE VIA DEI MARTIRI  133.439,40 - Rep. N.4225689/00",1,7,5,4,3
CASSA DEPOSITI E PRESTITI S.P.A. (C.D.P. S.P.A.),14/12/2022,6389,Interessi passivi a Cassa Depositi e Prestiti SPA su mutui e altri finanziamenti a medio lungo termine,"4.557,99","0,00","0,00",,1,7,Interessi passivi,5,4,3,"Quota Interessi - SISTEMAZIONE STRADA CPL  361.519,83 - Rep. N.4257724/00",1,7,5,4,3
CASSA DEPOSITI E PRESTITI S.P.A. (C.D.P. S.P.A.),14/12/2022,6390,Interessi passivi a Cassa Depositi e Prestiti SPA su mutui e altri finanziamenti a medio lungo termine,"1.570,64","0,00","0,00",,1,7,Interessi passivi,5,4,3,"Quota Interessi - SISTEMAZIONE STRADA S.ANSANO   125.499,03 - Rep. N.4262078/00",1,7,5,4,3
CASSA DEPOSITI E PRESTITI S.P.A. (C.D.P. S.P.A.),14/12/2022,6416,Interessi passivi a Cassa Depositi e Prestiti SPA su mutui e altri finanziamenti a medio lungo termine,"5.339,35","0,00","0,00",,1,7,Interessi passivi,5,4,3,"Quota Interessi - FOGNATURE VIA GRAMSCI  423.494,66 - Rep. N.4262079/00",1,7,5,4,3
CASSA DEPOSITI E PRESTITI S.P.A. (C.D.P. S.P.A.),14/12/2022,6391,Interessi passivi a Cassa Depositi e Prestiti SPA su mutui e altri finanziamenti a medio lungo termine,"3.807,53","0,00","0,00",,1,7,Interessi passivi,5,4,3,"Quota Interessi - SISTEMAZIONE STRADE 1 PETROIO   296.226,92 - Rep. N.4273541/00",1,7,5,4,3
CASSA DEPOSITI E PRESTITI S.P.A. (C.D.P. S.P.A.),14/12/2022,6375,Interessi passivi a Cassa Depositi e Prestiti SPA su mutui e altri finanziamenti a medio lungo termine,"10.161,31","0,00","0,00",,1,7,Interessi passivi,5,4,3,"Quota Interessi - SCUOLA ELEM. SPICCHIO  E 738.533,37 - Rep. N.4284029/01",1,7,5,4,3
CASSA DEPOSITI E PRESTITI S.P.A. (C.D.P. S.P.A.),14/12/2022,6376,Interessi passivi a Cassa Depositi e Prestiti SPA su mutui e altri finanziamenti a medio lungo termine,"2.152,17","0,00","0,00",,1,7,Interessi passivi,5,4,3,Quota Interessi - COSTRUZIONE SCUOLA EL. MAGGIORI ONERI ESPROPRIO   207.804.70  17/12/1996 - Rep. N.4290628/01,1,7,5,4,3
CASSA DEPOSITI E PRESTITI S.P.A. (C.D.P. S.P.A.),14/12/2022,6417,Interessi passivi a Cassa Depositi e Prestiti SPA su mutui e altri finanziamenti a medio lungo termine,"6.140,36","0,00","0,00",,1,7,Interessi passivi,5,4,3,"Quota Interessi - FOGNATURA 1 COMPLETAM  VIA GRAMSCI E VIA LIMITESE  445.498,89 - Rep. N.4292118/00",1,7,5,4,3
CASSA DEPOSITI E PRESTITI S.P.A. (C.D.P. S.P.A.),14/12/2022,6418,Interessi passivi a Cassa Depositi e Prestiti SPA su mutui e altri finanziamenti a medio lungo termine,"622,11","0,00","0,00",,1,7,Interessi passivi,5,4,3,"Quota Interessi - FOGNATURA 2 ADEGUAMENTO SIST. IDRAULICA RIO DEI MORTICINI  45.135,16 - Rep. N.4292118/01",1,7,5,4,3
CASSA DEPOSITI E PRESTITI S.P.A. (C.D.P. S.P.A.),14/12/2022,6377,Interessi passivi a Cassa Depositi e Prestiti SPA su mutui e altri finanziamenti a medio lungo termine,"1.281,36","0,00","0,00",,1,7,Interessi passivi,5,4,3,"Quota Interessi - MAGGIORI ONERI ESPROPRIO SCUOLA MEDIA  123.723,57   17/12/1996 - Rep. N.4293932/01",1,7,5,4,3
CASSA DEPOSITI E PRESTITI S.P.A. (C.D.P. S.P.A.),14/12/2022,6373,Interessi passivi a Cassa Depositi e Prestiti SPA su mutui e altri finanziamenti a medio lungo termine,"21.738,18","0,00","0,00",,1,7,Interessi passivi,5,4,3,"Quota Interessi - SCUOLA MATERNA LOC. SOVIGLIANA  1.581.857,84 - Rep. N.4308818/01",1,7,5,4,3
CASSA DEPOSITI E PRESTITI S.P.A. (C.D.P. S.P.A.),14/12/2022,6419,Interessi passivi a Cassa Depositi e Prestiti SPA su mutui e altri finanziamenti a medio lungo termine,"7.464,35","0,00","0,00",,1,7,Interessi passivi,5,4,3,"Quota Interessi - FOGNATURA LOC. LA STELLA APPARITA   519.018,07 - Rep. N.4327108/00",1,7,5,4,3
CASSA DEPOSITI E PRESTITI S.P.A. (C.D.P. S.P.A.),14/12/2022,6420,Interessi passivi a Cassa Depositi e Prestiti SPA su mutui e altri finanziamenti a medio lungo termine,"15.973,95","0,00","0,00",,1,7,Interessi passivi,5,4,3,"Quota Interessi - FOGNATURA VITOLINI-RACCOLTA SCARICHI CIVILI  1.164,60 - Rep. N.4350459/01",1,7,5,4,3
CASSA DEPOSITI E PRESTITI S.P.A. (C.D.P. S.P.A.),14/12/2022,6392,Interessi passivi a Cassa Depositi e Prestiti SPA su mutui e altri finanziamenti a medio lungo termine,"16.072,69","0,00","0,00",,1,7,Interessi passivi,5,4,3,"Quota Interessi - ASSE ATTREZZATO V.LE TOGLIATTI VIA L. DA VINCI   1.032.913,80 - Rep. N.4357966/00",1,7,5,4,3
CASSA DEPOSITI E PRESTITI S.P.A. (C.D.P. S.P.A.),14/12/2022,6393,Interessi passivi a Cassa Depositi e Prestiti SPA su mutui e altri finanziamenti a medio lungo termine,"21.698,13","0,00","0,00",,1,7,Interessi passivi,5,4,3,"Quota Interessi - ASSE ATTREZ V.LE TOGLIATTI VIA L. DA VINCI  1.394.433,63 - Rep. N.4357966/01",1,7,5,4,3
CASSA DEPOSITI E PRESTITI S.P.A. (C.D.P. S.P.A.),14/12/2022,6379,Interessi passivi a Cassa Depositi e Prestiti SPA su mutui e altri finanziamenti a medio lungo termine,"1.205,45","0,00","0,00",,1,7,Interessi passivi,5,4,3,"Quota Interessi - SCUOLABUS   77.468,53 - Rep. N.4374162/00",1,7,5,4,3
CASSA DEPOSITI E PRESTITI S.P.A. (C.D.P. S.P.A.),14/12/2022,6394,Interessi passivi a Cassa Depositi e Prestiti SPA su mutui e altri finanziamenti a medio lungo termine,"2.453,78","0,00","0,00",,1,7,Interessi passivi,5,4,3,"Quota Interessi - VIA CERMENATI IMPIANTO RETE FOGNARIA ILL. SISTEM. ESTERNA.. 164.971,83 - Rep. N.4377122/00",1,7,5,4,3
CASSA DEPOSITI E PRESTITI S.P.A. (C.D.P. S.P.A.),14/12/2022,6423,Interessi passivi a Cassa Depositi e Prestiti SPA su mutui e altri finanziamenti a medio lungo termine,"3.892,22","0,00","0,00",,1,7,Interessi passivi,5,4,3,"Quota Interessi - CIMITERO VITOLINI   258.228,45 - Rep. N.4378882/00",1,7,5,4,3
CASSA DEPOSITI E PRESTITI S.P.A. (C.D.P. S.P.A.),14/12/2022,6395,Interessi passivi a Cassa Depositi e Prestiti SPA su mutui e altri finanziamenti a medio lungo termine,"1.726,18","0,00","0,00",,1,7,Interessi passivi,5,4,3,"Quota Interessi - VIA IV NOVEMBRE IMP. ILLUMINAZ. P.ZZA DELLA LIBERTA' E 110.933,44 - Rep. N.4378895/00",1,7,5,4,3
CASSA DEPOSITI E PRESTITI S.P.A. (C.D.P. S.P.A.),14/12/2022,6396,Interessi passivi a Cassa Depositi e Prestiti SPA su mutui e altri finanziamenti a medio lungo termine,"528,58","0,00","0,00",,1,7,Interessi passivi,5,4,3,"Quota Interessi - IV NOVEMBRE SISTEMAZ. MARCIAPIEDI P.ZZA DELLA LIBERTA'   33.968,00 - Rep. N.4378895/01",1,7,5,4,3
CASSA DEPOSITI E PRESTITI S.P.A. (C.D.P. S.P.A.),14/12/2022,6368,Interessi passivi a Cassa Depositi e Prestiti SPA su mutui e altri finanziamenti a medio lungo termine,"7.059,63","0,00","0,00",,1,7,Interessi passivi,5,4,3,Quota Interessi - IMMOBILE USO PUBBLICO DA DESTINARE MAGAZZINO COM.LE   464.811.21 - Rep. N.4379246/00,1,7,5,4,3
CASSA DEPOSITI E PRESTITI S.P.A. (C.D.P. S.P.A.),14/12/2022,6397,Interessi passivi a Cassa Depositi e Prestiti SPA su mutui e altri finanziamenti a medio lungo termine,"2.406,54","0,00","0,00",,1,7,Interessi passivi,5,4,3,"Quota Interessi - COLLEGONZI STRADE COM.LI  154.937,07 - Rep. N.4379658/00",1,7,5,4,3
CASSA DEPOSITI E PRESTITI S.P.A. (C.D.P. S.P.A.),14/12/2022,6380,Interessi passivi a Cassa Depositi e Prestiti SPA su mutui e altri finanziamenti a medio lungo termine,"2.927,79","0,00","0,00",,1,7,Interessi passivi,5,4,3,"Quota Interessi - P.ZZA DELLA LIBERTA' BASAMENTO CAVALLO DI LEONARDO  165.880,24 - Rep. N.4388742/02",1,7,5,4,3
CASSA DEPOSITI E PRESTITI S.P.A. (C.D.P. S.P.A.),14/12/2022,6398,Interessi passivi a Cassa Depositi e Prestiti SPA su mutui e altri finanziamenti a medio lungo termine,"4.016,33","0,00","0,00",,1,7,Interessi passivi,5,4,3,"Quota Interessi - EMPOLESE DI POGGIO STRADE COM.LI   234.600,51 - Rep. N.4398880/01",1,7,5,4,3
CASSA DEPOSITI E PRESTITI S.P.A. (C.D.P. S.P.A.),14/12/2022,6399,Interessi passivi a Cassa Depositi e Prestiti SPA su mutui e altri finanziamenti a medio lungo termine,"3.180,03","0,00","0,00",,1,7,Interessi passivi,5,4,3,"Quota Interessi - S.PANTALEO STRADE COM.LI  189.715,45 - Rep. N.4399039/01",1,7,5,4,3
CASSA DEPOSITI E PRESTITI S.P.A. (C.D.P. S.P.A.),14/12/2022,6400,Interessi passivi a Cassa Depositi e Prestiti SPA su mutui e altri finanziamenti a medio lungo termine,"2.973,43","0,00","0,00",,1,7,Interessi passivi,5,4,3,"Quota Interessi - PICCARATICO STRADE COM.LI   173.683,16 - Rep. N.4399044/01",1,7,5,4,3
CASSA DEPOSITI E PRESTITI S.P.A. (C.D.P. S.P.A.),14/12/2022,6369,Interessi passivi a Cassa Depositi e Prestiti SPA su mutui e altri finanziamenti a medio lungo termine,"10.756,53","0,00","0,00",,1,7,Interessi passivi,5,4,3,"Quota Interessi - RISTRUTTURAZIONE MAGAZZINO COM.LE COMPLETAM.CENTRO OPERATIVO  636.838,27 - Rep. N.4400170/01",1,7,5,4,3
CASSA DEPOSITI E PRESTITI S.P.A. (C.D.P. S.P.A.),14/12/2022,6370,Interessi passivi a Cassa Depositi e Prestiti SPA su mutui e altri finanziamenti a medio lungo termine,"5.358,81","0,00","0,00",,1,7,Interessi passivi,5,4,3,Quota Interessi - VILLA REGHINI IN SOVIGLIANA   311.769.58 - Rep. N.4408252/01,1,7,5,4,3
CASSA DEPOSITI E PRESTITI S.P.A. (C.D.P. S.P.A.),14/12/2022,6424,Interessi passivi a Cassa Depositi e Prestiti SPA su mutui e altri finanziamenti a medio lungo termine,"6.598,79","0,00","0,00",,1,7,Interessi passivi,5,4,3,"Quota Interessi - CIMITERO SOVIGLIANA AMPLIAMENTOI  381.756,53 - Rep. N.4417690/01",1,7,5,4,3
CASSA DEPOSITI E PRESTITI S.P.A. (C.D.P. S.P.A.),14/12/2022,6401,Interessi passivi a Cassa Depositi e Prestiti SPA su mutui e altri finanziamenti a medio lungo termine,"46.771,18","0,00","0,00",,1,7,Interessi passivi,5,4,3,"Quota Interessi - VIALE TOGL�IATTI 2 LOTTO VIA L. DA VINCI SPICCHIO SOVIGLIANA  2.795.644,72 - Rep. N.4417863/01",1,7,5,4,3
CASSA DEPOSITI E PRESTITI S.P.A. (C.D.P. S.P.A.),14/12/2022,6421,Interessi passivi a Cassa Depositi e Prestiti SPA su mutui e altri finanziamenti a medio lungo termine,"5.852,64","0,00","0,00",,1,7,Interessi passivi,5,4,3,"Quota Interessi - VIA PIETRAMARINA RETI ACQUA GAS-METANO E FOGNATURA ZONA SOVIGLIANA  348.492,44 - Rep. N.44185235/01",1,7,5,4,3
CASSA DEPOSITI E PRESTITI S.P.A. (C.D.P. S.P.A.),14/12/2022,6402,Interessi passivi a Cassa Depositi e Prestiti SPA su mutui e altri finanziamenti a medio lungo termine,"5.327,89","0,00","0,00",,1,7,Interessi passivi,5,4,3,"Quota Interessi - PARCHEGGIO VIA CERRETANA...   367.440,34 - Rep. N.4437074/01",1,7,5,4,3
CASSA DEPOSITI E PRESTITI S.P.A. (C.D.P. S.P.A.),14/12/2022,6381,Interessi passivi a Cassa Depositi e Prestiti SPA su mutui e altri finanziamenti a medio lungo termine,"18.614,29","0,00","0,00",,1,7,Interessi passivi,5,4,3,"Quota Interessi - RIQUALIFICAZIONE BENI COM.LI P.ZZA GUIDI E AMPLIAM. MUSEO  1.357.105,44 - Rep. N.4437075/01",1,7,5,4,3
CASSA DEPOSITI E PRESTITI S.P.A. (C.D.P. S.P.A.),14/12/2022,6371,Interessi passivi a Cassa Depositi e Prestiti SPA su mutui e altri finanziamenti a medio lungo termine,"10.610,90","0,00","0,00",,1,7,Interessi passivi,5,4,3,"Quota Interessi - VILLA REGHINI PER RIUSO LOCALI  773.605,07 - Rep. N.4458317/01",1,7,5,4,3
CASSA DEPOSITI E PRESTITI S.P.A. (C.D.P. S.P.A.),14/12/2022,6403,Interessi passivi a Cassa Depositi e Prestiti SPA su mutui e altri finanziamenti a medio lungo termine,"6.701,44","0,00","0,00",,1,7,Interessi passivi,5,4,3,"Quota Interessi - PARCHEGGIO VIA BIXIO   438.000,00 - Rep. N.4465531/00",1,7,5,4,3
CASSA DEPOSITI E PRESTITI S.P.A. (C.D.P. S.P.A.),14/12/2022,6404,Interessi passivi a Cassa Depositi e Prestiti SPA su mutui e altri finanziamenti a medio lungo termine,"2.582,98","0,00","0,00",,1,7,Interessi passivi,5,4,3,"Quota Interessi - G.MATTEOTTI  150.000,00 - Rep. N.4490213/00",1,7,5,4,3
CASSA DEPOSITI E PRESTITI S.P.A. (C.D.P. S.P.A.),14/12/2022,6405,Interessi passivi a Cassa Depositi e Prestiti SPA su mutui e altri finanziamenti a medio lungo termine,"17.219,86","0,00","0,00",,1,7,Interessi passivi,5,4,3,"Quota Interessi - VIA TRAVERSA DI LIMITE   1.000.000,00 - Rep. N.4490401/00",1,7,5,4,3
CASSA DEPOSITI E PRESTITI S.P.A. (C.D.P. S.P.A.),14/12/2022,6372,Interessi passivi a Cassa Depositi e Prestiti SPA su mutui e altri finanziamenti a medio lungo termine,"2.363,93","0,00","0,00",,1,7,Interessi passivi,5,4,3,"Quota Interessi - ACQUISTO MEZZI DI TRASPORTO LL.PP.  139.000,00 - Rep. N.4494194/00",1,7,5,4,3
CASSA DEPOSITI E PRESTITI S.P.A. (C.D.P. S.P.A.),14/12/2022,6378,Interessi passivi a Cassa Depositi e Prestiti SPA su mutui e altri finanziamenti a medio lungo termine,"38.481,76","0,00","0,00",,1,7,Interessi passivi,5,4,3,"Quota Interessi - PALESTRA SCUOLA MEDIA ""L.DA VINCI"" A SOVIGLIANA I LOTTO E 2.100.000,00 - Rep. N.4517215/00",1,7,5,4,3
CASSA DEPOSITI E PRESTITI S.P.A. (C.D.P. S.P.A.),14/12/2022,6406,Interessi passivi a Cassa Depositi e Prestiti SPA su mutui e altri finanziamenti a medio lungo termine,"1.569,33","0,00","0,00",,1,7,Interessi passivi,5,4,3,"Quota Interessi - TRATTO BANCHINA STRADALE LOC. S.ANSANO   82.000,00 - Rep. N.4522673/00",1,7,5,4,3
CASSA DEPOSITI E PRESTITI S.P.A. (C.D.P. S.P.A.),14/12/2022,6407,Interessi passivi a Cassa Depositi e Prestiti SPA su mutui e altri finanziamenti a medio lungo termine,"2.153,05","0,00","0,00",,1,7,Interessi passivi,5,4,3,"Quota Interessi - MARCIAPIEDI E RIPRISTINO STRADE   112.500,00 - Rep. N.4522747/00",1,7,5,4,3
CASSA DEPOSITI E PRESTITI S.P.A. (C.D.P. S.P.A.),14/12/2022,6408,Interessi passivi a Cassa Depositi e Prestiti SPA su mutui e altri finanziamenti a medio lungo termine,"1.819,37","0,00","0,00",,1,7,Interessi passivi,5,4,3,"Quota Interessi - P.ZZA MAZZINGHI A VITOLINI   96.000,00 - Rep. N.4525451/00",1,7,5,4,3
CASSA DEPOSITI E PRESTITI S.P.A. (C.D.P. S.P.A.),14/12/2022,6409,Interessi passivi a Cassa Depositi e Prestiti SPA su mutui e altri finanziamenti a medio lungo termine,"14.511,02","0,00","0,00",,1,7,Interessi passivi,5,4,3,"Quota Interessi - ASSE ATTREZZATO V.TOGLIATTI V.LEONARDO DA VINCI 3 STRALCIO  799.744,00  - Rep. N.4525841/00",1,7,5,4,3
CASSA DEPOSITI E PRESTITI S.P.A. (C.D.P. S.P.A.),14/12/2022,6382,Interessi passivi a Cassa Depositi e Prestiti SPA su mutui e altri finanziamenti a medio lungo termine,"7.305,94","0,00","0,00",,1,7,Interessi passivi,5,4,3,"Quota Interessi - RESTAURO CASA NATALE LEONARDO AD ANCHIANO     476.998,96     27/11/2009 - Rep. N.4535280/00",1,7,5,4,3
CO&SO EMPOLI - CONS. DI COOP. SOCIALI - SOCIETA' COOPERATIVA,14/12/2022,6498,Altre spese per contratti di servizio pubblico,"5.556,70","0,00","0,00",8603669443,1,3,Acquisto di beni e servizi,2,15,999,"Liquidazione Fattura Nr. 000198-1C0 del 14/11/2022 - Front-office per biblioteca leonardiana e sedi distaccate pi� attivit� didattiche, ottobre 2022",1,3,2,15,999
CO&SO EMPOLI - CONS. DI COOP. SOCIALI - SOCIETA' COOPERATIVA,14/12/2022,6496,Altre spese per contratti di servizio pubblico,"33.461,60","0,00","0,00",7551132F3D,1,3,Acquisto di beni e servizi,2,15,999,Liquidazione Fattura Nr. 000194-1C0  del 14/11/2022 - Servizi museali - ottobre 2022,1,3,2,15,999
CO&SO EMPOLI - CONS. DI COOP. SOCIALI - SOCIETA' COOPERATIVA,14/12/2022,6504,Altre spese per contratti di servizio pubblico,"4.601,89","0,00","829,85",7551132F3D,1,3,Acquisto di beni e servizi,2,15,999,"Liquidazione Fattura Nr. 000914-2C0  del 14/11/2022 (di cui Split per euro 829,85) - servizi turistici - mese di ottobre 2022",1,3,2,15,999
CENTRICA SRL,14/12/2022,6501,Altri servizi diversi n.a.c.,"610,00","0,00","110,00",ZD337C9FF9,1,3,Acquisto di beni e servizi,2,99,999,"Liquidazione Fattura Nr. 59/2022  del 28/11/2022 (di cui Split per euro 110,00) - SOSTITUZIONE IMMAGINE IN ALTA DEFINIZIONE DELL'OPERA PITTORICA LEONARDIANA ""RITRATTO DI MUSICO"" INSTALLATA ALL'INTERNO DELLA STAZIONE TOUCHSCREEN ""LEONARDO TO",1,3,2,99,999
VENERELLA JOHN GREGORY,14/12/2022,6494,Altre prestazioni professionali e specialistiche n.a.c.,"422,50","0,00","0,00",Z6C31AAA37,1,3,Acquisto di beni e servizi,2,11,999,LIQUIDAZIONE FATTURA NR. 20220002  DEL 16/06/2022 - SERVIZIO DI TRADUZIONE IN LINGUA INGLESE DI TESTI DIDATTICI PER IL MUSEO LEONARDIANO (SECONDA PARTE),1,3,2,11,999
ASSOCIAZIONE LA VALIGIA BLU,14/12/2022,6500,Altri servizi diversi n.a.c.,"2.585,00","0,00","235,00",Z13377843E,1,3,Acquisto di beni e servizi,2,99,999,"Liquidazione Fattura Nr. 2/FE  del 14/11/2022 (di cui Split per euro 235,00) - AFFIDAMENTO REALIZZAZIONE DEL FESTIVAL FUCINANO ANNO 2022 - QUARTA EDIZIONE",1,3,2,99,999
QUALCOSA DA FARE SRLS,14/12/2022,6493,Quote di associazioni,"878,40","0,00","158,40",Z7E384E959,1,3,Acquisto di beni e servizi,2,99,3,"Liquidazione Fattura Nr. FPA 4/22  del 15/11/2022 (di cui Split per euro 158,40) - Fornitura generica",1,3,2,99,3
LIGUIGLI FINE ARTS SERVICE DI LIGUIGLI NICOLA & C. SAS,14/12/2022,6497,Altri servizi ausiliari n.a.c.,"883,57","0,00","159,33",Z3530E1E15,1,3,Acquisto di beni e servizi,2,13,999,"Liquidazione Fattura Nr. EP/99  del 01/12/2022 (di cui Split per euro 159,33) - Fornitura generica",1,3,2,13,999
ALMA MATER STUDIORUM - UNIVERSITA' DI BOLOGNA - DIP. ARCHITETTURA,14/12/2022,6499,Altri servizi diversi n.a.c.,"7.320,00","0,00","1.320,00",,1,3,Acquisto di beni e servizi,2,99,999,"CODICE DI BILANCIO N 1- CODICE ENTE 307000 - LIQUIDAZIONE FATTURA NR. VE0N1-17  DEL 15/11/2022 (DI CUI SPLIT PER EURO 1.320,00). REALIZZAZIONE DI ARTEFATTI COMUNICATIVI DIGITALI DA ESPORRE IN MOSTRE SUL TEMA ""IL DISEGNO DI LEONARDO AI TEMP",1,3,2,99,999
BETTINI TEMPORECORD DI BETTINI GIOVANNI,14/12/2022,6495,Manutenzione ordinaria e riparazioni di altri beni materiali,"427,00","0,00","77,00",ZD6357483B,1,3,Acquisto di beni e servizi,2,9,11,"Liquidazione Fattura Nr. 124  del 29/11/2022 (di cui Split per euro 77,00) - ACCORDO QUADRO PER IL SERVIZIO DI ASSISTENZA TECNICA SPECIALIZZATA E MANUTENZIONE DEI SISTEMI AUDIO VIDEO IN USO NELLE SEDI MUSEALI ED ESPOSITIVE DEL COMUNE DI VIN",1,3,2,9,11
SOCIETA' COOPERATIVA SOCIALE SINTESI-MINERVA,14/12/2022,6492,Pubblicazioni,"3.056,26","0,00","0,00",Z013818642,1,3,Acquisto di beni e servizi,1,1,2,"Liquidazione Fattura Nr. 484/01 del 24/11/2022 - Fornitura libri per biblioteca leonardiana - fondo MIC, decreto Franceschini 2022",1,3,1,1,2
HERA COMM SPA,14/12/2022,6506,Gas,"10,79","0,00","0,51",94586450C8,1,3,Acquisto di beni e servizi,2,5,6,"Liquidazione Fattura Nr. 412211971659  del 15/11/2022 (di cui Split per euro 0,51) - FORNITURA SERVIZIO GAS",1,3,2,5,6
HERA COMM SPA,14/12/2022,6502,Gas,"66,75","0,00","3,18",94586450C8,1,3,Acquisto di beni e servizi,2,5,6,"LIQUIDAZIONE FATTURA NR. 412211971658  DEL 15/11/2022 (DI CUI SPLIT PER EURO 3,18) - FORNITURA SERVIZIO GAS",1,3,2,5,6
HERA COMM SPA,14/12/2022,6503,Gas,"44,50","0,00","2,12",94586450C8,1,3,Acquisto di beni e servizi,2,5,6,"LIQUIDAZIONE FATTURA NR. 412211971658  DEL 15/11/2022 (DI CUI SPLIT PER EURO 2,12) - FORNITURA SERVIZIO GAS",1,3,2,5,6
HERA COMM SPA,14/12/2022,6487,Gas,"10,79","0,00","0,51",94586450C8,1,3,Acquisto di beni e servizi,2,5,6,"Liquidazione Fattura Nr. 412211971657  del 15/11/2022 (di cui Split per euro 0,51) - FORNITURA SERVIZIO GAS",1,3,2,5,6
